{"text_format":"1","workbook":"xlsx","n_sheets":3,"sheets":["QD","TA","nazwy"],"not_rendered":{"charts":0,"images":0,"macros":1,"external_links":0,"defined_names":0,"comments":0,"pivot_tables":0},"unopened":[],"bounds":{"document_bytes":16777216,"sheet_cells":100000,"rows_first":2000,"rows_last":500,"rows_between":2000,"halvings":0,"cell_chars":16384,"cell_head_chars":4096},"cells_cut":0,"cells_raw":0,"read":"whole","date_system":"1900"}

{"sheet":"QD","index":0,"n_rows":347,"n_cols":75,"rows_kept":347,"cut":false,"hidden":false,"merged":[]}
["Data generacji listy","Numer ID danych","Numer wersji","Godność - pierwsza część","Godność - druga część","Godność - trzecia część","Godność - czwarta część","Typ listy sankcyjnej ONZ","Numer referencyjny","Data dodania do listy","Płeć","Dodany przez","Godność - oryginalna pisownia","Komentarze","Narodowość","Dodatkowe informacje ","Dodatkowe informacje ","Dodatkowe informacje ","Dodatkowe informacje ","Dodatkowe informacje ","Jakość danych","Aliasy","Data urodzenia","Miasto urodzenia","Kraj urodzenia","Dodatkowe informacje","Ulica","Miejscowość","Stan/Prowincja","Kod pocztowy","Kraj","Dodatkowe informacje","Typ daty","Dodatkowe informacje","Data","Rok","Rok od","Rok do","Miejscowość","Stan/Prowincja","Kraj","Dodatkowe informacje","Typ dokumentu","Typ dokumentu","Numer dokumentu","Kraj wydania dokumentu","Data wydania dokumentu","Miasto wydania dokumentu","Kraj wydania dokumentu","Dodatkowe informacje","Klucz sortowania","Klucz sortowania ostatnia modyfikacja","Data usunięcia z listy","Numer ID danych","Numer wersji","Nazwa","Typ listy sankcyjnej ONZ","Numer referencyjny","Data dodania do listy","Data zgłoszenia","Oryginalna pisownia nazwy","Komentarze","Dodatkowe informacje","Dodatkowe informacje","Jakość danych","Aliasy","Ulica","Miejscowość","Stan/Prowincja","Kod pocztowy","Kraj","Dodatkowe informacje","Klucz sortowania","Klucz sortowania ostatnia modyfikacja","Data usunięcia z listy"]
["dateGenerated","DATAID","VERSIONNUM","FIRST_NAME","SECOND_NAME","THIRD_NAME","FOURTH_NAME","UN_LIST_TYPE","REFERENCE_NUMBER","LISTED_ON","GENDER","SUBMITTED_BY","NAME_ORIGINAL_SCRIPT","COMMENTS1","NATIONALITY2","VALUE","VALUE2","VALUE3","VALUE4","VALUE5","QUALITY","ALIAS_NAME","DATE_OF_BIRTH","CITY_OF_BIRTH","COUNTRY_OF_BIRTH","NOTE","STREET","CITY","STATE_PROVINCE","ZIP_CODE","COUNTRY","NOTE6","TYPE_OF_DATE","NOTE7","DATE","YEAR","FROM_YEAR","TO_YEAR","CITY8","STATE_PROVINCE9","COUNTRY10","NOTE11","TYPE_OF_DOCUMENT","TYPE_OF_DOCUMENT2","NUMBER","ISSUING_COUNTRY","DATE_OF_ISSUE","CITY_OF_ISSUE","COUNTRY_OF_ISSUE","NOTE12","SORT_KEY","SORT_KEY_LAST_MOD","DELISTED_ON","DATAID13","VERSIONNUM14","FIRST_NAME15","UN_LIST_TYPE16","REFERENCE_NUMBER17","LISTED_ON18","SUBMITTED_ON","NAME_ORIGINAL_SCRIPT19","COMMENTS120","VALUE21","VALUE22","QUALITY23","ALIAS_NAME24","STREET25","CITY26","STATE_PROVINCE27","ZIP_CODE28","COUNTRY29","NOTE30","SORT_KEY31","SORT_KEY_LAST_MOD32","DELISTED_ON33"]
["2019-05-14T20:44:25.777-04:00",6908576,1,"IYAD","NAZMI","SALIH","KHALIL","Al-Qaida","QDi.400","2017-02-22",null,null,"إياد نظمي صالح خليل","Leader of Al-Nusrah Front for the People of the Levant (QDe.137) for coastal area of Syrian Arab Republic since March 2016. INTERPOL-UN Security Council Special Notice web link: https://www.interpol.int/en/How-we-work/Notices/View-UN-Notices-Individuals",null,null,null,"Jordan","UN List",null,"Good, Low, Low, Low, Low, Low","Ayyad Nazmi Salih Khalil, Eyad Nazmi Saleh Khalil, Iyad al-Toubasi, Iyad al-Tubasi, Abu al-Darda', Abu-Julaybib al-Urduni, Abu-Julaybib",null,null,null,null,null,null,null,null,"Syrian Arab Republic","Coastal area of. Location as of April 2016","EXACT",null,null,1974,null,null,null,null,"Syrian Arab Republic",null,"Passport",null,"Jordan 654781, Jordan 286062",null,null,null,null,"approximately issued in 2009, issued on 5 April 1999 at Zarqa, Jordan, expired on 4 April 2004"]
["2019-05-14T20:44:25.777-04:00",6908757,1,"HAJJI","'ABD AL-NASIR",null,null,"Al-Qaida","QDi.420","2018-11-19",null,null,null,"ISIL military leader in the Syrian Arab Republic as well as chair of the ISIL Delegated Committee, which exercises administrative control of ISIL's affairs. INTERPOL-UN Security Council Special Notice web link: https://www.interpol.int/en/How-we-work/Notices/View-UN-Notices-Individuals",null,null,null,"Iraq","UN List"]
["2019-05-14T20:44:25.777-04:00",6908443,1,"'ABD AL-MALIK","MUHAMMAD","YUSUF","'UTHMAN 'ABD AL-SALAM","Al-Qaida","QDi.346","2015-01-23",null,null,"عبدالملك محمد يوسف عثمان عبد السلام","Facilitator who provides financial, material, and technological support\nfor Al-Qaida (QDe.004) and Al-Nusrah Front for the People of the Levant\n(QDe.137).  Review pursuant to Security Council resolution 2253 (2015) was concluded on 21 Feb. 2019.  INTERPOL-UN Security Council Special Notice web link: https://www.interpol.int/en/How-we-work/Notices/View-UN-Notices-Individuals",null,null,null,"Jordan","UN List"]
["2019-05-14T20:44:25.777-04:00",6908440,1,"ASHRAF","MUHAMMAD","YUSUF","'UTHMAN 'ABD AL-SALAM","Al-Qaida","QDi.343","2015-01-23",null,null,"اشرف محمد يوسف عثمان عبد السلام","A member of Al-Qaida (QDe.004) as of 2012 and a fighter in the Syrian\nArab Republic since early 2014. Provided financial, material, and technological support\nfor Al-Qaida, Al-Nusrah Front for the People of the Levant (QDe.137) and Al-Qaida in\nIraq (AQI) (QDe.115). INTERPOL-UN Security Council Special Notice web link: https://www.interpol.int/en/How-we-work/Notices/View-UN-Notices-Individuals",null,null,null,"Jordan","UN List"]
["2019-05-14T20:44:25.777-04:00",111900,1,"NASHWAN","ABD AL-RAZZAQ","ABD AL-BAQI",null,"Al-Qaida","QDi.012","2001-10-06","Male",null,"نشوان عبد الرزاق عبد الباقي","Joined Al-Qaida in 1996 and was at that time an important liaison to the Taliban in Afghanistan. Received money from Ansar al-Islam (QDe.098) in order to conduct attacks in Kirkuk and Ninveh in Iraq during spring and summer of 2005. Al-Qaida senior official. In custody of the United States of America, as of Aug. 2014. Father’s name: Abd al-Razzaq Abd al-Baqi. Mother’s name: Nadira Ayoub Asaad. Photo available for inclusion in the INTERPOL-UN Security Council Special Notice. Review pursuant to Security Council resolution 1822 (2008) was concluded on 15 Jun. 2010. INTERPOL-UN Security Council Special Notice web link: https://www.interpol.int/en/How-we-work/Notices/View-UN-Notices-Individuals",null,null,null,"Iraq","UN List"]
["2019-05-14T20:44:25.777-04:00",111533,1,"ABD ALLAH","MOHAMED","RAGAB","ABDEL RAHMAN","Al-Qaida","QDi.192","2005-09-29",null,null,"عبد الله محمد رجب عبد الرحمن","Member of Egyptian Islamic Jihad (QDe.003). Review pursuant to Security Council resolution 1822 (2008) was concluded on 1 Jun. 2010. Review pursuant to Security Council resolution 2253 (2015) was concluded on 21 Feb. 2019. INTERPOL-UN Security Council Special Notice web link: https://www.interpol.int/en/How-we-work/Notices/View-UN-Notices-Individuals",null,null,null,"Egypt","UN List"]
["2019-05-14T20:44:25.777-04:00",111449,1,"MAJEED","ABDUL CHAUDHRY",null,null,"Al-Qaida","QDi.054","2001-12-24",null,null,null,"Review pursuant to Security Council resolution 1822 (2008) was concluded\non 1 Jun. 2010.  Review pursuant to Security Council resolution 2253 (2015) was concluded on 21 Feb. 2019.  INTERPOL-UN Security Council Special Notice web link: https://www.interpol.int/en/How-we-work/Notices/View-UN-Notices-Individuals",null,null,null,"Pakistan","UN List"]
["2019-05-14T20:44:25.777-04:00",111514,1,"ABDUL MANAN AGHA",null,null,null,"Al-Qaida","QDi.018","2001-10-17",null,null,"عبد المنان آغا","Pakistan. Review pursuant to Security Council resolution 1822 (2008) was\nconcluded on 15 Jun. 2010. Review pursuant to Security Council resolution 2253 (2015) was concluded on 21 Feb. 2019.",null,"Haji",null,null,"UN List"]
["2019-05-14T20:44:25.777-04:00",2972739,1,"MUHAMMAD","JIBRIL","ABDUL RAHMAN",null,"Al-Qaida","QDi.295","2011-08-12",null,null,null,"Senior member of Jemaah Islamiyah (QDe.092) directly involved in obtaining funding for terrorist attacks. Sentenced in Indonesia to five years in prison on 29 Jun. 2010. Father’s name is Mohamad Iqbal Abdurrahman (QDi.086). INTERPOL-UN Security Council Special Notice web link: https://www.interpol.int/en/How-we-work/Notices/View-UN-Notices-Individuals",null,null,null,"Indonesia","UN List"]
["2019-05-14T20:44:25.777-04:00",2786469,1,"ALY","SOLIMAN","MASSOUD","ABDUL SAYED","Al-Qaida","QDi.229","2007-06-08",null,null,null,"Member of Libyan Islamic Fighting Group (QDe.011). Review pursuant to Security Council resolution 1822 (2008) was concluded on 24 Nov. 2009. Review pursuant to Security Council resolution 2253 (2015) was concluded on 21 Feb. 2019.  INTERPOL-UN Security Council Special Notice web link: https://www.interpol.int/en/How-we-work/Notices/View-UN-Notices-Individuals",null,null,null,"Libya","UN List"]
["2019-05-14T20:44:25.777-04:00",2983651,1,"ABDUR REHMAN",null,null,null,"Al-Qaida","QDi.309","2012-03-14",null,null,"عبد الرحمن","Has provided facilitation and financial services to Al-Qaida (QDe.004).\nAssociated with Harakatul Jihad Islami (QDe.130), Jaish-I-Mohammed (QDe.019), and\nAl-Akhtar Trust International (QDe.121).  Review pursuant to Security Council resolution 2253 (2015) was concluded on 21 Feb. 2019.  INTERPOL-UN Security Council Special Notice web link: https://www.interpol.int/en/How-we-work/Notices/View-UN-Notices-Individuals",null,null,null,"Pakistan","UN List"]
["2019-05-14T20:44:25.777-04:00",6908487,1,"MAGHOMED","MAGHOMEDZAKIROVICH","ABDURAKHMANOV",null,"Al-Qaida","QDi.363","2015-10-02",null,null,"Абдурахманов Магомед Магомедзакирович","As at Aug. 2015, leader of Jamaat Abu Banat terrorist group, which forms part of the Islamic State in Iraq and the Levant (ISIL), listed as Al-Qaida in Iraq (QDe.115), and operates on the outskirts of Syrian Arab Republic cities Aleppo and Idlib, extorting funds from and carrying out kidnappings and public executions of local Syrians. Physical description: eye colour brown, hair colour: dark, build: strong, straight nose, height: 180-185 cm, speaks Russian, English, Arabic. Wanted by the authorities of the Russian Federation for terrorist crimes committed in its territory. Photo available for inclusion in the INTERPOL-UN Security Council Special Notice. INTERPOL-UN Security Council Special Notice web link: https://www.interpol.int/en/How-we-work/Notices/View-UN-Notices-Individuals",null,null,null,"Russian Federation","UN List"]
["2019-05-14T20:44:25.777-04:00",111451,1,"MOHAMAD","IQBAL","ABDURRAHMAN",null,"Al-Qaida","QDi.086","2003-01-28",null,null,null,"Review pursuant to Security Council resolution 1822 (2008) was concluded on 8 Jun. 2010. INTERPOL-UN Security Council Special Notice web link: https://www.interpol.int/en/How-we-work/Notices/View-UN-Notices-Individuals",null,null,null,"Indonesia","UN List"]
["2019-05-14T20:44:25.777-04:00",6908701,1,"ABDULPATTA","ESCALON","ABUBAKAR",null,"Al-Qaida","QDi.414","2018-06-18",null,null,null,"Facilitator for the Islamic State in Iraq and the Levant (ISIL), listed as Al-Qaida in Iraq (QDe.115). Gender: male.  INTERPOL-UN Security Council Special Notice web link: https://www.interpol.int/en/How-we-work/Notices/View-UN-Notices-Individuals",null,null,null,"Philippines","UN List"]
["2019-05-14T20:44:25.777-04:00",2983821,1,"MOCHAMMAD","ACHWAN",null,null,"Al-Qaida","QDi.304","2012-03-12",null,null,null,"Acting emir of Jemmah Anshorut Tauhid (JAT) (QDe.133). Associated with\nAbu Bakar Ba’asyir (QDi.217), Abdul Rahim Ba’aysir (QDi.293) and Jemaah Islamiyah\n(QDe.092). INTERPOL-UN Security Council Special Notice web link: https://www.interpol.int/en/How-we-work/Notices/View-UN-Notices-Individuals",null,null,null,"Indonesia","UN List"]
["2019-05-14T20:44:25.777-04:00",3012677,1,"IYAD","AG GHALI",null,null,"Al-Qaida","QDi.316","2013-02-25",null,null,"اياد اغ غالي","Founder and leader of Ansar Eddine (QDe.135). Member of the Tuareg Ifogas tribe. Linked to the Organization of Al-Qaida in the Islamic Maghreb (QDe.014) and Mouvement pour l’Unification et le Jihad en Afrique de l’Ouest (MUJAO) (QDe.134). Name of father is Ag Bobacer Arhali, name of mother is Rhiachatou Wallet Sidi. Review pursuant to Security Council resolution 2253 (2015) was concluded on 21 Feb. 2019. INTERPOL-UN Security Council Special Notice web link: https://www.interpol.int/en/How-we-work/Notices/View-UN-Notices-Individuals",null,null,null,"Mali","UN List"]
["2019-05-14T20:44:25.777-04:00",111953,1,"FARHAD","KANABI","AHMAD",null,"Al-Qaida","QDi.203","2005-12-06",null,null,"فرهاد كنابي أحمد","Mother’s name: Farida Hussein Khadir. Released from custody in Germany on 10 Dec. 2010 and relocated to Iraq on 6 Dec. 2011. Review pursuant to Security Council resolution 1822 (2008) was concluded on 5 Oct. 2009. Review pursuant to Security Council resolution 2253 (2015) was concluded on 21 Feb. 2019.  INTERPOL-UN Security Council Special Notice web link: https://www.interpol.int/en/How-we-work/Notices/View-UN-Notices-Individuals",null,null,null,"Iraq","UN List"]
["2019-05-14T20:44:25.777-04:00",2762998,1,"NAJMUDDIN","FARAJ","AHMAD",null,"Al-Qaida","QDi.226","2006-12-07",null,null,null,"Mother’s name: Masouma Abd al-Rahman. Photo available for inclusion in the INTERPOL-UN Security Council Special Notice. Review pursuant to Security Council resolution 1822 (2008) was concluded on 20 May 2010. INTERPOL-UN Security Council Special Notice web link: https://www.interpol.int/en/How-we-work/Notices/View-UN-Notices-Individuals",null,null,null,"Iraq","UN List"]
["2019-05-14T20:44:25.777-04:00",6908541,1,"TURKI","MUBARAK","ABDULLAH","AHMAD AL-BINALI","Al-Qaida","QDi.391","2016-04-20",null,null,null,"Head of religious compliance police and a recruiter of foreign terrorist fighters for Islamic State in Iraq and the Levant (ISIL), listed as Al-Qaida in Iraq (QDe.115), as of mid-May 2015.  INTERPOL-UN Security Council Special Notice web link: https://www.interpol.int/en/How-we-work/Notices/View-UN-Notices-Individuals",null,null,null,"Bahrain (citizenship revoked in Jan. 2015)","UN List"]
["2019-05-14T20:44:25.777-04:00",2797952,1,"JABER","ABDALLAH","JABER","AHMAD AL-JALAHMAH","Al-Qaida","QDi.237","2014-01-03",null,null,"جابر عبد الله جابر أحمد الجلاهمة","Previously listed between 16 Jan. 2008 and 3 Jan. 2014 (amended on 1 Jul.\n2008, 23 Jul. 2008, 25 Jan. 2010). Review pursuant to Security Council resolution 1822\n(2008) was concluded on 14 Sep. 2009. INTERPOL-UN Security Council Special Notice web link: https://www.interpol.int/en/How-we-work/Notices/View-UN-Notices-Individuals",null,null,null,"Kuwait","UN List"]
["2019-05-14T20:44:25.777-04:00",111498,1,"TARIQ","ANWAR","EL SAYED","AHMED","Al-Qaida","QDi.014","2001-10-06",null,null,"طاريق أنور السيد احمد","Reportedly deceased in October 2001. Review pursuant to Security Council resolution 1822 (2008) was concluded on 29 Jul. 2010. Review pursuant to Security Council resolution 2253 (2015) was concluded on 21 Feb. 2019. INTERPOL-UN Security Council Special Notice web link: https://www.interpol.int/en/How-we-work/Notices/View-UN-Notices-Individuals",null,null,null,"Egypt","UN List"]
["2019-05-14T20:44:25.777-04:00",111641,1,"ZAKI","EZAT","ZAKI","AHMED","Al-Qaida","QDi.193","2005-09-29",null,null,"زكي عزت زكي احمد","Father’s name is Ahmed Ezat Zaki. Member of Egyptian Islamic Jihad (QDe.003). Review pursuant to Security Council resolution 1822 (2008) was concluded on 1 Jun. 2010. Review pursuant to Security Council resolution 2253 (2015) was concluded on 21 Feb. 2019. INTERPOL-UN Security Council Special Notice web link: https://www.interpol.int/en/How-we-work/Notices/View-UN-Notices-Individuals",null,null,null,"Egypt","UN List"]
["2019-05-14T20:44:25.777-04:00",3002734,1,"DJAMEL","AKKACHA",null,null,"Al-Qaida","QDi.313","2013-02-05",null,null,"جمال عكاشة","Father’s name is Slimane. Mother’s name is Akrouf Khadidja. Coordinator\nof groups associated with The Organisation of Al-Qaida in the Islamic Maghreb (QDe.014)\nin northern Mali. Review pursuant to Security Council resolution 2253 (2015) was concluded on 21 Feb. 2019. INTERPOL-UN Security Council Special Notice web link: https://www.interpol.int/en/How-we-work/Notices/View-UN-Notices-Individuals",null,null,null,"Algeria","UN List"]
["2019-05-14T20:44:25.777-04:00",6908395,1,"ABOU","MOHAMED","AL ADNANI",null,"Al-Qaida","QDi.325","2014-08-15",null,null,null,"Official spokesman of Islamic State in Iraq and the Levant (ISIL), listed\nas Al-Qaida in Iraq (QDe.115), and emir of ISIL in Syria, closely associated with Abu\nMohammed al-Jawlani (QDi.317) and Abu Bakr al-Baghdadi, listed as Ibrahim Awwad Ibrahim\nAli al-Badri al-Samarrai (QDi.299). Review pursuant to Security Council resolution 2253 (2015) was concluded on 21 Feb. 2019. INTERPOL-UN Security Council Special Notice web link: https://www.interpol.int/en/How-we-work/Notices/View-UN-Notices-Individuals",null,null,null,"Iraq","UN List"]
["2019-05-14T20:44:25.777-04:00",6908396,1,"HAJJAJ","BIN","FAHD","AL AJMI","Al-Qaida","QDi.328","2014-08-15",null,null,null,"A Kuwait-based facilitator in charge of the ‘committee of zakat’ and\nfinancier for Al-Nusrah Front for the People of the Levant (QDe.137). INTERPOL-UN Security Council Special Notice web link: https://www.interpol.int/en/How-we-work/Notices/View-UN-Notices-Individuals",null,null,null,"Kuwait","UN List"]
["2019-05-14T20:44:25.777-04:00",6908400,1,"ABDUL MOHSEN","ABDALLAH","IBRAHIM","AL CHAREKH","Al-Qaida","QDi.324","2014-08-15",null,null,null,"A long time facilitator and financier for Al-Qaida (QDe.004), appointed as a regional leader of Jabhat al-Nusrah, listed as Al-Nusrah Front for the People of the Levant (QDe.137). Review pursuant to Security Council resolution 2253 (2015) was concluded on 21 Feb. 2019. INTERPOL-UN Security Council Special Notice web link: https://www.interpol.int/en/How-we-work/Notices/View-UN-Notices-Individuals",null,null,null,"Saudi Arabia","UN List"]
["2019-05-14T20:44:25.777-04:00",2760967,1,"MOHAMMED","AL GHABRA",null,null,"Al-Qaida","QDi.228","2006-12-12",null,null,null,"Father’s name is Mohamed Ayman Ghabra. Mother’s name is Dalal. Review\npursuant to Security Council resolution 1822 (2008) was concluded on 5 Oct.\n2009. Review pursuant to Security Council resolution 2253 (2015) was concluded on 21 Feb. 2019.  INTERPOL-UN Security Council Special Notice web link: https://www.interpol.int/en/How-we-work/Notices/View-UN-Notices-Individuals",null,null,null,"United Kingdom of Great Britain and Northern Ireland","UN List","2011-12-13, 2015-07-20, 2019-05-01","Good","Mohammed El’ Ghabra, Danial Adam",null,null,null,null,null,"East London",null,null,"United Kingdom",null,"EXACT",null,"1980-06-01",null,null,null,"Damascus",null,"Syrian Arab Republic",null,"Passport",null,"British number 094629366"]
["2019-05-14T20:44:25.777-04:00",6908424,1,"ABDELRAHMAN","MOUHAMAD ZAFIR","AL DABIDI","AL JAHANI","Al-Qaida","QDi.327","2014-08-15",null,null,null,"A member and regional commander of Jabhat al-Nusrah, listed as Al-Nusrah\nFront for the People of the Levant (QDe.137)and a facilitator of foreign recruits for\nthat group. INTERPOL-UN Security Council Special Notice web link: https://www.interpol.int/en/How-we-work/Notices/View-UN-Notices-Individuals",null,null,null,"Saudi Arabia","UN List"]
["2019-05-14T20:44:25.777-04:00",6908477,1,"AMRU","AL-ABSI",null,null,"Al-Qaida","QDi.361","2015-09-29",null,null,null,"Shura council member of Islamic State in Iraq and the Levant, listed as Al-Qaida in Iraq (AQI) (QDe.115) and in charge of ISIL’s media arm. ISIL’s provincial leader for Homs, Syrian Arab Republic as of mid-2014. Dubbed as the ISIL’s “kidnapper-in-chief”. Review pursuant to Security Council resolution 2253 (2015) was concluded on 21 Feb. 2019. INTERPOL-UN Security Council Special Notice web link: https://www.interpol.int/en/How-we-work/Notices/View-UN-Notices-Individuals",null,null,null,null,"UN List","2019-05-01"]
["2019-05-14T20:44:25.777-04:00",6908397,1,"SHAFI","SULTAN","MOHAMMED","AL-AJMI","Al-Qaida","QDi.338","2014-09-23",null,null,null,"Fundraiser for Al-Nusrah Front for the People of the Levant (QDe.137).\n INTERPOL-UN Security Council Special Notice web link: https://www.interpol.int/en/How-we-work/Notices/View-UN-Notices-Individuals",null,"Doctor",null,null,"UN List"]
["2019-05-14T20:44:25.777-04:00",2797951,1,"HAMID","ABDALLAH","AHMAD","AL-ALI","Al-Qaida","QDi.236","2008-01-16",null,null,"حامد عبد الله أحمد العلي","Review pursuant to Security Council resolution 1822 (2008) was concluded\non 14 Sep. 2009. Review pursuant to Security Council resolution 2253 (2015) was concluded on 21 Feb. 2019. INTERPOL-UN Security Council Special Notice web link: https://www.interpol.int/en/How-we-work/Notices/View-UN-Notices-Individuals",null,null,null,"Kuwait","UN List"]
["2019-05-14T20:44:25.777-04:00",111734,1,"MEHREZ","BEN MAHMOUD","BEN SASSI","AL-AMDOUNI","Al-Qaida","QDi.092","2003-06-25",null,null,"محرز بن محمود بن ساسي العمدوني","Father’s name is Mahmoud ben Sasi. Mother’s name is Maryam bint\nal-Tijani. Inadmissible to the Schengen area. Review pursuant to Security Council\nresolution 1822 (2008) was concluded on 22 Apr. 2010. INTERPOL-UN Security Council Special Notice web link: https://www.interpol.int/en/How-we-work/Notices/View-UN-Notices-Individuals",null,null,null,"Tunisia","UN List"]
["2019-05-14T20:44:25.777-04:00",6908537,1,"ABU UBAYDAH","YUSUF","AL-ANABI",null,"Al-Qaida","QDi.389","2016-02-29",null,null,null,"A leader of the Organization of Al-Qaida in the Islamic Maghreb (AQIM) (QDe.014). Photo available for inclusion in the INTERPOL-UN Security Council Special Notice. INTERPOL-UN Security Council Special Notice web link: https://www.interpol.int/en/How-we-work/Notices/View-UN-Notices-Individuals",null,null,null,"Algeria","UN List"]
["2019-05-14T20:44:25.777-04:00",111735,1,"MOHAMED","BEN BELGACEM","BEN ABDALLAH","AL-AOUADI","Al-Qaida","QDi.060","2002-04-24","Unknown",null,"محمد بن بلقاسم بن عبد الله العوادي","Head of security wing of Ansar al-Shari'a in Tunisia (AAS-T) (QDe.143). Mother's name is Ourida Bint Mohamed. Deported from Italy to Tunisia on 1 Dec. 2004. Arrested in Tunisia in Aug. 2013. Imprisoned in the civilian prison of Burj al-‘Amiri on 13 Sep. 2013. Review pursuant to Security Council resolution 1822 (2008) was concluded on 22 Apr. 2010. INTERPOL-UN Security Council Special Notice web link: https://www.interpol.int/en/How-we-work/Notices/View-UN-Notices-Individuals",null,null,null,"Tunisia","UN List"]
["2019-05-14T20:44:25.777-04:00",2962519,1,"IBRAHIM","HASSAN","TALI","AL-ASIRI","Al-Qaida","QDi.291","2011-03-24",null,null,"إبراهيم حسن طالع العسيري","Operative and principal bomb maker of Al-Qaida in the Arabian Peninsula\n(AQAP) (QDe.129). Believed to be hiding in Yemen as at Mar. 2011. Wanted by Saudi\nArabia. Also associated with Nasir 'abd-al-Karim 'Abdullah Al-Wahishi (deceased), Qasim\nYahya Mahdi al-Rimi (QDi.282), and Anwar Nasser Abdulla Al-Aulaqi (QDi.283). INTERPOL-UN Security Council Special Notice web link: https://www.interpol.int/en/How-we-work/Notices/View-UN-Notices-Individuals",null,null,null,"Saudi Arabia","UN List"]
["2019-05-14T20:44:25.777-04:00",2913655,1,"ANWAR","NASSER","ABDULLA","AL-AULAQI","Al-Qaida","QDi.283","2010-07-20",null,null,"انور ناصر عبدالله العولقي","Confirmed to have died on 30 Sep. 2011 in Yemen. Review pursuant to Security Council resolution 2253 (2015) was concluded on 21 Feb. 2019. INTERPOL-UN Security Council Special Notice web link: https://www.interpol.int/en/How-we-work/Notices/View-UN-Notices-Individuals",null,null,null,"United States of America","UN List"]
["2019-05-14T20:44:25.777-04:00",6908441,1,"IBRAHIM","'ISA HAJJI","MUHAMMAD","AL-BAKR","Al-Qaida","QDi.344","2015-01-23",null,null,"ابراهیم عیسی حاجي محمد البکر","Facilitator who provides financial support for and financial services to\nand in support of Al-Qaida (QDe.004). INTERPOL-UN Security Council Special Notice web link: https://www.interpol.int/en/How-we-work/Notices/View-UN-Notices-Individuals",null,null,null,"Qatar","UN List"]
["2019-05-14T20:44:25.777-04:00",111835,1,"SAID","BEN ABDELHAKIM","BEN OMAR","AL-CHERIF","Al-Qaida","QDi.138","2003-11-12",null,null,"سعيد بن عبد الحكيم بن عمر الشريف","Mother's name is Radhiyah Makki. Sentenced to eight years and ten months\nof imprisonment for membership of a terrorist association by the Appeal Court of Milan,\nItaly, on 7 Feb. 2008. Sentence confirmed by the Italian Supreme Court on 15 Jan. 2009,\nwhich became definitive as of Feb. 2008. Subject to expulsion from Italy to Tunisia\nafter serving the sentence. Review pursuant to Security Council resolution 1822 (2008)\nwas concluded on 6 May 2010. INTERPOL-UN Security Council Special Notice web link: https://www.interpol.int/en/How-we-work/Notices/View-UN-Notices-Individuals",null,null,null,"Tunisia","UN List"]
["2019-05-14T20:44:25.777-04:00",2786246,1,"SALEM","NOR ELDIN","AMOHAMED","AL-DABSKI","Al-Qaida","QDi.231","2007-06-08",null,null,"سالم نور الدين امحمد الدبيسكي","Mother's name is Kalthoum Abdul Salam al-Shaftari. Senior member of\nLibyan Islamic Fighting Group (QDe.011) and member of Al-Qaida (QDe.004). Review\npursuant to Security Council resolution 1822 (2008) was concluded on 24 Nov.\n2009. Review pursuant to Security Council resolution 2253 (2015) was concluded on 21 Feb. 2019.  INTERPOL-UN Security Council Special Notice web link: https://www.interpol.int/en/How-we-work/Notices/View-UN-Notices-Individuals",null,null,null,"Libya","UN List"]
["2019-05-14T20:44:25.777-04:00",2894441,1,"MUTHANNA","HARITH","AL-DARI",null,"Al-Qaida","QDi.278","2010-03-25",null,null,"مثنى حارث الضاري","Mother’s name: Heba Khamis Dari. Provided operational guidance financial support and other services to or in support of Islamic State in Iraq and the Levant, listed as Al-Qaida in Iraq (AQI) (QDe.115). Involved in oil smuggling. Wanted by the Iraqi security forces. Photo available for inclusion in the INTERPOL-UN Security Council Special Notice. INTERPOL-UN Security Council Special Notice web link: https://www.interpol.int/en/How-we-work/Notices/View-UN-Notices-Individuals",null,"Doctor",null,null,"UN List"]
["2019-05-14T20:44:25.777-04:00",111837,1,"NOUREDDINE","BEN ALI","BEN BELKASSEM","AL-DRISSI","Al-Qaida","QDi.149","2003-11-12",null,null,"نور الدين بن علي بن بلقاسم الدريسي","Under administrative control measure in Italy until 5 May 2010.\nInadmissible to the Schengen area. Mother’s name is Khadijah al-Drissi. Review pursuant\nto Security Council resolution 1822 (2008) was concluded on 22 Apr. 2010. INTERPOL-UN Security Council Special Notice web link: https://www.interpol.int/en/How-we-work/Notices/View-UN-Notices-Individuals",null,null,null,"Tunisia","UN List"]
["2019-05-14T20:44:25.777-04:00",6908469,1,"ABD AL-AZIZ","ADAY","ZIMIN","AL-FADHIL","Al-Qaida","QDi.379","2015-09-21","Male",null,"عبدالعزیز عدي زمین الفضیل","Kuwait-based facilitator who provides financial services to, or in support of, Al-Nusrah Front for the People of the Levant (QDe.137) and Al-Qaida in the Arabian Peninsula (AQAP) (QDe.129). Review pursuant to Security Council resolution 2253 (2015) was concluded on 21 Feb. 2019.  INTERPOL-UN Security Council Special Notice web link: https://www.interpol.int/en/How-we-work/Notices/View-UN-Notices-Individuals",null,null,null,null,"UN List","2019-05-01"]
["2019-05-14T20:44:25.777-04:00",111763,1,"KHALID","ABD AL-RAHMAN","HAMD","AL-FAWAZ","Al-Qaida","QDi.059","2002-04-24",null,null,"خالد عبد الرحمن حمد الفواز","Extradited from the United Kingdom to the United States of America on 5\nOct. 2012. Review pursuant to Security Council resolution 1822 (2008) was concluded on\n22 Apr. 2010.. INTERPOL-UN Security Council Special Notice web link: https://www.interpol.int/en/How-we-work/Notices/View-UN-Notices-Individuals",null,null,null,"Saudi Arabia","UN List"]
["2019-05-14T20:44:25.777-04:00",2968403,1,"OTHMAN","AHMED","OTHMAN","AL-GHAMDI","Al-Qaida","QDi.292","2011-06-16",null,null,"عثمان أحمد عثمان الغامدي","Operational commander of Al-Qaida in the Arabian Peninsula (AQAP)\n(QDe.129). Has been involved in raising funds and stockpiling arms for AQAP operations\nand activities in Yemen. Known associate of Qasim Yahya Mahdi al-Rimi (QDi.282) and Fahd\nMohammed Ahmed al-Quso (deceased). Father’s name is Ahmed Othman Al Omirah. INTERPOL-UN Security Council Special Notice web link: https://www.interpol.int/en/How-we-work/Notices/View-UN-Notices-Individuals",null,null,null,"Saudi Arabia","UN List"]
["2019-05-14T20:44:25.777-04:00",6908401,1,"IBRAHIM","SULEIMAN","HAMAD","AL-HABLAIN","Al-Qaida","QDi.332","2014-09-23",null,null,null,"Explosives expert and operative for the Abdallah Azzam Brigades (AAB)\n(QDe.144). Wanted by the Saudi Arabian Government for terrorism. Physical description:\neye colour: dark; hair colour: dark; complexion: olive. Speaks Arabic. Photo available\nfor inclusion in the INTERPOL-UN Security Council Special Notice. INTERPOL-UN Security Council Special Notice web link: https://www.interpol.int/en/How-we-work/Notices/View-UN-Notices-Individuals",null,null,null,"Saudi Arabia","UN List"]
["2019-05-14T20:44:25.777-04:00",111916,1,"KAMAL","BEN MAOELDI","BEN HASSAN","AL-HAMRAOUI","Al-Qaida","QDi.140","2003-11-12",null,null,"كمال بن المولدي بن حسن الحمراوي","Mother’s name is Khamisah al-Kathiri. Subject to a decree of expulsion,\nsuspended on 17 Apr. 2007 by the European Court of Human Rights. Re-arrested in Italy on\n20 May 2008. Inadmissible to the Schengen area. Review pursuant to Security Council\nresolution 1822 (2008) was concluded on 6 May 2010. INTERPOL-UN Security Council Special Notice web link: https://www.interpol.int/en/How-we-work/Notices/View-UN-Notices-Individuals",null,null,null,"Tunisia","UN List"]
["2019-05-14T20:44:25.777-04:00",6908575,1,"BASSAM","AHMAD","AL-HASRI",null,"Al-Qaida","QDi.399","2017-02-22",null,null,"بسام أحمد الحصري","Leader of Al-Nusrah Front for the People of the Levant (QDe.137) for southern Syrian Arab Republic since July 2016. INTERPOL-UN Security Council Special Notice web link: https://www.interpol.int/en/How-we-work/Notices/View-UN-Notices-Individuals",null,null,null,"Syrian Arab Republic","UN List"]
["2019-05-14T20:44:25.777-04:00",111784,1,"IMAD","BEN BECHIR","BEN HAMDA","AL-JAMMALI","Al-Qaida","QDi.176","2004-06-23",null,null,"عماد بن البشير بن حمدا الجمالي","Italian Fiscal Code: JMM MDI 68A25 Z352D. Italian Judicial Authorities have issued a warrant of arrest against him, which had not been executed as of Sep. 2007. Imprisoned in Sousse Prison on 28 Jul. 2002 and sentenced to 10 years of imprisonment and administrative supervision. Released on 31 Jan. 2011 under a general amnesty. Mother’s name is Jamilah. Review pursuant to Security Council resolution 1822 (2008) was concluded on 9 Apr. 2010. INTERPOL-UN Security Council Special Notice web link: https://www.interpol.int/en/How-we-work/Notices/View-UN-Notices-Individuals",null,null,null,"Tunisia","UN List"]
["2019-05-14T20:44:25.777-04:00",3020633,1,"ABU MOHAMMED","AL-JAWLANI",null,null,"Al-Qaida","QDi.317","2013-07-24",null,null,"أبو محمد الجولاني","Description: Dark complexion. Height: 1.70 m. Since Jan. 2012, he is the Leader of Al-Nusrah Front for the People of the Levant (QDe.137), a Syria-based group listed in May 2014, and previously listed as an alias of Al-Qaida in Iraq (AQI) (QDe.115) between 30 May 2013 and 13 May 2014. Associated with Aiman Muhammed Rabi al-Zawahiri (QDi.006). Wanted by the Iraqi security forces. Photo available for inclusion in the INTERPOL-UN Security Council Special Notice.  Review pursuant to Security Council resolution 2253 (2015) was concluded on 21 Feb. 2019.  INTERPOL-UN Security Council Special Notice web link: https://www.interpol.int/en/How-we-work/Notices/View-UN-Notices-Individuals",null,null,null,"Syrian Arab Republic","UN List"]
["2019-05-14T20:44:25.777-04:00",6908417,1,"MAYSAR ALI","MUSA","ABDALLAH","AL-JUBURI","Al-Qaida","QDi.337","2014-09-23",null,null,null,"Sharia amir of Al-Nusrah Front for the People of the Levant (QDe.137) as\nof early 2014. INTERPOL-UN Security Council Special Notice web link: https://www.interpol.int/en/How-we-work/Notices/View-UN-Notices-Individuals",null,"Amir",null,null,"UN List"]
["2019-05-14T20:44:25.777-04:00",6908472,1,"SA'D","BIN SA'D","MUHAMMAD SHARIYAN","AL-KA'BI","Al-Qaida","QDi.382","2015-09-21",null,null,"سعد بن سعد محمد شریان الكعبي","Qatar-based facilitator who provides financial services to, or in support of, Al-Nusrah Front for the People of the Levant (QDe.137). Review pursuant to Security Council resolution 2253 (2015) was concluded on 21 Feb. 2019. INTERPOL-UN Security Council Special Notice web link: https://www.interpol.int/en/How-we-work/Notices/View-UN-Notices-Individuals",null,null,null,"Qatar","UN List"]
["2019-05-14T20:44:25.777-04:00",3026942,1,"MUHAMMAD","JAMAL","ABD-AL RAHIM AHMAD","AL-KASHIF","Al-Qaida","QDi.318","2013-10-21",null,null,"محمد جمال عبدالرحيم أحمد الكاشف","Trained in Afghanistan in the late 1980s with Al-Qaida (QDe.004) to make\nbombs. Former top military commander of the Egyptian Islamic Jihad (QDe.003). Since\n2011, established Muhammad Jamal Network (MJN) (QDe.136) and terrorist training camps in\nEgypt and Libya. Conducted MJN’s terrorist activities with support from Al-Qaida in the\nArabian Peninsula (AQAP) (QDe.129). Reported to be involved in the attack on the United\nStates Mission in Benghazi, Libya, on 11 Sep. 2012. Headed Nasr City terrorist cell in\nEgypt in 2012. Linked to Aiman al-Zawahiri (QDi.006) and the leadership of AQAP and the\nOrganization of Al-Qaida in the Islamic Maghreb (AQIM) (QDe.014). Arrested and\nimprisoned multiple times by Egyptian authorities since ca. 2000. Released in 2011 but\nre-arrested by Egyptian authorities in Nov. 2012. Imprisoned in Egypt pending trial as\nof Sep. 2013. Wife’s name is Samah ‘Ali Al-Dahabani (Yemeni national). Review pursuant to Security Council resolution 2253 (2015) was concluded on 21 Feb. 2019. INTERPOL-UN Security Council Special Notice web link: https://www.interpol.int/en/How-we-work/Notices/View-UN-Notices-Individuals",null,null,null,"Egypt","UN List"]
["2019-05-14T20:44:25.777-04:00",6908470,1,"ABD AL-LATIF","BIN ABDALLAH","SALIH MUHAMMAD","AL-KAWARI","Al-Qaida","QDi.380","2015-09-21",null,null,"عبداللطیف بن عبدلله صالح محمد الكواري","Qatar-based facilitator who provides financial services to, or in support of, Al-Qaida (QDe.004). Review pursuant to Security Council resolution 2253 (2015) was concluded on 21 Feb. 2019. INTERPOL-UN Security Council Special Notice web link: https://www.interpol.int/en/How-we-work/Notices/View-UN-Notices-Individuals",null,null,null,"Qatar","UN List"]
["2019-05-14T20:44:25.777-04:00",6908659,1,"UMAR","MAHMUD","IRHAYYIM","AL-KUBAYSI","Al-Qaida","QDi.412","2018-03-06",null,null,"عمر محمود إرحيم الفياض الكبيسي","Financial facilitator for Islamic State in Iraq and the Levant, listed as Al-Qaida in Iraq (QDe.115). Director of Al-Kawthar Money Exchange (QDe.157). Physical description: sex: male, hair colour: black; height: 175 cm. Speaks Arabic. INTERPOL-UN Security Council Special Notice web link: https://www.interpol.int/en/How-we-work/Notices/View-UN-Notices-Individuals",null,null,null,"Iraq","UN List"]
["2019-05-14T20:44:25.777-04:00",111785,1,"HABIB","BEN","AHMED","AL-LOUBIRI","Al-Qaida","QDi.177","2004-06-23",null,null,"حبيب بن احمد اللوبيري","Italian Fiscal Code: LBR HBB 61S17 Z352F. In detention in Tunisia as at Dec. 2009. Mother’s name is Fatima al-Galasi. Review pursuant to Security Council resolution 1822 (2008) was concluded on 9 Apr. 2010. INTERPOL-UN Security Council Special Notice web link: https://www.interpol.int/en/How-we-work/Notices/View-UN-Notices-Individuals",null,null,null,"Tunisia","UN List"]
["2019-05-14T20:44:25.777-04:00",111920,1,"TAREK","BEN HABIB","BEN AL-TOUMI","AL-MAAROUFI","Al-Qaida","QDi.074","2002-09-03",null,null,"طارق بن الحبيب بن التومي المعروفي","Belgian nationality withdrawn on 26 Jan. 2009. In detention in Nivelles,\nBelgium, as of Oct. 2010. Review pursuant to Security Council resolution 1822 (2008) was\nconcluded on 8 Jun. 2010. INTERPOL-UN Security Council Special Notice web link: https://www.interpol.int/en/How-we-work/Notices/View-UN-Notices-Individuals",null,null,null,"Tunisia","UN List"]
["2019-05-14T20:44:25.777-04:00",6908658,1,"SALIM","MUSTAFA","MUHAMMAD","AL-MANSUR","Al-Qaida","QDi.411","2018-03-06",null,null,"سالم مصطفى محمد ال منصور","Finance “emir” for Islamic State in Iraq and the Levant, listed as Al-Qaida in Iraq (QDe.115). Physical description: hair colour: black; eye colour: honey; height: 170 cm. Speaks Arabic.  INTERPOL-UN Security Council Special Notice web link: https://www.interpol.int/en/How-we-work/Notices/View-UN-Notices-Individuals",null,null,null,"Iraq","UN List"]
["2019-05-14T20:44:25.777-04:00",3029127,1,"ABD-AL-HAMID","AL-MASLI",null,null,"Al-Qaida","QDi.320","2013-11-26",null,null,"عبدالحميد المصلي","Leader and trainer of an Al-Qaida electronics and explosives workshop\nproducing improvised explosive device components. Review pursuant to Security Council resolution 2253 (2015) was concluded on 21 Feb. 2019. INTERPOL-UN Security Council Special Notice web link: https://www.interpol.int/en/How-we-work/Notices/View-UN-Notices-Individuals",null,null,null,"Libya","UN List"]
["2019-05-14T20:44:25.777-04:00",6908408,1,"AZZAM","ABDULLAH","ZUREIK","AL-MAULID AL-SUBHI","Al-Qaida","QDi.330","2014-09-23","Male",null,null,"Has ties to numerous senior Al-Qaida (QDe.004) leaders. Wanted by the\nSaudi Arabian Government for terrorism. Father's name is Abdullah Razeeq al Mouled al\nSbhua. Physical description: eye colour: dark; hair colour: dark; complexion: dark.\nSpeaks Arabic. Photo available for inclusion in the INTERPOL-UN Security Council Special\nNotice. INTERPOL-UN Security Council Special Notice web link: https://www.interpol.int/en/How-we-work/Notices/View-UN-Notices-Individuals",null,null,null,"Saudi Arabia","UN List"]
["2019-05-14T20:44:25.777-04:00",2892251,1,"AKRAM","TURKI","HISHAN","AL-MAZIDIH","Al-Qaida","QDi.276","2010-03-11",null,null,"أكرم تركي هاشم المزيده","Other possible date of birth: 1979. He is a cousin of Ghazy Fezza Hishan Al Mazidih (QDi.277). Financial facilitator of the Islamic State in Iraq and the Levant, listed as Al-Qaida in Iraq (AQI) (QDe.115) as of 2015.  Review pursuant to Security Council resolution 2253 (2015) was concluded on 21 Feb. 2019. \n INTERPOL-UN Security Council Special Notice web link: https://www.interpol.int/en/How-we-work/Notices/View-UN-Notices-Individuals",null,null,null,null,"UN List","2016-01-15"]
["2019-05-14T20:44:25.777-04:00",2892252,1,"GHAZY","FEZZA","HISHAN","AL-MAZIDIH","Al-Qaida","QDi.277","2010-03-11",null,null,"غازي فيزا هاشم المزيده","He is a cousin of Akram Turki Hishan Al Mazidih (QDi.276). Terrorist attack organizer for the Islamic State in Iraq and the Levant, listed as Al-Qaida in Iraq (AQI) (QDe.115) as of 2015.  Review pursuant to Security Council resolution 2253 (2015) was concluded on 21 Feb. 2019.  INTERPOL-UN Security Council Special Notice web link: https://www.interpol.int/en/How-we-work/Notices/View-UN-Notices-Individuals",null,null,null,null,"UN List","2015-12-10"]
["2019-05-14T20:44:25.777-04:00",6908530,1,"MUHANNAD","AL-NAJDI",null,null,"Al-Qaida","QDi.377","2016-02-29",null,null,null,"Syria-based Al-Qaida (QDe.004) facilitator. Involved in the development of improvised explosive devices for use in Afghanistan and Syrian Arab Republic since at least 2010. INTERPOL-UN Security Council Special Notice web link: https://www.interpol.int/en/How-we-work/Notices/View-UN-Notices-Individuals",null,null,null,"Saudi Arabia","UN List"]
["2019-05-14T20:44:25.777-04:00",6908414,1,"‘ABD AL-RAHMAN","BIN ‘UMAYR","AL-NU’AYMI",null,"Al-Qaida","QDi.334","2014-09-23",null,null,null,"Financier and facilitator for Al-Qaida (QDe.004) and Al-Qaida in Iraq\n(QDe.115). INTERPOL-UN Security Council Special Notice web link: https://www.interpol.int/en/How-we-work/Notices/View-UN-Notices-Individuals",null,null,null,"Qatar","UN List"]
["2019-05-14T20:44:25.777-04:00",2863393,1,"FAZEEL-A-TUL","SHAYKH ABU MOHAMMED","AMEEN","AL-PESHAWARI","Al-Qaida","QDi.273","2009-06-29",null,null,null,"Associated with Al-Qaida (QDe.004). Head of Ganj madrasa, a.k.a. Madrasa\nJamia Taleemul Quran wal Hadith, a.k.a. Madrasa Taleemul Quran wal Sunnah, located at\nthe Ganj Gate, Phandu Road, Peshawar, Pakistan. Review pursuant to Security Council resolution 2253 (2015) was concluded on 21 Feb. 2019. INTERPOL-UN Security Council Special Notice web link: https://www.interpol.int/en/How-we-work/Notices/View-UN-Notices-Individuals",null,null,null,"Afghan","UN List"]
["2019-05-14T20:44:25.777-04:00",6908419,1,"‘ABD AL-RAHMAN","MUHAMMAD","MUSTAFA","AL-QADULI","Al-Qaida","QDi.339","2014-09-23",null,null,null,"Senior Islamic State in Iraq and the Levant (ISIL), listed as Al-Qaida in\nIraq (AQI) (QDe.115), official. Previously served as a representative of AQI to Al-Qaida\n(QDe.004) senior leadership in Pakistan. INTERPOL-UN Security Council Special Notice web link: https://www.interpol.int/en/How-we-work/Notices/View-UN-Notices-Individuals",null,null,null,"Iraq","UN List"]
["2019-05-14T20:44:25.777-04:00",6908578,1,"NAYIF","SALIH","SALIM","AL-QAYSI","Al-Qaida","QDi.402","2017-02-22",null,null,"نايف صالح سالم القيسي","Senior official and a financial supporter of Al-Qaida in the Arabian Peninsula (AQAP) (QDe.129).  Facilitated the expansion of AQAP in al-Bayda Governorate, Yemen. Involved in planning AQAP's militant operations in Yemen and financed AQAP training camps in 2015.   INTERPOL-UN Security Council Special Notice web link: https://www.interpol.int/en/How-we-work/Notices/View-UN-Notices-Individuals",null,null,null,"Yemen","UN List"]
["2019-05-14T20:44:25.777-04:00",2903810,1,"QASIM","MOHAMED","MAHDI","AL-RIMI","Al-Qaida","QDi.282","2010-05-11",null,null,"قاسم محمد مهدي الريمي","Mother’s name: Fatima Muthanna Yahya. Photo available for inclusion in the INTERPOL-UN Security Council Special Notice. Leader of Al-Qaida in the Arabian Peninsula (QDe.129) since Jun. 2015, pledged loyalty to Aiman al-Zawahiri (QDi.006).  INTERPOL-UN Security Council Special Notice web link: https://www.interpol.int/en/How-we-work/Notices/View-UN-Notices-Individuals",null,null,null,"Yemen","UN List"]
["2019-05-14T20:44:25.777-04:00",6908478,1,"MU’TASSIM","YAHYA","‘ALI","AL-RUMAYSH","Al-Qaida","QDi.369","2015-09-29",null,null,null,"Financial and foreign fighter facilitator for Islamic State in Iraq and the Levant, listed as Al-Qaida in Iraq (QDe.115). Member of Al-Qaida in the Arabian Peninsula (AQAP) (QDe.129) since at least Jun. 2014. INTERPOL-UN Security Council Special Notice web link: https://www.interpol.int/en/How-we-work/Notices/View-UN-Notices-Individuals",null,null,null,"Yemen","UN List"]
["2019-05-14T20:44:25.777-04:00",6908718,1,"ADNAN","ABOU WALID","AL-SAHRAOUI",null,"Al-Qaida","QDi.415","2018-08-09",null,null,"عدنان أبو وليد الصحراوي","Former spokesperson of the Mouvement pour l’Unification et le Jihad en Afrique de l’Ouest (MUJAO) (QDe.134). Emir of the Al-Mourabitoun (QDe.141) group in Mali. Pledged allegiance to Islamic State in Iraq and the Levant (ISIL), listed as Al-Qaida in Iraq (QDe.115) in May 2015. INTERPOL-UN Security Council Special Notice web link: https://www.interpol.int/en/How-we-work/Notices/View-UN-Notices-Individuals",null,null,null,null,"UN List"]
["2019-05-14T20:44:25.777-04:00",6908471,1,"HAMAD","AWAD","DAHI SARHAN","AL-SHAMMARI","Al-Qaida","QDi.381","2015-09-21",null,null,"حمد عوض ضاحي سرحان الشمري","Kuwait-based facilitator who provides financial services to, or in support of, Al-Qaida (QDe.004) and Al-Nusrah Front for the People of the Levant (QDe.137). Review pursuant to Security Council resolution 2253 (2015) was concluded on 21 Feb. 2019. INTERPOL-UN Security Council Special Notice web link: https://www.interpol.int/en/How-we-work/Notices/View-UN-Notices-Individuals",null,null,null,"Kuwait","UN List"]
["2019-05-14T20:44:25.777-04:00",6908532,1,"ALI MUSA","AL-SHAWAKH",null,null,"Al-Qaida","QDi.384","2016-02-29",null,null,null,"A leader of Islamic State in Iraq and the Levant (ISIL), listed as Al-Qaida in Iraq (QDe.115). As of Jun, 2015, al-Shawakh was the ISIL governor of Aleppo. INTERPOL-UN Security Council Special Notice web link: https://www.interpol.int/en/How-we-work/Notices/View-UN-Notices-Individuals",null,null,null,"Syrian Arab Republic","UN List"]
["2019-05-14T20:44:25.777-04:00",6908533,1,"HASAN","AL-SALAHAYN","SALIH","AL-SHA’ARI","Al-Qaida","QDi.385","2016-02-29",null,null,null,"Facilitator for Islamic State in Iraq and the Levant (ISIL), listed as Al-Qaida in Iraq (QDe.115).  INTERPOL-UN Security Council Special Notice web link: https://www.interpol.int/en/How-we-work/Notices/View-UN-Notices-Individuals",null,null,null,"Libya","UN List"]
["2019-05-14T20:44:25.777-04:00",2827659,1,"KHALIFA","MUHAMMAD","TURKI","AL-SUBAIY","Al-Qaida","QDi.253","2008-10-10",null,"United States","خليفة محمد تركي السبيعي","Qatar-based terrorist financier and facilitator who has provided\nfinancial support to, and acted on behalf of, the senior leadership of Al-Qaida\n(QDe.004), including moving recruits to Al-Qaida training camps in South Asia. In Jan.\n2008, convicted in absentia by the Bahraini High Criminal Court for financing terrorism,\nundergoing terrorist training, facilitating the travel of others to receive terrorist\ntraining abroad, and for membership in a terrorist organization. Arrested in Qatar in\nMar. 2008. Served his sentence in Qatar and has been released from detention. Mother’s\nname is Hamdah Ahmad Haidoos. INTERPOL-UN Security Council Special Notice web link: https://www.interpol.int/en/How-we-work/Notices/View-UN-Notices-Individuals",null,null,null,"Qatar","UN List"]
["2019-05-14T20:44:25.777-04:00",112023,1,"MOURAD","BEN ALI","BEN AL-BASHEER","AL-TRABELSI","Al-Qaida","QDi.151","2003-11-12",null,null,"مراد بن علي بن البشير الطرابلسي","Extradited from Italy to Tunisia on 13 Dec. 2008. Imprisoned in Mornaguia Prison on 29 Nov. 2011\npursuant to an order issued by the Court of First Instance of Grombalia for excavation of artefacts\nwithout a licence (case No. 12680/2011). Released on 27 Dec. 2011 after charges against him\nwere dismissed. Inadmissible to the Schengen area. Mother’s name is Mabrukah al-Yazidi. Review\npursuant to Security Council resolution 1822 (2008) was concluded on 22 Apr. 2010. INTERPOL-UN Security Council Special Notice web link: https://www.interpol.int/en/How-we-work/Notices/View-UN-Notices-Individuals",null,null,null,"Tunisia","UN List"]
["2019-05-14T20:44:25.777-04:00",112026,1,"MAHFOUZ","OULD","AL-WALID",null,"Al-Qaida","QDi.015","2001-10-06",null,null,"محفوظ ولد الوليد","Review pursuant to Security Council resolution 1822 (2008) was concluded\non 15 Jun. 2010. INTERPOL-UN Security Council Special Notice web link: https://www.interpol.int/en/How-we-work/Notices/View-UN-Notices-Individuals",null,null,null,"Mauritania","UN List"]
["2019-05-14T20:44:25.777-04:00",6908407,1,"AHMED","ABDULLAH","SALEH AL-KHAZMARI","AL-ZAHRANI","Al-Qaida","QDi.329","2014-09-23","Male",null,null,"Senior member of Al-Qaida (QDe.004). Wanted by the Saudi Arabian\nGovernment for terrorism. Father's name is Abdullah Saleh al Zahrani. Physical\ndescription: eye colour: dark; hair colour: dark; complexion: olive. Speaks Arabic.\nPhoto available for inclusion in the INTERPOL-UN Security Council Special\nNotice. INTERPOL-UN Security Council Special Notice web link: https://www.interpol.int/en/How-we-work/Notices/View-UN-Notices-Individuals",null,null,null,"Saudi Arabia","UN List"]
["2019-05-14T20:44:25.777-04:00",6908542,1,"FAYSAL","AHMAD","BIN ALI","AL-ZAHRANI","Al-Qaida","QDi.392","2016-04-20",null,null,"فيصل احمد بن علي الزهراني","Was the lead oil and gas division official of Islamic State in Iraq and the Levant (ISIL), listed as Al-Qaida in Iraq (QDe.115), for Al Barakah Governorate, Syrian Arab Republic, as of May 2015. Review pursuant to Security Council resolution 2253 (2015) was concluded on 21 Feb. 2019. INTERPOL-UN Security Council Special Notice web link: https://www.interpol.int/en/How-we-work/Notices/View-UN-Notices-Individuals",null,null,null,"Saudi Arabia","UN List"]
["2019-05-14T20:44:25.777-04:00",6908577,1,"GHALIB","ABDULLAH","AL-ZAIDI",null,"Al-Qaida","QDi.401","2017-02-22",null,null,"غالب عبدالله الزيدي","A leader of Al-Qaida in the Arabian Peninsula (AQAP) (QDe.129) in Marib Governorate, Yemen since 2015. Provided AQAP with weapons, funding and recruits. INTERPOL-UN Security Council Special Notice web link: https://www.interpol.int/en/How-we-work/Notices/View-UN-Notices-Individuals",null,null,null,"Yemen","UN List"]
["2019-05-14T20:44:25.777-04:00",111923,1,"AIMAN","MUHAMMED","RABI","AL-ZAWAHIRI","Al-Qaida","QDi.006","2001-01-25",null,null,"أيمن محمد ربيع الظواهري","Leader of Al-Qaida (QDe.004). Former operational and military leader of\nEgyptian Islamic Jihad (QDe.003), was a close associate of Usama Bin Laden (deceased).\nBelieved to be in the Afghanistan/Pakistan border area. Review pursuant to Security\nCouncil resolution 1822 (2008) was concluded on 21 Jun. 2010. INTERPOL-UN Security Council Special Notice web link: https://www.interpol.int/en/How-we-work/Notices/View-UN-Notices-Individuals",null,"Doctor",null,null,"UN List"]
["2019-05-14T20:44:25.777-04:00",111924,1,"ABD-AL-MAJID","AZIZ","AL-ZINDANI",null,"Al-Qaida","QDi.156","2004-02-27",null,null,"عبد المجيد عزيز الزنداني","Review pursuant to Security Council resolution 1822 (2008) was concluded\non 2 Jun. 2010. Review pursuant to Security Council resolution 2253 (2015) was concluded on 21 Feb. 2019.  INTERPOL-UN Security Council Special Notice web link: https://www.interpol.int/en/How-we-work/Notices/View-UN-Notices-Individuals",null,"Sheikh",null,null,"UN List"]
["2019-05-14T20:44:25.777-04:00",6908398,1,"HAMID","HAMAD","HAMID","AL-‘ALI","Al-Qaida","QDi.326","2014-08-15",null,null,null,"A Kuwait-based financier, recruiter and facilitator for Islamic State in\nIraq and the Levant, listed as Al-Qaida in Iraq (QDe.115), and Jabhat al-Nusrah, listed\nas Al-Nusrah Front for the People of the Levant (QDe.137). Associated with Ibrahim Awwad\nIbrahim Ali al-Badri al-Samarrai (QDi.299) and Abu Mohammed al-Jawlani\n(QDi.317). INTERPOL-UN Security Council Special Notice web link: https://www.interpol.int/en/How-we-work/Notices/View-UN-Notices-Individuals",null,null,null,"Kuwait","UN List"]
["2019-05-14T20:44:25.777-04:00",6908399,1,"‘ABD AL-RAHMAN","KHALAF","‘UBAYD JUDAY’","AL-‘ANIZI","Al-Qaida","QDi.335","2014-09-23",null,null,null,"Provides support to Al-Qaida (QDe.004) and Islamic State in Iraq and the\nLevant, listed as Al-Qaida in Iraq (AQI) (QDe.115), in Syria and Iraq.  Review pursuant to Security Council resolution 2253 (2015) was concluded on 21 Feb. 2019.  INTERPOL-UN Security Council Special Notice web link: https://www.interpol.int/en/How-we-work/Notices/View-UN-Notices-Individuals",null,null,null,"Kuwait","UN List"]
["2019-05-14T20:44:25.777-04:00",111496,1,"SULAIMAN","JASSEM","SULAIMAN","ALI ABO GHAITH","Al-Qaida","QDi.154","2004-01-16",null,null,"سليمان جاسم سليمان علي أبوغيث","Left Kuwait for Pakistan in June 2001. Review pursuant to Security\nCouncil resolution 1822 (2008) was concluded on 21 Jun. 2010. INTERPOL-UN Security Council Special Notice web link: https://www.interpol.int/en/How-we-work/Notices/View-UN-Notices-Individuals",null,null,null,"Kuwaiti citizenship withdrawn in 2002","UN List"]
["2019-05-14T20:44:25.777-04:00",2975516,1,"IBRAHIM","AWWAD","IBRAHIM","ALI AL-BADRI AL-SAMARRAI","Al-Qaida","QDi.299","2011-10-05",null,null,"إبراهيم عواد إبراهيم علي البدري السامرائي","Description: Height: 1.65 m. Weight: 85 kg. Black hair and eyes. White skin. Leader of Islamic State in Iraq and the Levant, listed as Al-Qaida in Iraq (AQI) (QDe.115). Currently based in Iraq and Syria. Declared himself “caliph” in Mosul in 2014. Responsible for managing and directing AQI large scale operations. Wife's name: Saja Hamid al-Dulaimi. Wife’s name: Asma Fawzi Mohammed al-Kubaissi. Wanted by the Iraqi security forces. Photo available for inclusion in the INTERPOL-UN Security Council Special Notice.\n INTERPOL-UN Security Council Special Notice web link: https://www.interpol.int/en/How-we-work/Notices/View-UN-Notices-Individuals",null,"Dr.",null,null,"UN List"]
["2019-05-14T20:44:25.777-04:00",2973988,1,"MATI UR-REHMAN","ALI MUHAMMAD",null,null,"Al-Qaida","QDi.296","2011-08-22",null,null,"مطیع الرحمن علی محمد","Physical description: 5 feet 2 inches; 157,4 cm. Name of father: Ali\nMuhammad. Mati ur-Rehman is the chief operational commander of Lashkar i Jhangvi (LJ)\n(QDe.096). Associated with Harakat-ul Jihad Islami (QDe.130). INTERPOL-UN Security Council Special Notice web link: https://www.interpol.int/en/How-we-work/Notices/View-UN-Notices-Individuals",null,null,null,"Pakistan","UN List"]
["2019-05-14T20:44:25.777-04:00",6908479,1,"TARAD","MOHAMMAD","ALJARBA",null,"Al-Qaida","QDi.370","2015-09-29",null,null,null,"Border emir of Islamic State in Iraq and the Levant (ISIL), listed as Al-Qaida in Iraq (QDe.115) as of Apr. 2015, and ISIL’s leader for operations outside of the Syrian Arab Republic and Iraq as of mid-2014. Facilitated the travel from Turkey to the Syrian Arab Republic of prospective ISIL fighters from Australia, Europe, and the Middle East. Managed ISIL’s guesthouse in Azaz, Syrian Arabic Republic as of 2014. INTERPOL-UN Security Council Special Notice web link: https://www.interpol.int/en/How-we-work/Notices/View-UN-Notices-Individuals",null,null,null,"Saudi Arabia","UN List"]
["2019-05-14T20:44:25.777-04:00",113223,1,"ISAM","ALI","MOHAMED","ALOUCHE","Al-Qaida","QDi.076","2002-09-03",null,null,"عصام علي محمد علوش","Was deported from Germany to Jordan in Feb. 2005. Review pursuant to\nSecurity Council resolution 1822 (2008) was concluded on 21 Jun. 2010. INTERPOL-UN Security Council Special Notice web link: https://www.interpol.int/en/How-we-work/Notices/View-UN-Notices-Individuals",null,null,null,"Jordan","UN List"]
["2019-05-14T20:44:25.777-04:00",6908769,1,"MOHAMMED","MASOOD","AZHAR","ALVI","Al-Qaida","QDi.422","2019-05-01",null,null,"محمد مسعود اظہر علوی","Founder of Jaish-i-Mohammed (QDe.019). Former leader of Harakat ul-Mujahidin / HUM (QDe.008). INTERPOL-UN Security Council Special Notice web link: https://www.interpol.int/en/How-we-work/Notices/View-UN-Notices-Individuals",null,null,null,"Pakistan","UN List"]
["2019-05-14T20:44:25.777-04:00",112028,1,"SAIFI","AMMARI",null,null,"Al-Qaida","QDi.152","2003-12-04",null,null,"سيفي عماري","In detention in Algeria since Oct. 2004. Former member of the GSPC listed\nas The Organization of Al-Qaida in the Islamic Maghreb (QDe.014). Review pursuant to\nSecurity Council resolution 1822 (2008) was concluded on 27 Jul. 2010. INTERPOL-UN Security Council Special Notice web link: https://www.interpol.int/en/How-we-work/Notices/View-UN-Notices-Individuals",null,null,null,"Algeria","UN List"]
["2019-05-14T20:44:25.777-04:00",111790,1,"ABDULLAH","ANSHORI",null,null,"Al-Qaida","QDi.216","2006-04-21",null,null,null,"Review pursuant to Security Council resolution 1822 (2008) was concluded\non 8 Jun. 2010. INTERPOL-UN Security Council Special Notice web link: https://www.interpol.int/en/How-we-work/Notices/View-UN-Notices-Individuals",null,null,null,"Indonesia","UN List"]
["2019-05-14T20:44:25.777-04:00",6908423,1,"SAID","ARIF",null,null,"Al-Qaida","QDi.323","2014-08-15",null,null,null,"A veteran member of the ‘Chechen Network’ (not listed) and other\nterrorist groups. He was convicted of his role and membership in the ‘Chechen Network’\nin France in 2006. Joined Jabhat al-Nusrah, listed as Al-Nusrah Front for the People of\nthe Levant (QDe.137) in October 2013. INTERPOL-UN Security Council Special Notice web link: https://www.interpol.int/en/How-we-work/Notices/View-UN-Notices-Individuals",null,null,null,"Algeria","UN List"]
["2019-05-14T20:44:25.777-04:00",6908574,1,"RUSTAM","MAGOMEDOVICH","ASELDEROV",null,"Al-Qaida","QDi.398","2016-12-12","Male",null,"Рустам Магомедович Асельдеров","Led a group of over 160 terrorist fighters, which operates in the Republics of Dagestan, Chechnya and Ingushetia, Russian Federation. Killed on 3 December 2016 in Makhachkala, the Republic of Dagestan, Russian Federation. Photo available for inclusion in the INTERPOL-UN Security Council Special Notice. Review pursuant to Security Council resolution 2253 (2015) was concluded on 21 Feb. 2019. INTERPOL-UN Security Council Special Notice web link: https://www.interpol.int/en/How-we-work/Notices/View-UN-Notices-Individuals",null,null,null,"Russian Federation","UN List"]
["2019-05-14T20:44:25.777-04:00",111704,1,"MUHSIN","FADHIL","AYED","ASHOUR AL-FADHLI","Al-Qaida","QDi.184","2005-02-17",null,null,"محسن فاضل عايد عاشور الفضلي","Wanted by the Kuwaiti Security Authorities. Wanted by the Saudi security forces. Fugitive as of Jul. 2008. Review pursuant to Security Council resolution 1822 (2008) was concluded on 1 Jun. 2010. INTERPOL-UN Security Council Special Notice web link: https://www.interpol.int/en/How-we-work/Notices/View-UN-Notices-Individuals",null,null,null,"Kuwait","UN List","2008-07-23, 2015-12-10","Good","Muhsin Fadhil ‘Ayyid al Fadhli, Muhsin Fadil Ayid Ashur al Fadhli, Abu Majid Samiyah, Abu Samia",null,null,null,null,"Block Four, Street 13, House #179","Kuwait City","Al-Riqqa area",null,"Kuwait",null,"EXACT",null,"1981-04-24",null,null,null,null,null,"Kuwait",null,"Passport",null,"106261543, 1420529","Kuwait",null,null,"Kuwait","and expired on 31 Mar. 2006"]
["2019-05-14T20:44:25.777-04:00",2832890,1,"HAJI","MUHAMMAD","ASHRAF",null,"Al-Qaida","QDi.265","2008-12-10",null,null,null,"Chief of finance of Lashkar-e-Tayyiba (QDe.118). His father’s name is\nNoor Muhammad. Review pursuant to Security Council resolution 2253 (2015) was concluded on 21 Feb. 2019. INTERPOL-UN Security Council Special Notice web link: https://www.interpol.int/en/How-we-work/Notices/View-UN-Notices-Individuals",null,null,null,"Pakistan","UN List"]
["2019-05-14T20:44:25.777-04:00",6908488,1,"ISLAM","SEIT-UMAROVICH","ATABIEV",null,"Al-Qaida","QDi.364","2015-10-02",null,null,"Ислам Сеит-Умарович Атабиев","As at Aug. 2015, emir of Russian-speaking militants of the Islamic State of Iraq and the Levant (ISIL), listed as Al-Qaida in Iraq (QDe.115). Controls the Syrian Arab Republic cities of Al Dana and Idlib as an ISIL chief. Wanted by the authorities of the Russian Federation for terrorist crimes committed in its territory. Photo available for inclusion in the INTERPOL-UN Security Council Special Notice. INTERPOL-UN Security Council Special Notice web link: https://www.interpol.int/en/How-we-work/Notices/View-UN-Notices-Individuals",null,null,null,"Russian Federation","UN List"]
["2019-05-14T20:44:25.777-04:00",111944,1,"HASSAN","DAHIR","AWEYS",null,"Al-Qaida","QDi.042","2001-11-09",null,null,"حسن ظاهرعويس","Family background: from the Hawiye's Habergidir, Ayr clan. Senior leader\nof Al-Itihaad Al-Islamiya (AIAI) (QDe.002) and Hizbul Islam in Somalia. Since 12 April\n2010, also subject to the sanctions measures set out in Security Council resolution 1844\n(2008) concerning Somalia and Eritrea (seehttps://www.un.org/sc/suborg/en/sanctions/751).\nReview pursuant to Security Council resolution 1822 (2008) was concluded on 22 Jun.\n2010. INTERPOL-UN Security Council Special Notice web link: https://www.interpol.int/en/How-we-work/Notices/View-UN-Notices-Individuals",null,"Sheikh",null,null,"UN List"]
["2019-05-14T20:44:25.777-04:00",2813253,1,"RICARDO","PEREZ","AYERAS",null,"Al-Qaida","QDi.248","2008-06-04",null,null,null,"Member of the Rajah Solaiman Movement (QDe.128). Arrested by the\nPhilippines authorities on 14 Mar. 2011. Review pursuant to Security Council resolution\n1822 (2008) was concluded on 13 May 2010. INTERPOL-UN Security Council Special Notice web link: https://www.interpol.int/en/How-we-work/Notices/View-UN-Notices-Individuals",null,null,null,"Philippines","UN List"]
["2019-05-14T20:44:25.777-04:00",6908525,1,"ABD AL-BASET","AZZOUZ",null,null,"Al-Qaida","QDi.371","2016-02-29",null,null,null,"Key operative in Al-Qaida (QDe.004). Under the direction of Aiman al-Zawahiri (QDi.006), recruited 200 militants in the eastern part of Libya. INTERPOL-UN Security Council Special Notice web link: https://www.interpol.int/en/How-we-work/Notices/View-UN-Notices-Individuals",null,null,null,"Libya","UN List"]
["2019-05-14T20:44:25.777-04:00",6908600,1,"Muhammad","Bahrum","Naim","Anggih Tamtomo","Al-Qaida","QDi.404","2017-07-20",null,null,null,"Syrian-based Indonesian national who has served in a variety of roles supporting the Islamic State in Iraq and the Levant, listed as Al-Qaida in Iraq (QDe.115). INTERPOL-UN Security Council Special Notice web link: https://www.interpol.int/en/How-we-work/Notices/View-UN-Notices-Individuals",null,null,null,"Indonesia","UN List"]
["2019-05-14T20:44:25.777-04:00",2983638,1,"ABDUL","ROSYID","RIDHO","BA'ASYIR","Al-Qaida","QDi.305","2012-03-12",null,null,null,"Father's name is Abu Bakar Ba'asyir (QDi.217). Brother of Abdul Rahim\nBa’aysir (QDi.293). Belongs to the leadership of and is involved in recruitment and\nfundraising for Jemmah Anshorut Tauhid (JAT) (QDe.133) Associated with Jemaah Islamiyah\n(QDe.092). INTERPOL-UN Security Council Special Notice web link: https://www.interpol.int/en/How-we-work/Notices/View-UN-Notices-Individuals",null,null,null,"Indonesia","UN List"]
["2019-05-14T20:44:25.777-04:00",111792,1,"ABU BAKAR","BA'ASYIR",null,null,"Al-Qaida","QDi.217","2006-04-21",null,null,null,"Formed Jemmah Anshorut Tauhid (JAT) (QDe.133) in 2008. In 2010, arrested for incitement to commit terrorism and fundraising with respect to a training camp in Aceh, Indonesia and sentenced to 15 years in 2011. Review pursuant to Security Council resolution 1822 (2008) was concluded on 8 Jun. 2010. INTERPOL-UN Security Council Special Notice web link: https://www.interpol.int/en/How-we-work/Notices/View-UN-Notices-Individuals",null,null,null,"Indonesia","UN List"]
["2019-05-14T20:44:25.777-04:00",2971675,1,"ABDUL RAHIM","BA'AYSIR",null,null,"Al-Qaida","QDi.293","2011-07-19",null,null,null,"Senior Jemaah Islamiyah (QDe.092.) leader. Father's name is Abu Bakar\nBa'asyir (QDi.217). INTERPOL-UN Security Council Special Notice web link: https://www.interpol.int/en/How-we-work/Notices/View-UN-Notices-Individuals",null,null,null,"Indonesia","UN List"]
["2019-05-14T20:44:25.777-04:00",112030,1,"SAID","BAHAJI",null,null,"Al-Qaida","QDi.080","2002-09-30",null,null,"سعيد باهاجى","Deputy head of the media committee of Al-Qaida (QDe.004) as at Apr. 2010. German authorities issued an arrest warrant for him on 21 Sep. 2001. Review pursuant to Security Council resolution 1822 (2008) was concluded on 20 May 2010. Reportedly deceased in September 2013 in the Afghanistan/Pakistan border area. Review pursuant to Security Council resolution 2253 (2015) was concluded on 21 Feb. 2019. INTERPOL-UN Security Council Special Notice web link: https://www.interpol.int/en/How-we-work/Notices/View-UN-Notices-Individuals",null,null,null,"Germany","UN List"]
["2019-05-14T20:44:25.777-04:00",2832991,1,"MAHMOUD","MOHAMMAD","AHMED","BAHAZIQ","Al-Qaida","QDi.266","2008-12-10",null,null,null,"Financier of Lashkar-e-Tayyiba (listed under permanent reference number\nQDe.118). Has served as the leader of Lashkar-e-Tayyiba in Saudi Arabia. Review pursuant to Security Council resolution 2253 (2015) was concluded on 21 Feb. 2019. INTERPOL-UN Security Council Special Notice web link: https://www.interpol.int/en/How-we-work/Notices/View-UN-Notices-Individuals",null,null,null,"Saudi Arabia","UN List"]
["2019-05-14T20:44:25.777-04:00",2999481,1,"AYYUB","BASHIR",null,null,"Al-Qaida","QDi.311","2012-10-18",null,null,"ایوب بشیر","Member of leadership council as of early 2010 and head of finance for the Islamic Movement of Uzbekistan (QDe.010). Coordinated financial and logistical support for the Islamic Movement of Uzbekistan in Afghanistan and Pakistan between 2009-2012. Transferred and delivered funds to Fazal Rahim (QDi.303). Reportedly deceased in an airstrike in Chordar, Kunduz Province of Afghanistan in Dec. 2015. Review pursuant to Security Council resolution 2253 (2015) was concluded on 7 Jun. 2018. Review pursuant to Security Council resolution 2253 (2015) was concluded on 21 Feb. 2019.  INTERPOL-UN Security Council Special Notice web link: https://www.interpol.int/en/How-we-work/Notices/View-UN-Notices-Individuals",null,"Qari",null,null,"UN List"]
["2019-05-14T20:44:25.777-04:00",112032,1,"MAHMOOD","SULTAN","BASHIR-UD-DIN",null,"Al-Qaida","QDi.055","2001-12-24",null,null,null,"Review pursuant to Security Council resolution 1822 (2008) was concluded\non 1 Jun. 2010.  Review pursuant to Security Council resolution 2253 (2015) was concluded on 21 Feb. 2019.  INTERPOL-UN Security Council Special Notice web link: https://www.interpol.int/en/How-we-work/Notices/View-UN-Notices-Individuals",null,null,null,"Pakistan","UN List"]
["2019-05-14T20:44:25.777-04:00",6908442,1,"TARKHAN","TAYUMURAZOVICH","BATIRASHVILI",null,"Al-Qaida","QDi.345","2015-01-23",null,null,null,"As of mid-2014, Syria-based senior military commander and shura council\nmember of Islamic State in Iraq and the Levant, listed as Al-Qaida in Iraq (AQI)\n(QDe.115). Led approximately 1,000 foreign fighters for ISIL and committed a number of\nattacks in northern Syria. INTERPOL-UN Security Council Special Notice web link: https://www.interpol.int/en/How-we-work/Notices/View-UN-Notices-Individuals",null,null,null,"Georgia","UN List"]
["2019-05-14T20:44:25.777-04:00",2902221,1,"MOHAMED","BELKALEM",null,null,"Al-Qaida","QDi.279","2010-04-22",null,null,"محمد بلكلام","Convicted in absentia by Algerian tribunal on 28 Mar. 1996. Algerian\ninternational arrest warrant number 03/09 of 6 Jun. 2009 issued by the Tribunal of Sidi\nMhamed, Algiers, Algeria. Algerian extradition request number 2307/09 of 3 Sep. 2009,\npresented to Malian authorities. Father’s name is Ali Belkalem. Mother’s name is Fatma\nSaadoudi. Member of The Organization of Al-Qaida in the Islamic Maghreb\n(QDe.014) INTERPOL-UN Security Council Special Notice web link: https://www.interpol.int/en/How-we-work/Notices/View-UN-Notices-Individuals",null,null,null,"Algerian","UN List"]
["2019-05-14T20:44:25.777-04:00",111794,1,"MOKHTAR","BELMOKHTAR",null,null,"Al-Qaida","QDi.136","2003-11-11",null,null,"مختار بلمختار","Father's name is Mohamed. Mother's name is Zohra Chemkha. Member of the\nCouncil of the Organization of Al-Qaida in the Islamic Maghreb (QDe.014) (AQIM). Head of\nAl Mouakaoune Biddam (QDe.139), Al Moulathamoun (QDe.140) and Al Mourabitoun (QDe.141).\nReview pursuant to Security Council resolution 1822 (2008) was concluded on 30 Jul.\n2009.  Review pursuant to Security Council resolution 2253 (2015) was concluded on 21 Feb. 2019.  INTERPOL-UN Security Council Special Notice web link: https://www.interpol.int/en/How-we-work/Notices/View-UN-Notices-Individuals",null,null,null,"Algeria","UN List"]
["2019-05-14T20:44:25.777-04:00",6908481,1,"BOUBAKER","BEN HABIB","BEN AL-HAKIM",null,"Al-Qaida","QDi.375","2015-09-29",null,null,null,"French-Tunisian foreign terrorist fighter for Islamic State in Iraq and the Levant (ISIL), listed as Al-Qaida in Iraq (QDe.115). INTERPOL-UN Security Council Special Notice web link: https://www.interpol.int/en/How-we-work/Notices/View-UN-Notices-Individuals",null,null,null,"France","UN List"]
["2019-05-14T20:44:25.777-04:00",6908468,1,"SOFIANE","BEN GOUMO",null,null,"Al-Qaida","QDi.355","2015-09-03",null,null,null,"Leader of Ansar al Charia Derna (QDe.145). INTERPOL-UN Security Council Special Notice web link: https://www.interpol.int/en/How-we-work/Notices/View-UN-Notices-Individuals",null,null,null,"Libya","UN List"]
["2019-05-14T20:44:25.777-04:00",6908413,1,"SEIFALLAH","BEN OMAR","BEN MOHAMED","BEN HASSINE","Al-Qaida","QDi.333","2014-09-23",null,null,"سيف الله بن عمر بن محمد بنحسين","Founder of the Tunisian Combatant Group (QDe.090) and leader of Ansar\nal-Shari'a in Tunisia (AAS-T) (QDe.143). Arrest warrant issued by Tunisian Court of First\nInstance on 23 Aug. 2013. INTERPOL-UN Security Council Special Notice web link: https://www.interpol.int/en/How-we-work/Notices/View-UN-Notices-Individuals",null,null,null,"Tunisia","UN List"]
["2019-05-14T20:44:25.777-04:00",6908534,1,"MOUNIR","BEN DHAOU","BEN BRAHIM","BEN HELAL","Al-Qaida","QDi.386","2016-02-29",null,null,null,"Foreign terrorist fighter facilitator experienced in establishing and securing travel routes. Deeply involved in providing material support to the Organization of Al-Qaida in the Islamic Maghreb (QDe.014) in North Africa. Assisted foreign terrorist fighters’ travel throughout North Africa and to Syrian Arab Republic to join Islamic State in Iraq and the Levant, listed as Al-Qaida in Iraq (QDe.115). INTERPOL-UN Security Council Special Notice web link: https://www.interpol.int/en/How-we-work/Notices/View-UN-Notices-Individuals",null,null,null,"Tunisia","UN List"]
["2019-05-14T20:44:25.777-04:00",6908536,1,"SALIM","BENGHALEM",null,null,"Al-Qaida","QDi.388","2016-02-29",null,null,null,"Syria-based French violent extremist and member of Islamic State in Iraq and the Levant, listed as Al-Qaida in Iraq (QDe.115). Subject to a European Arrest Warrant. INTERPOL-UN Security Council Special Notice web link: https://www.interpol.int/en/How-we-work/Notices/View-UN-Notices-Individuals",null,null,null,"France","UN List"]
["2019-05-14T20:44:25.777-04:00",2983834,1,"HAFIZ","ABDUL SALAM","BHUTTAVI",null,"Al-Qaida","QDi.307","2012-03-14",null,null,null,"Founding member of Lashkar-e-Tayyiba (QDe.118) and deputy to\nLashkar-e-Tayyiba leader Hafiz Muhammad Saeed (QDi.263). INTERPOL-UN Security Council Special Notice web link: https://www.interpol.int/en/How-we-work/Notices/View-UN-Notices-Individuals",null,"Maulavi",null,null,"UN List"]
["2019-05-14T20:44:25.777-04:00",6908767,1,"HAMZA","USAMA","MUHAMMAD","BIN LADEN","Al-Qaida","QDi.421","2019-02-28",null,null,"حمزة أسامة محمد بن لادن","Son of Usama bin Laden (deceased). Announced by Aiman Muhammed Rabi al-Zawahiri (QDi.006) as an official member of Al-Qaida (QDe.004). Has called for followers of Al-Qaida to commit terror attacks. Is seen as the most probable successor of al-Zawahiri.  INTERPOL-UN Security Council Special Notice web link: https://www.interpol.int/en/How-we-work/Notices/View-UN-Notices-Individuals",null,null,null,null,"UN List","2019-03-13"]
["2019-05-14T20:44:25.777-04:00",111942,1,"BILAL","BIN MARWAN",null,null,"Al-Qaida","QDi.009","2001-01-25",null,null,"بلال بن مروان","Senior lieutenant of UBL. Review pursuant to Security Council resolution\n1822 (2008) was concluded on 21 Jun. 2010. Review pursuant to Security Council resolution 2253 (2015) was concluded on 21 Feb. 2019. INTERPOL-UN Security Council Special Notice web link: https://www.interpol.int/en/How-we-work/Notices/View-UN-Notices-Individuals",null,null,null,null,"UN List","2019-05-01"]
["2019-05-14T20:44:25.777-04:00",6908720,1,"MOHAMAD","RAFI","BIN UDIN",null,"Al-Qaida","QDi.417","2018-08-23",null,null,null,"Senior member of Islamic State in Iraq and the Levant (ISIL), listed as Al-Qaida in Iraq (QDe.115). Recruited for ISIL and instructed individuals to perpetrate terrorist acts via online video. Physical description: eye colour: brown; hair colour: brown; complexion: dark. Speaks Malay, English, limited Arabic. INTERPOL-UN Security Council Special Notice web link: https://www.interpol.int/en/How-we-work/Notices/View-UN-Notices-Individuals",null,null,null,"Malaysia","UN List"]
["2019-05-14T20:44:25.777-04:00",111943,1,"RAMZI","MOHAMED","ABDULLAH","BINALSHIBH","Al-Qaida","QDi.081","2002-09-30",null,null,"رمزي محمد عبد الله بن الشيبة","Arrested in Karachi, Pakistan, 30 Sep. 2002. In custody of the United\nStates of America, as of May 2010. Review pursuant to Security Council resolution 1822\n(2008) was concluded on 25 May 2010. INTERPOL-UN Security Council Special Notice web link: https://www.interpol.int/en/How-we-work/Notices/View-UN-Notices-Individuals",null,null,null,"Yemen","UN List"]
["2019-05-14T20:44:25.777-04:00",112034,1,"AL-MOKHTAR","BEN MOHAMED","BEN AL-MOKHTAR","BOUCHOUCHA","Al-Qaida","QDi.063","2002-04-24",null,null,"المختار بن محمد بن المختار بوشوشة","Italian Fiscal Code: BCHMHT69R13Z352T. Mother’s name is Hedia Bannour.\nReview pursuant to Security Council resolution 1822 (2008) was concluded on 22 Apr.\n2010. INTERPOL-UN Security Council Special Notice web link: https://www.interpol.int/en/How-we-work/Notices/View-UN-Notices-Individuals",null,null,null,"Tunisia","UN List"]
["2019-05-14T20:44:25.777-04:00",111798,1,"FAYCAL","BOUGHANEMI",null,null,"Al-Qaida","QDi.188","2005-07-29",null,null,"فيصل بوغانمي","Italian Fiscal code: BGHFCL66R28Z352G. Sentenced to 7 years imprisonment\nin Italy on 29 Jun. 2007 by the Brescia Second Appeals Court. In detention in Italy as\nat Jun. 2009. Review pursuant to Security Council resolution 1822 (2008) was concluded\non 20 Jul. 2009. Review pursuant to Security Council resolution 2253 (2015) was concluded on 21 Feb. 2019.  INTERPOL-UN Security Council Special Notice web link: https://www.interpol.int/en/How-we-work/Notices/View-UN-Notices-Individuals",null,null,null,"Tunisia","UN List"]
["2019-05-14T20:44:25.777-04:00",111902,1,"BOUBEKEUR","BOULGHITI",null,null,"Al-Qaida","QDi.058","2002-01-11","Male",null,null,"Finance chief of the Afghan Support Committee (ASC) (QDe.069). Al-Qaida (QDe.004) facilitator and communication expert. Believed to be in Algeria as at Apr. 2010. Son of Mohamed and Fatma Aribi. Review pursuant to Security Council resolution 1822 (2008) was concluded on 21 Jun. 2010. Review pursuant to Security Council resolution 2253 (2015) was concluded on 21 Feb. 2019.  INTERPOL-UN Security Council Special Notice web link: https://www.interpol.int/en/How-we-work/Notices/View-UN-Notices-Individuals",null,null,null,"Algeria","UN List"]
["2019-05-14T20:44:25.777-04:00",111799,1,"HAMADI","BEN ABDUL AZIZ","BEN ALI","BOUYEHIA","Al-Qaida","QDi.143","2003-11-12",null,null,"حمادي بن عبد العزيز بن علي بويحي","In prison in Italy until 28 Jul. 2011. Review pursuant to Security\nCouncil resolution 1822 (2008) was concluded on 21 Jun. 2010. INTERPOL-UN Security Council Special Notice web link: https://www.interpol.int/en/How-we-work/Notices/View-UN-Notices-Individuals",null,null,null,"Tunisia","UN List"]
["2019-05-14T20:44:25.777-04:00",6908547,1,"ASLAN","AVGAZAROVICH","BYUTUKAEV",null,"Al-Qaida","QDi.396","2016-08-03",null,null,"Аслан Авгазарович Бютукаев","Wanted by the authorities of the Russian Federation for terrorist crimes. Commands a suicide battalion of Riyadus-Salikhin Reconnaissance and Sabotage Battalion of Chechen Martyrs (RSRSBCM) (QDe.100). INTERPOL-UN Security Council Special Notice web link: https://www.interpol.int/en/How-we-work/Notices/View-UN-Notices-Individuals",null,null,null,"Russian Federation","UN List"]
["2019-05-14T20:44:25.777-04:00",6908601,1,"Malik","Ruslanovich","Barkhanoev",null,"Al-Qaida","QDi.405","2017-07-20",null,null,null,"Joined the Islamic State in Iraq and the Levant (ISIL), listed as Al-Qaida in Iraq (QDe.115) in September 2016. INTERPOL-UN Security Council Special Notice web link: https://www.interpol.int/en/How-we-work/Notices/View-UN-Notices-Individuals",null,null,null,"Russian Federation","UN List"]
["2019-05-14T20:44:25.777-04:00",6908489,1,"AKHMED","RAJAPOVICH","CHATAEV",null,"Al-Qaida","QDi.365","2015-10-02",null,null,"Ахмед Ражапович Чатаев","As at Aug. 2015, one of the leaders of the Islamic State in Iraq and the Levant (ISIL), listed as Al-Qaida in Iraq (QDe.115), commanding directly 130 militants. Physical description: eye colour: brown, hair colour: black, build: solid; distinguishing marks: oval face, beard, missing a right hand and left leg, speaks Russian, Chechen and possibly German and Arabic. Wanted by the authorities of the Russian Federation for terrorist crimes committed in its territory. Photo available for inclusion in the INTERPOL-UN Security Council Special Notice. INTERPOL-UN Security Council Special Notice web link: https://www.interpol.int/en/How-we-work/Notices/View-UN-Notices-Individuals",null,null,null,"Russian Federation","UN List"]
["2019-05-14T20:44:25.777-04:00",2999482,1,"AAMIR","ALI","CHAUDHRY",null,"Al-Qaida","QDi.312","2012-10-18",null,null,"عامر علی چوہدری","Electronics and explosives expert for Tehrik-e Taliban Pakistan (TTP)\n(QDe.132). Involved in attack planning for TTP. Provided financial and logistical\nsupport for TTP and participated in TTP-sponsored militant training. Review pursuant to Security Council resolution 2253 (2015) was concluded on 21 Feb. 2019.  INTERPOL-UN Security Council Special Notice web link: https://www.interpol.int/en/How-we-work/Notices/View-UN-Notices-Individuals",null,null,null,"Pakistan","UN List"]
["2019-05-14T20:44:25.777-04:00",111800,1,"YASSINE","CHEKKOURI",null,null,"Al-Qaida","QDi.070","2002-09-03",null,null,"ياسين شكوري","Mother’s name is Feue Hlima Bent Barka and father’s name is Abderrahmane\nMohammed Ben Azzouz. Deported from Italy to Morocco on 26 Feb. 2004. Review pursuant to\nSecurity Council resolution 1822 (2008) was concluded on 21 Jun. 2010. INTERPOL-UN Security Council Special Notice web link: https://www.interpol.int/en/How-we-work/Notices/View-UN-Notices-Individuals",null,null,null,"Morocco","UN List"]
["2019-05-14T20:44:25.777-04:00",6908482,1,"PETER","CHERIF",null,null,"Al-Qaida","QDi.376","2015-09-29",null,null,null,"Member of Al-Qaida in the Arabian Peninsula (AQAP) (QDe.129). Convicted in absentia to five years in prison in France in 2012. Wanted by French authorities as of 2015. INTERPOL-UN Security Council Special Notice web link: https://www.interpol.int/en/How-we-work/Notices/View-UN-Notices-Individuals",null,null,null,"France","UN List"]
["2019-05-14T20:44:25.777-04:00",6908742,1,"ANJEM","CHOUDARY",null,null,"Al-Qaida","QDi.419","2018-10-15",null,null,null,"Pledged allegiance to Islamic State in Iraq and the Levant (ISIL), listed as Al-Qaida in Iraq (QDe.115) in July 2014. Imprisoned in the United Kingdom in September 2014 with a tentative release in October 2018. INTERPOL-UN Security Council Special Notice web link: https://www.interpol.int/en/How-we-work/Notices/View-UN-Notices-Individuals",null,null,null,"United Kingdom of Great Britain and Northern Ireland","UN List"]
["2019-05-14T20:44:25.777-04:00",2982105,1,"MONIR","CHOUKA",null,null,"Al-Qaida","QDi.300","2012-01-25",null,null,null,"Associated with Islamic Movement of Uzbekistan (QDe.010). Brother of\nYassin Chouka (QDi.301) Arrest warrant issued by the investigating judge of the German\nFederal Court of Justice on 5 Oct. 2010. INTERPOL-UN Security Council Special Notice web link: https://www.interpol.int/en/How-we-work/Notices/View-UN-Notices-Individuals",null,null,null,"Germany","UN List"]
["2019-05-14T20:44:25.777-04:00",2981652,1,"YASSIN","CHOUKA",null,null,"Al-Qaida","QDi.301","2012-01-25",null,null,null,"Associated with Islamic Movement of Uzbekistan (QDe.010). Brother of\nMonir Chouka (QDi.300). Arrest warrant issued by the investigating judge of the German\nFederal Court of Justice on 5 Oct. 2010. INTERPOL-UN Security Council Special Notice web link: https://www.interpol.int/en/How-we-work/Notices/View-UN-Notices-Individuals",null,null,null,"Germany","UN List"]
["2019-05-14T20:44:25.777-04:00",112035,1,"MAXAMED","CABDULLAAH","CIISE",null,"Al-Qaida","QDi.141","2003-11-12",null,null,null,"Present in Somalia as of Apr. 2009 following transfer from United\nKingdom. Review pursuant to Security Council resolution 1822 (2008) was concluded on 21\nJun. 2010. INTERPOL-UN Security Council Special Notice web link: https://www.interpol.int/en/How-we-work/Notices/View-UN-Notices-Individuals",null,null,null,"Somalia","UN List"]
["2019-05-14T20:44:25.777-04:00",6908611,1,"SHANE","DOMINIC","CRAWFORD",null,"Al-Qaida","QDi.410","2017-08-18","Male","Trinidad and Tobago",null,"English language propagandist for Islamic State in Iraq and the Levant (ISIL), listed as Al-Qaida in Iraq (AQI) (QDe.115). Wanted in Trinidad and Tobago for possession of ammunition and firearms and receiving stolen goods. Physical description: eye colour: brown; hair colour: dark; complexion: light brown; build: medium; height: 174cm; weight: 64kg; speaks English, Arabic.  INTERPOL-UN Security Council Special Notice web link: https://www.interpol.int/en/How-we-work/Notices/View-UN-Notices-Individuals",null,null,null,"Trinidad and Tobago","UN List"]
["2019-05-14T20:44:25.777-04:00",6908444,1,"DENIS","MAMADOU","GERHARD","CUSPERT","Al-Qaida","QDi.347","2015-02-11",null,null,null,"Physical description: eye colour: brown; hair colour: black; height:\n178cm; Tattoos: BROKEN DREAMS in letters (on back) and landscape of Africa (on right\nupper arm). Father’s name: Richard Luc-Giffard; Mother’s name: Sigrid Cuspert. European\narrest warrant issued by investigating judge at the Federal Court of Justice of Germany,\ndated 14 May 2014 and 5 Dec. 2014. Review pursuant to Security Council resolution 2253 (2015) was concluded on 21 Feb. 2019. INTERPOL-UN Security Council Special Notice web link: https://www.interpol.int/en/How-we-work/Notices/View-UN-Notices-Individuals",null,null,null,"Germany","UN List"]
["2019-05-14T20:44:25.777-04:00",6908411,1,"ANDERS","CAMEROON","OSTENSVIG","DALE","Al-Qaida","QDi.331","2014-09-23",null,null,null,"Member of Al-Qaida in the Arabian Peninsula (AQAP) (QDe.129). Physical description: eye colour: brown; hair colour: brown; height: 185 cm. INTERPOL-UN Security Council Special Notice web link: https://www.interpol.int/en/How-we-work/Notices/View-UN-Notices-Individuals",null,null,null,"Norway","UN List"]
["2019-05-14T20:44:25.777-04:00",2813149,1,"PIO","ABOGNE","DE VERA",null,"Al-Qaida","QDi.245","2008-06-04",null,null,null,"Member of the Rajah Solaiman Movement (QDe.128), Abu Sayyaf Group\n(QDe.001) and Jemaah Islamiyah (QDe.092). Father's name is Honorio Devera. Mother's name\nis Fausta Abogne. In detention in the Philippines as of May 2011. Review pursuant to\nSecurity Council resolution 1822 (2008) was concluded on 13 May 2010. INTERPOL-UN Security Council Special Notice web link: https://www.interpol.int/en/How-we-work/Notices/View-UN-Notices-Individuals",null,null,null,"Philippines","UN List"]
["2019-05-14T20:44:25.777-04:00",2816243,1,"AHMED","DEGHDEGH",null,null,"Al-Qaida","QDi.252","2008-07-03",null,null,"أحمد دغداغ","Belongs to the leadership and is the finance chief of the Organization of\nAl-Qaida in the Islamic Maghreb (QDe.014). Mother’s name is Zakia Chebira. Father’s name\nis Lakhdar. INTERPOL-UN Security Council Special Notice web link: https://www.interpol.int/en/How-we-work/Notices/View-UN-Notices-Individuals",null,null,null,"Algeria","UN List"]
["2019-05-14T20:44:25.777-04:00",2813036,1,"REDENDO","CAIN","DELLOSA",null,"Al-Qaida","QDi.246","2008-06-04",null,null,null,"Member of the Rajah Solaiman Movement (QDe.128) and linked to the Abu\nSayyaf Group (QDe.001). Father's name is Fernando Rafael Dellosa. Mother's name is\nEditha Parado Cain. In detention in the Philippines as of Jan. 2010. Review pursuant to\nSecurity Council resolution 1822 (2008) was concluded on 13 May 2010. INTERPOL-UN Security Council Special Notice web link: https://www.interpol.int/en/How-we-work/Notices/View-UN-Notices-Individuals",null,null,null,"Philippines","UN List"]
["2019-05-14T20:44:25.777-04:00",2813147,1,"FELICIANO","SEMBORIO","DELOS REYES JR.",null,"Al-Qaida","QDi.243","2008-06-04",null,null,"فلسيانو سمبوريو ديلوس رييس الإبن","Member of the Rajah Solaiman Movement (QDe.128). Father's name is\nFeliciano Delos Reyes Sr. Mother's name is Aurea Semborio. In detention in the\nPhilippines as of May 2011. Review pursuant to Security Council resolution 1822 (2008)\nwas concluded on 13 May 2010. INTERPOL-UN Security Council Special Notice web link: https://www.interpol.int/en/How-we-work/Notices/View-UN-Notices-Individuals",null,"Ustadz",null,null,"UN List"]
["2019-05-14T20:44:25.777-04:00",6908422,1,"OUMAR","DIABY",null,null,"Al-Qaida","QDi.342","2014-09-23",null,null,null,"A leader of an armed group linked to Al-Nusrah Front for the People of\nthe Levant (QDe.137) and a key facilitator for a Syrian foreign terrorist fighter\nnetwork. Active in terrorist propaganda through the Internet. INTERPOL-UN Security Council Special Notice web link: https://www.interpol.int/en/How-we-work/Notices/View-UN-Notices-Individuals",null,null,null,"Senegal","UN List",null,"Low","Omsen, Oumar Omsen",null,null,null,null,null,null,null,null,"Syrian Arab Republic","located in","EXACT",null,"1975-08-05",null,null,null,"Dakar",null,"Senegal"]
["2019-05-14T20:44:25.777-04:00",112037,1,"KAMEL","DJERMANE",null,null,"Al-Qaida","QDi.167","2004-05-03",null,null,"كمال جرمان","In detention in Algeria as at April 2010. Arrest warrant issued by the\nGerman authorities on 9 Oct. 2003 for involvement in kidnapping. Former member of the\nKatibat Tarek Ibn Ziad of The Organization of Al-Qaida in the Islamic Maghreb (QDe.014).\nReview pursuant to Security Council resolution 1822 (2008) was concluded on 27 Jul.\n2010. INTERPOL-UN Security Council Special Notice web link: https://www.interpol.int/en/How-we-work/Notices/View-UN-Notices-Individuals",null,null,null,"Algeria","UN List"]
["2019-05-14T20:44:25.777-04:00",2816344,1,"YAHIA","DJOUADI",null,null,"Al-Qaida","QDi.249","2008-07-03",null,null,"يحيى جوادي","Belongs to the leadership of the Organization of Al-Qaida in the Islamic\nMaghreb (listed under permanent reference number QDe.014). Located in Northern Mali as\nof Jun. 2008. Mother’s name is Zohra Fares. Father’s name is Mohamed. INTERPOL-UN Security Council Special Notice web link: https://www.interpol.int/en/How-we-work/Notices/View-UN-Notices-Individuals",null,null,null,"Algeria","UN List"]
["2019-05-14T20:44:25.777-04:00",2785476,1,"ABDELMALEK","DROUKDEL",null,null,"Al-Qaida","QDi.232","2007-08-27",null,null,"عبد المالك دروكدال","Head of The Organization of Al-Qaida in the Islamic Maghreb (QDe.014).\nSentenced in absentia to life imprisonment in Algeria on 21 March 2007. Father's name is\nRabah Droukdel. Mother's name is Z'hour Zdigha. Review pursuant to Security Council\nresolution 1822 (2008) was concluded on 4 May 2009. Review pursuant to Security Council resolution 2253 (2015) was concluded on 21 Feb. 2019.  INTERPOL-UN Security Council Special Notice web link: https://www.interpol.int/en/How-we-work/Notices/View-UN-Notices-Individuals",null,null,null,"Algeria","UN List"]
["2019-05-14T20:44:25.777-04:00",112038,1,"LIONEL","DUMONT",null,null,"Al-Qaida","QDi.095","2003-06-25",null,null,null,"In custody in France as of May 2004. Sentenced to 25 years imprisonment in France in 2007. His sentence is due to end on 13 Jul. 2023 and his unconditional detention to end on 13 Aug. 2020. Review pursuant to Security Council resolution 1822 (2008) was concluded on 15 Jun. 2010. INTERPOL-UN Security Council Special Notice web link: https://www.interpol.int/en/How-we-work/Notices/View-UN-Notices-Individuals",null,null,null,"France","UN List"]
["2019-05-14T20:44:25.777-04:00",112039,1,"AGUS","DWIKARNA",null,null,"Al-Qaida","QDi.111","2003-09-09",null,null,null,"Arrested 13 Mar. 2002, sentenced 12 July 2002 in the Philippines.\nReleased from custody in the Philippines on 1 Jan. 2014 and subsequently deported to\nIndonesia. Physical description: height 165 cm. Photo available for inclusion in the\nINTERPOL-UN Security Council Special Notice. Review pursuant to Security Council\nresolution 1822 (2008) was concluded on 25 May 2010. INTERPOL-UN Security Council Special Notice web link: https://www.interpol.int/en/How-we-work/Notices/View-UN-Notices-Individuals",null,null,null,"Indonesia","UN List"]
["2019-05-14T20:44:25.777-04:00",111947,1,"ABDULLAH","AHMED","ABDULLAH","EL ALFI","Al-Qaida","QDi.019","2001-10-17",null,null,"عبد الله احمد عبدالله الالفي","Afghanistan. Review pursuant to Security Council resolution 1822 (2008)\nwas concluded on 21 Jun. 2010. INTERPOL-UN Security Council Special Notice web link: https://www.interpol.int/en/How-we-work/Notices/View-UN-Notices-Individuals",null,null,null,"Egypt","UN List"]
["2019-05-14T20:44:25.777-04:00",112040,1,"RADI","ABD EL SAMIE","ABOU EL YAZID","EL AYASHI","Al-Qaida","QDi.142","2003-11-12",null,null,"راضي عبد السميع أبواليزيد العياشي","Sentenced to ten years of imprisonment by the Court of first instance of\nMilan on 21 Sep. 2006. In custody in Italy. Due for release on 6 Jan. 2012. Subject to\nexpulsion from Italy after serving the sentence. Review pursuant to Security Council\nresolution 1822 (2008) was concluded on 21 Jun. 2010. Review pursuant to Security Council resolution 2253 (2015) was concluded on 21 Feb. 2019.  INTERPOL-UN Security Council Special Notice web link: https://www.interpol.int/en/How-we-work/Notices/View-UN-Notices-Individuals",null,null,null,"Egypt","UN List"]
["2019-05-14T20:44:25.777-04:00",2830919,1,"REDOUANE","EL HABHAB",null,null,"Al-Qaida","QDi.262","2008-11-12",null,"Germany",null,"Released from custody in Germany in Apr. 2012. INTERPOL-UN Security Council Special Notice web link: https://www.interpol.int/en/How-we-work/Notices/View-UN-Notices-Individuals",null,null,null,"Germany","UN List"]
["2019-05-14T20:44:25.777-04:00",111951,1,"MOUNIR","EL MOTASSADEQ",null,null,"Al-Qaida","QDi.082","2002-09-30",null,null,"منير المتصدق","Arrested on 28 Nov. 2001 and found guilty in Germany of being an\naccessory to murder and of membership in a terrorist organization and sentenced to 15\nyears of imprisonment on 8 Jan. 2007. Father's name is Brahim Brik. Mother's name is\nHabiba Abbes. Review pursuant to Security Council resolution 1822 (2008) was concluded\non 20 May 2010. INTERPOL-UN Security Council Special Notice web link: https://www.interpol.int/en/How-we-work/Notices/View-UN-Notices-Individuals",null,null,null,"Morocco","UN List"]
["2019-05-14T20:44:25.777-04:00",111805,1,"ABD EL KADER","MAHMOUD","MOHAMED","EL SAYED","Al-Qaida","QDi.065","2002-04-24",null,null,"عبد القادر محمود محمد السيد","Italian Fiscal Code: SSYBLK62T26Z336L. Sentenced to 8 years imprisonment in Italy on 2 February 2004. Considered a fugitive from justice by the Italian authorities. Review pursuant to Security Council resolution 1822 (2008) was concluded on 22 Apr. 2010. Review pursuant to Security Council resolution 2253 (2015) was concluded on 21 Feb. 2019.  INTERPOL-UN Security Council Special Notice web link: https://www.interpol.int/en/How-we-work/Notices/View-UN-Notices-Individuals",null,null,null,"Egypt","UN List"]
["2019-05-14T20:44:25.777-04:00",6908609,1,"ELSHAFEE","EL SHEIKH",null,null,"Al-Qaida","QDi.409","2017-07-20",null,null,null,"Foreign terrorist fighter with Islamic State in Iraq and the Levant (ISIL), listed as Al-Qaida in Iraq (QDe.115), in the Syrian Arab Republic. Physical description: eye colour: dark brown; hair colour: black; complexion: dark. Distinguishing marks: beard. Mother’s name: Maha Elgizouli. INTERPOL-UN Security Council Special Notice web link: https://www.interpol.int/en/How-we-work/Notices/View-UN-Notices-Individuals",null,null,null,"United Kingdom of Great Britain and Northern Ireland","UN List"]
["2019-05-14T20:44:25.777-04:00",111806,1,"SAMI","BEN KHAMIS","BEN SALEH","ELSSEID","Al-Qaida","QDi.064","2002-04-24",null,null,"سامي بن خميس بن صالح الصيد","Mother’s name is Beya Al-Saidani. Deported from Italy to Tunisia on 2\nJun. 2008. Imprisoned in Tunisia in Aug. 2014. Review pursuant to Security Council\nresolution 1822 (2008) was concluded on 22 Apr. 2010. INTERPOL-UN Security Council Special Notice web link: https://www.interpol.int/en/How-we-work/Notices/View-UN-Notices-Individuals",null,null,null,"Tunisia","UN List"]
["2019-05-14T20:44:25.777-04:00",6908494,1,"EMRAH","ERDOGAN",null,null,"Al-Qaida","QDi.362","2015-11-30",null,null,null,"Former foreign terrorist fighter affiliated with Al-Qaida (QDe.004) in North Waziristan, Pakistan (2010-2011) and with Harakat Al-Shabaab Al-Mujaahidiin (Al-Shabaab) in Somalia (2011-2012). Convicted to seven years of imprisonment by the Higher Regional Court in Frankfurt/Main, Germany in 2014. Physical description: eye colour brown, hair colour brown, build: strong, weight: 92 kg, height: 176 cm, birthmark on right back. Mother’s name: Emine Erdogan. Father’s name: Sait Erdogan. INTERPOL-UN Security Council Special Notice web link: https://www.interpol.int/en/How-we-work/Notices/View-UN-Notices-Individuals",null,null,null,"Germany","UN List"]
["2019-05-14T20:44:25.777-04:00",112042,1,"MOUSSA","BEN OMAR","BEN ALI","ESSAADI","Al-Qaida","QDi.096","2003-06-25",null,null,"موسى بن عمر بن علي السعدي","Considered a fugitive from justice by the Italian authorities (as of Nov.\n2009). Left Sudan to Tunisia in 2011. Review pursuant to Security Council resolution\n1822 (2008) was concluded on 15 Jun. 2010. INTERPOL-UN Security Council Special Notice web link: https://www.interpol.int/en/How-we-work/Notices/View-UN-Notices-Individuals",null,null,null,"Tunisia","UN List"]
["2019-05-14T20:44:25.777-04:00",112043,1,"ZAKARYA","ESSABAR",null,null,"Al-Qaida","QDi.083","2002-09-30",null,null,"زكريا الصبار","Father's name is Mohamed ben Ahmed. Mother's name is Sfia bent Toubali.\nReview pursuant to Security Council resolution 1822 (2008) was concluded on 20 May\n2010. INTERPOL-UN Security Council Special Notice web link: https://www.interpol.int/en/How-we-work/Notices/View-UN-Notices-Individuals",null,null,null,"Morocco","UN List"]
["2019-05-14T20:44:25.777-04:00",6908452,1,"MAULANA","FAZLULLAH",null,null,"Al-Qaida","QDi.352","2015-04-07-04:00",null,null,null,"Commander of Tehrik-e Taliban Pakistan (TTP) (QDe.132) since 7 Nov. 2013.\nLed the local TTP in Pakistan’s northwest valley of Swat from 2007 to 2009. Review pursuant to Security Council resolution 2253 (2015) was concluded on 21 Feb. 2019. INTERPOL-UN Security Council Special Notice web link: https://www.interpol.int/en/How-we-work/Notices/View-UN-Notices-Individuals",null,null,null,null,"UN List","2019-05-01"]
["2019-05-14T20:44:25.777-04:00",6908543,1,"TUAH","FEBRIWANSYAH",null,null,"Al-Qaida","QDi.393","2016-04-20",null,null,null,"Leader of an Indonesia-based organization that has publicly sworn allegiance to Islamic State in Iraq and the Levant (ISIL), listed as Al-Qaida in Iraq (QDe.115). Provided support to ISIL in the areas of recruitment, fundraising, and travel. Detained in Indonesia by Indonesian authorities as of 21 March 2015 and charged with terrorism offenses.  INTERPOL-UN Security Council Special Notice web link: https://www.interpol.int/en/How-we-work/Notices/View-UN-Notices-Individuals",null,null,null,"Indonesia","UN List"]
["2019-05-14T20:44:25.777-04:00",2816345,1,"SALAH EDDINE","GASMI",null,null,"Al-Qaida","QDi.251","2008-07-03",null,null,"صالح قاسمي","Belongs to the leadership and is in charge of information committee of the Organization of Al-Qaida in the Islamic Maghreb (QDe.014). Mother’s name is Yamina Soltane. Father’s name is Abdelaziz. Associated with Abdelmalek Droukdel (QDi.232). Arrested in Algeria on 16 Dec. 2012. Incarcerated at the El-Harrach prison in Algiers, as of August 2015. INTERPOL-UN Security Council Special Notice web link: https://www.interpol.int/en/How-we-work/Notices/View-UN-Notices-Individuals",null,null,null,"Algeria","UN List"]
["2019-05-14T20:44:25.777-04:00",6908490,1,"TARKHAN","ISMAILOVICH","GAZIEV",null,"Al-Qaida","QDi.366","2015-10-02",null,null,"Тархан Исмаилович Газиев","As at Aug. 2015, leads Jamaat Tarkhan, a terrorist group that forms part of the Islamic State in Iraq and the Levant, listed as Al-Qaida in Iraq (QDe.115). Wanted by the authorities of the Russian Federation for terrorist crimes committed in its territory, including through an international arrest warrant. Photo available for inclusion in the INTERPOL-UN Security Council Special Notice. INTERPOL-UN Security Council Special Notice web link: https://www.interpol.int/en/How-we-work/Notices/View-UN-Notices-Individuals",null,null,null,"Russian Federation","UN List"]
["2019-05-14T20:44:25.777-04:00",112044,1,"AHMED","KHALFAN","GHAILANI",null,"Al-Qaida","QDi.028","2001-10-17",null,null,null,"Apprehended in July 2004 and in custody for trial in the United States of\nAmerica, as at October 2010. Review pursuant to Security Council resolution 1822 (2008)\nwas concluded on 21 Jun. 2010. INTERPOL-UN Security Council Special Notice web link: https://www.interpol.int/en/How-we-work/Notices/View-UN-Notices-Individuals",null,null,null,"United Republic of Tanzania","UN List"]
["2019-05-14T20:44:25.777-04:00",2816565,1,"AMOR","MOHAMED","GHEDEIR",null,"Al-Qaida","QDi.250","2008-07-03",null,null,"عمر محمد قدير","Associated with the Organization of Al-Qaida in the Islamic Maghreb (QDe.014). Located in Northern Mali as of Jun. 2008. Mother’s name is Benarouba Bachira. Father’s name is Mabrouk. He usurped the identity of Abid Hammadou, who allegedly died in Chad in 2004. Reportedly deceased as of 24 February 2013. Review pursuant to Security Council resolution 2253 (2015) was concluded on 21 Feb. 2019.  INTERPOL-UN Security Council Special Notice web link: https://www.interpol.int/en/How-we-work/Notices/View-UN-Notices-Individuals",null,null,null,"Algeria","UN List"]
["2019-05-14T20:44:25.777-04:00",6908492,1,"ZAURBEK","SALIMOVICH","GUCHAEV",null,"Al-Qaida","QDi.367","2015-10-02",null,null,"Заурбек Салимович Гучаев","As at Aug. 2015, one of the leaders of the Army of Emigrants and Supporters (QDe.148). Wanted by the authorities of the Russian Federation for terrorist crimes committed in its territory. Photo available for inclusion in the INTERPOL-UN Security Council Special Notice. INTERPOL-UN Security Council Special Notice web link: https://www.interpol.int/en/How-we-work/Notices/View-UN-Notices-Individuals",null,null,null,"Russian Federation","UN List"]
["2019-05-14T20:44:25.777-04:00",6908421,1,"KEVIN","JORDAN","AXEL","GUIAVARCH","Al-Qaida","QDi.341","2014-09-23","Male",null,null,"French terrorist fighter associated with Al-Nusrah Front for the People of the Levant (QDe.137) and the Islamic State in Iraq and the Levant (ISIL), listed as Al-Qaida in Iraq (QDe.115). Facilitated foreign terrorist fighters travel from France to Syria. Activist in violent propaganda through the Internet. A warrant for his arrest was issued in 2014 by French authorities and executed in Jan. 2017 upon his expulsion from Turkey where he was arrested in Jun. 2016.  INTERPOL-UN Security Council Special Notice web link: https://www.interpol.int/en/How-we-work/Notices/View-UN-Notices-Individuals",null,null,null,"France","UN List"]
["2019-05-14T20:44:25.777-04:00",111952,1,"GUN GUN","RUSMAN","GUNAWAN",null,"Al-Qaida","QDi.218","2006-04-21",null,null,null,"Brother of Nurjaman Riduan Isamuddin (QDi.087). Review pursuant to\nSecurity Council resolution 1822 (2008) was concluded on 8 Jun. 2010. INTERPOL-UN Security Council Special Notice web link: https://www.interpol.int/en/How-we-work/Notices/View-UN-Notices-Individuals",null,null,null,"Indonesia","UN List"]
["2019-05-14T20:44:25.777-04:00",111919,1,"SALIM","AHMAD","SALIM","HAMDAN","Al-Qaida","QDi.003","2001-01-25",null,null,"سالم أحمد سالم حمدان","Driver and private bodyguard to Usama bin Laden (deceased) from 1996\nuntil 2001. Transferred from United States custody to Yemen in Nov. 2008. Review\npursuant to Security Council resolution 1822 (2008) was concluded on 8 Jul.\n2010. INTERPOL-UN Security Council Special Notice web link: https://www.interpol.int/en/How-we-work/Notices/View-UN-Notices-Individuals",null,null,null,"Yemen","UN List"]
["2019-05-14T20:44:25.777-04:00",112033,1,"ADEL","BEN AL-AZHAR","BEN YOUSSEF","HAMDI","Al-Qaida","QDi.068","2002-09-03",null,null,"عادل بن الأزهر بن يوسف حمدي","Deported from Italy to Tunisia on 28 February 2004. Serving a 12-year\nprison sentence in Tunisia for membership in a terrorist organization abroad as at Jan.\n2010. Arrested in Tunisia in 2013. Legally changed family name from Ben Soltane to Hamdi\nin 2014. Review pursuant to Security Council resolution 1822 (2008) was concluded on 21\nJun. 2010. INTERPOL-UN Security Council Special Notice web link: https://www.interpol.int/en/How-we-work/Notices/View-UN-Notices-Individuals",null,null,null,"Tunisia","UN List"]
["2019-05-14T20:44:25.777-04:00",112075,1,"ISNILON","TOTONI","HAPILON",null,"Al-Qaida","QDi.204","2005-12-06",null,null,null,"Senior leader of Abu Sayyaf Group (ASG) (QDe.001). Leader of local affiliates of the Islamic State in Iraq and the Levant (ISIL), listed as Al-Qaida in Iraq (AQI) (QDe.115), in the southern Philippines as of May 2017. Physical description: eye colour: brown; hair colour: brown; height: 5 feet 6 inches – 168 cm; weight: 120 pounds – 54 kg; build: slim; complexion: light-skinned; has facial birthmarks. Review pursuant to Security Council resolution 1822 (2008) was concluded on 8 Jun. 2010. Wanted by the Philippines authorities for terrorist offences and by authorities of the United States of America for involvement in terrorist acts.  Photos included in  INTERPOL-UN Security Council Special Notice web link: https://www.interpol.int/en/How-we-work/Notices/View-UN-Notices-Individuals",null,null,null,"Philippines","UN List"]
["2019-05-14T20:44:25.777-04:00",2854925,1,"ABDUL","HAQ",null,null,"Al-Qaida","QDi.268","2009-04-15","Male",null,"阿不都·哈克","Overall leader and commander of the Eastern Turkistan Islamic Movement (QDe.088). Involved in fundraising and recruitment for this organization. INTERPOL-UN Security Council Special Notice web link: https://www.interpol.int/en/How-we-work/Notices/View-UN-Notices-Individuals",null,null,null,"China","UN List"]
["2019-05-14T20:44:25.777-04:00",6908483,1,"MAXIME","HAUCHARD",null,null,"Al-Qaida","QDi.378","2015-09-29",null,null,null,"French foreign terrorist fighter for Islamic State in Iraq and the Levant, listed as Al-Qaida in Iraq (QDe.115). French arrest warrant issued on 20 Jan. 2015 by a magistrate of the anti-terrorism division of the Prosecutor’s Office in Paris for murder in connection with a terrorist entity and participation in a terrorist criminal association. INTERPOL-UN Security Council Special Notice web link: https://www.interpol.int/en/How-we-work/Notices/View-UN-Notices-Individuals",null,null,null,"France","UN List"]
["2019-05-14T20:44:25.777-04:00",112078,1,"RAED","MUHAMMAD HASAN","MUHAMMAD","HIJAZI","Al-Qaida","QDi.029","2001-10-17",null,null,"رائد محمد حسن محمد حجازي","In custody in Jordan since 26 Feb. 2015 for recruitment and support to Islamic State in Iraq and the Levant (ISIL), listed as Al-Qaida in Iraq (QDe.115). Father’s name is Mohammad Hijazi. Mother’s name is Sakina. Review pursuant to Security Council resolution 1822 (2008) was concluded on 21 Jun. 2010. INTERPOL-UN Security Council Special Notice web link: https://www.interpol.int/en/How-we-work/Notices/View-UN-Notices-Individuals",null,null,null,"Jordan","UN List"]
["2019-05-14T20:44:25.777-04:00",6908475,1,"OMAR","ALI","HUSSAIN",null,"Al-Qaida","QDi.359","2015-09-28",null,null,null,"Foreign terrorist fighter with Islamic State in Iraq and the Levant (ISIL), listed as Al-Qaida in Iraq (QDe.115), in the Syrian Arab Republic. Physical description: eye colour: brown; hair colour: brown/black. Photo available for inclusion in the INTERPOL-UN Security Council Special Notice. INTERPOL-UN Security Council Special Notice web link: https://www.interpol.int/en/How-we-work/Notices/View-UN-Notices-Individuals",null,null,null,"United Kingdom of Great Britain and Northern Ireland","UN List"]
["2019-05-14T20:44:25.777-04:00",111810,1,"MOHAMMAD","TAHIR","HAMMID","HUSSEIN","Al-Qaida","QDi.144","2003-11-12",null,null,"محمد طاهر حامد حسين","Mother's name: Attia Mohiuddin Taha. A deportation order was issued by the Italian authorities on 18 Oct. 2004. Considered a fugitive from justice by the Italian authorities as of Sep. 2007. Review pursuant to Security Council resolution 1822 (2008) was concluded on 8 Jun. 2010. Review pursuant to Security Council resolution 2253 (2015) was concluded on 21 February 2019.  INTERPOL-UN Security Council Special Notice web link: https://www.interpol.int/en/How-we-work/Notices/View-UN-Notices-Individuals",null,"Imam",null,null,"UN List"]
["2019-05-14T20:44:25.777-04:00",112166,1,"MOSTAFA","KAMEL","MOSTAFA","IBRAHIM","Al-Qaida","QDi.067","2002-04-24",null,null,"مصطفى كمال مصطفى ابراهيم","Extradited from the United Kingdom to the United States of America on 5\nOct. 2012. Convicted on terrorism charges by a court in the United States of America in\nMay 2014. Review pursuant to Security Council resolution 1822 (2008) was concluded on 22\nApr. 2010. INTERPOL-UN Security Council Special Notice web link: https://www.interpol.int/en/How-we-work/Notices/View-UN-Notices-Individuals",null,null,null,"United Kingdom of Great Britain and Northern Ireland","UN List"]
["2019-05-14T20:44:25.777-04:00",6908545,1,"MUHAMMAD","SHOLEH","IBRAHIM",null,"Al-Qaida","QDi.395","2016-04-20",null,null,null,"Has served as the acting emir of Jemmah Anshorut Tauhid (JAT) (QDe.133) since 2014 and has supported Islamic State in Iraq and the Levant (ISIL), listed as Al-Qaida in Iraq (QDe.115). INTERPOL-UN Security Council Special Notice web link: https://www.interpol.int/en/How-we-work/Notices/View-UN-Notices-Individuals",null,"Ustad",null,null,"UN List"]
["2019-05-14T20:44:25.777-04:00",6908529,1,"NUSRET","IMAMOVIC",null,null,"Al-Qaida","QDi.374","2016-02-29",null,null,null,"Believed to be fighting with Al-Nusrah Front for the People of the Levant (QDe.137) in Syrian Arab Republic and reported to be a leader in the group as of Apr. 2015. Review pursuant to Security Council resolution 2253 (2015) was concluded on 21 February 2019. INTERPOL-UN Security Council Special Notice web link: https://www.interpol.int/en/How-we-work/Notices/View-UN-Notices-Individuals",null,null,null,"Bosnia and Herzegovina","UN List"]
["2019-05-14T20:44:25.777-04:00",2983973,1,"ZAFAR","IQBAL",null,null,"Al-Qaida","QDi.308","2012-03-14",null,null,null,"Senior leader and co-founder of Lashkar-e-Tayyiba (QDe.118) (LeT) who has\nheld various senior leader positions in LeT and its front organization, Jamaat-ud-Dawa\n(JUD) (listed as an alias of LeT). As of 2010, in charge of LeT/JUD finance department,\ndirector of its education department and president of its medical wing. Other title:\nProfessor.  Review pursuant to Security Council resolution 2253 (2015) was concluded on 21 Feb. 2019.  INTERPOL-UN Security Council Special Notice web link: https://www.interpol.int/en/How-we-work/Notices/View-UN-Notices-Individuals",null,null,null,"Pakistan","UN List"]
["2019-05-14T20:44:25.777-04:00",112001,1,"NURJAMAN","RIDUAN","ISAMUDDIN",null,"Al-Qaida","QDi.087","2003-01-28",null,null,null,"Senior leader of Jemaah Islamiyah (QDe.092). Brother of Gun Gun Rusman\nGunawan (QDi.218). In custody of the United States of America, as of July 2007. Review\npursuant to Security Council resolution 1822 (2008) was concluded on 13 Apr.\n2010. INTERPOL-UN Security Council Special Notice web link: https://www.interpol.int/en/How-we-work/Notices/View-UN-Notices-Individuals",null,null,null,"Indonesia","UN List"]
["2019-05-14T20:44:25.777-04:00",6908493,1,"SHAMIL","MAGOMEDOVICH","ISMAILOV",null,"Al-Qaida","QDi.368","2015-10-02",null,null,"Шамиль Магомедович Измайлов","As at Aug. 2015, leader of Jamaat Abu Hanifa, a terrorist group that is part of the Al-Nusrah Front for the People of the Levant (QDe.137). Physical description: eye colour: brown, hair colour: black, build: slim, height 175-180 cm. Distinguishing marks: long face, speech defect. Wanted by the authorities of the Russian Federation for terrorist crimes committed in its territory. Photo available for inclusion in the INTERPOL-UN Security Council Special Notice. INTERPOL-UN Security Council Special Notice web link: https://www.interpol.int/en/How-we-work/Notices/View-UN-Notices-Individuals",null,null,null,"Russian Federation","UN List"]
["2019-05-14T20:44:25.777-04:00",112100,1,"KHALIL","BEN AHMED","BEN MOHAMED","JARRAYA","Al-Qaida","QDi.099","2003-06-25",null,null,"خليل بن احمد بن محمد جراية","Detained in Italy since 9 Aug. 2008 for his implication in a case related\nto terrorism. Review pursuant to Security Council resolution 1822 (2008) was concluded\non 15 Jun. 2010. INTERPOL-UN Security Council Special Notice web link: https://www.interpol.int/en/How-we-work/Notices/View-UN-Notices-Individuals",null,null,null,"Tunisia","UN List"]
["2019-05-14T20:44:25.777-04:00",6908476,1,"SALLY-ANNE","FRANCES","JONES",null,"Al-Qaida","QDi.360","2015-09-28","Female",null,null,"Recruiter for Islamic State in Iraq and the Levant (ISIL), listed as Al-Qaida in Iraq (QDe.115), in the Syrian Arab Republic. Sex: female. Husband’s name is: Junaid Hussain. Photo available for inclusion in the INTERPOL-UN Security Council Special Notice. INTERPOL-UN Security Council Special Notice web link: https://www.interpol.int/en/How-we-work/Notices/View-UN-Notices-Individuals",null,null,null,"United Kingdom of Great Britain and Northern Ireland","UN List"]
["2019-05-14T20:44:25.777-04:00",6908544,1,"HUSAYN","JUAYTHINI",null,null,"Al-Qaida","QDi.394","2016-04-20",null,null,null,"Link between Islamic State in Iraq and the Levant (ISIL), listed as Al-Qaida in Iraq (QDe.115), leader Abu Bakr al-Baghdadi, listed as Ibrahim Awwad Ibrahim Ali al-Badri al-Samarrai (QDi.299), and armed groups in Gaza. Was using money to build an ISIL presence in Gaza. INTERPOL-UN Security Council Special Notice web link: https://www.interpol.int/en/How-we-work/Notices/View-UN-Notices-Individuals",null,null,null,"Palestinian","UN List"]
["2019-05-14T20:44:25.777-04:00",112007,1,"SALIM Y SALAMUDDIN","JULKIPLI",null,null,"Al-Qaida","QDi.114","2003-09-09",null,null,null,"In detention in the Philippines as at May 2011. Review pursuant to\nSecurity Council resolution 1822 (2008) was concluded on 25 May 2010. INTERPOL-UN Security Council Special Notice web link: https://www.interpol.int/en/How-we-work/Notices/View-UN-Notices-Individuals",null,null,null,"Philippines","UN List"]
["2019-05-14T20:44:25.777-04:00",112248,1,"MEHDI","BEN MOHAMED","BEN MOHAMED","KAMMOUN","Al-Qaida","QDi.072","2002-09-03",null,null,"المهدي بن محمد بن محمد كمون","Italian Fiscal Code: KMMMHD68D03Z352N. Deported from Italy to Tunisia on\n22 July 2005. Serving an eight-year prison term in Tunisia for membership of a terrorist\norganization abroad as at Jan. 2010. Review pursuant to Security Council resolution 1822\n(2008) was concluded on 21 Jun. 2010. INTERPOL-UN Security Council Special Notice web link: https://www.interpol.int/en/How-we-work/Notices/View-UN-Notices-Individuals",null,null,null,"Tunisia","UN List"]
["2019-05-14T20:44:25.777-04:00",2982423,1,"MEVLÜT","KAR",null,null,"Al-Qaida","QDi.302","2012-01-25",null,null,null,"Associated with Islamic Jihad Group (QDe.119). Arrest warrant issued by\nthe investigating judge of the German Federal Court of Justice on 17 Aug.\n2009. INTERPOL-UN Security Council Special Notice web link: https://www.interpol.int/en/How-we-work/Notices/View-UN-Notices-Individuals",null,null,null,"Turkey","UN List"]
["2019-05-14T20:44:25.777-04:00",6908719,1,"MOHAMMED","YUSIP","KARIM",null,"Al-Qaida","QDi.416","2018-08-23",null,null,null,"Senior member of Islamic State in Iraq and the Levant (ISIL), listed as Al-Qaida in Iraq (QDe.115). Recruited for ISIL and instructed individuals to perpetrate terrorist acts via online video. Physical description: hair colour: black; build: slight. Speaks Indonesian, Arabic and Mindanao  dialect. INTERPOL-UN Security Council Special Notice web link: https://www.interpol.int/en/How-we-work/Notices/View-UN-Notices-Individuals",null,null,null,"Indonesia","UN List"]
["2019-05-14T20:44:25.777-04:00",112138,1,"DAWOOD","IBRAHIM","KASKAR",null,"Al-Qaida","QDi.135","2003-11-03",null,null,null,"Father’s name is Sheikh Ibrahim Ali Kaskar, mother’s name is Amina Bi, wife’s\nname is Mehjabeen Shaikh. International arrest warrant issued by the Government of India. Review\npursuant to Security Council resolution 1822 (2008) was concluded on 20 May\n2010. INTERPOL-UN Security Council Special Notice web link: https://www.interpol.int/en/How-we-work/Notices/View-UN-Notices-Individuals",null,"Sheikh",null,null,"UN List"]
["2019-05-14T20:44:25.777-04:00",6908527,1,"GULMUROD","KHALIMOV",null,null,"Al-Qaida","QDi.372","2016-02-29",null,null,null,"Syria-based military expert, member and recruiter of Islamic State in Iraq and the Levant, listed as Al-Qaida in Iraq (QDe.115). Wanted by the Government of Tajikistan. INTERPOL-UN Security Council Special Notice web link: https://www.interpol.int/en/How-we-work/Notices/View-UN-Notices-Individuals",null,null,null,"Tajikistan","UN List"]
["2019-05-14T20:44:25.777-04:00",2983746,1,"MUSTAFA","HAJJI","MUHAMMAD","KHAN","Al-Qaida","QDi.306","2012-03-14",null,null,"مصطفى حجي محمد خان","Al-Qaida (QDe.004) facilitator, courier and operative. As of 2010,\nfacilitated activities for senior Pakistan-based Al-Qaida operatives. INTERPOL-UN Security Council Special Notice web link: https://www.interpol.int/en/How-we-work/Notices/View-UN-Notices-Individuals",null,null,null,"Pakistan","UN List"]
["2019-05-14T20:44:25.777-04:00",6908416,1,"ANAS","HASAN","KHATTAB",null,"Al-Qaida","QDi.336","2014-09-23",null,null,null,"Administrative amir of Al-Nusrah Front for the People of the Levant\n(QDe.137). INTERPOL-UN Security Council Special Notice web link: https://www.interpol.int/en/How-we-work/Notices/View-UN-Notices-Individuals",null,null,null,"Syrian Arab Republic","UN List"]
["2019-05-14T20:44:25.777-04:00",6908721,1,"MUHAMMED","REZA","LAHAMAN","KIRAM","Al-Qaida","QDi.418","2018-08-23",null,null,null,"Senior member of Islamic State in Iraq and the Levant (ISIL), listed as Al-Qaida in Iraq (QDe.115). Recruited for ISIL and instructed individuals to perpetrate terrorist acts via online video. Physical description: height: 156cm; weight: 60 kg (as at Sep. 2016); eye colour: black; hair colour: black; build: medium; high cheekbones. Speaks Tagalog, English, Arabic.  INTERPOL-UN Security Council Special Notice web link: https://www.interpol.int/en/How-we-work/Notices/View-UN-Notices-Individuals",null,null,null,"Philippines","UN List"]
["2019-05-14T20:44:25.777-04:00",6908420,1,"EMILIE","EDWIGE","KONIG",null,"Al-Qaida","QDi.340","2014-09-23",null,null,null,"French terrorist fighter who travelled to Syria and joined Islamic State in Iraq and the Levant, listed as Al-Qaida in Iraq (AQI) (QDe.115). Active in radicalizing and propagating Al-Qaida’s (QDe.004) ideology through the Internet. Incites violent activities against France. French arrest warrant issued on 12 Jun. 2015 by a magistrate of the anti-terrorism division of the Prosecutor’s Office in Paris for her participation in a terrorist criminal association.  INTERPOL-UN Security Council Special Notice web link: https://www.interpol.int/en/How-we-work/Notices/View-UN-Notices-Individuals",null,null,null,"France","UN List"]
["2019-05-14T20:44:25.777-04:00",6908608,1,"ALEXANDA","AMON","KOTEY",null,"Al-Qaida","QDi.408","2017-07-20",null,null,null,"Foreign terrorist fighter with Islamic State in Iraq and the Levant (ISIL), listed as Al-Qaida in Iraq (QDe.115), in the Syrian Arab Republic. Physical description: eye colour: dark brown; hair colour: black; complexion: dark. Distinguishing marks: beard. Ethnic background: Ghanaian Cypriot. INTERPOL-UN Security Council Special Notice web link: https://www.interpol.int/en/How-we-work/Notices/View-UN-Notices-Individuals",null,null,null,"United Kingdom of Great Britain and Northern Ireland","UN List"]
["2019-05-14T20:44:25.777-04:00",6908531,1,"MORAD","LAABOUDI",null,null,"Al-Qaida","QDi.383","2016-02-29",null,null,null,"Facilitator for travel of foreign terrorist fighters to join Islamic State in Iraq and the Levant, listed as Al-Qaida in Iraq (QDe.115), in Syrian Arab Republic. INTERPOL-UN Security Council Special Notice web link: https://www.interpol.int/en/How-we-work/Notices/View-UN-Notices-Individuals",null,null,null,"Morocco","UN List"]
["2019-05-14T20:44:25.777-04:00",112483,1,"ABDELKADER","LAAGOUB",null,null,"Al-Qaida","QDi.190","2005-07-29",null,null,"عبد القادر لاغوب","Italian Fiscal code: LGBBLK66D23Z330U. Father’s name is Mamoune Mohamed.\nMother’s name is Fatna Ahmed. Review pursuant to Security Council resolution 1822 (2008)\nwas concluded on 8 Jun. 2010. INTERPOL-UN Security Council Special Notice web link: https://www.interpol.int/en/How-we-work/Notices/View-UN-Notices-Individuals",null,null,null,"Morocco","UN List"]
["2019-05-14T20:44:25.777-04:00",3026710,1,"MOHAMED","LAHBOUS",null,null,"Al-Qaida","QDi.319","2013-10-24",null,null,"محمد لحبوس","Member of the Mouvement pour l’Unification et le Jihad en Afrique de\nl’Ouest (MUJAO) (QDe.134). Reportedly deceased as of 14 February 2018 . Review pursuant to Security Council resolution 2253 (2015) was concluded on 21 February 2019. INTERPOL-UN Security Council Special Notice web link: https://www.interpol.int/en/How-we-work/Notices/View-UN-Notices-Individuals",null,null,null,"Mali","UN List"]
["2019-05-14T20:44:25.777-04:00",111796,1,"MOHAMED","LAKHAL",null,null,"Al-Qaida","QDi.062","2002-04-24",null,null,"محمد لكحل","Professor of Chemistry. Deported from Italy to Tunisia on 27 Aug. 2006.\nLegally changed family name from Aouani to Lakhal in 2014. Review pursuant to Security\nCouncil resolution 1822 (2008) was concluded on 22 Apr. 2010. INTERPOL-UN Security Council Special Notice web link: https://www.interpol.int/en/How-we-work/Notices/View-UN-Notices-Individuals",null,null,null,"Tunisia","UN List"]
["2019-05-14T20:44:25.777-04:00",2832887,1,"ZAKI-UR-REHMAN","LAKHVI",null,null,"Al-Qaida","QDi.264","2008-12-10",null,null,null,"Chief of operations of Lashkar-e-Tayyiba (listed under permanent\nreference number QDe.118). Review pursuant to Security Council resolution 2253 (2015) was concluded on 21 Feb. 2019. INTERPOL-UN Security Council Special Notice web link: https://www.interpol.int/en/How-we-work/Notices/View-UN-Notices-Individuals",null,null,null,"Pakistan","UN List"]
["2019-05-14T20:44:25.777-04:00",2813150,1,"RUBEN","PESTANO","LAVILLA, JR",null,"Al-Qaida","QDi.247","2008-06-04",null,null,null,"Spiritual leader of the Rajah Solaiman Movement (QDe.128). Associated\nwith Khadafi Abubakar Janjalani (deceased). In detention in the Philippines as of May\n2011. Review pursuant to Security Council resolution 1822 (2008) was concluded on 13 May\n2010. INTERPOL-UN Security Council Special Notice web link: https://www.interpol.int/en/How-we-work/Notices/View-UN-Notices-Individuals",null,"Sheik",null,null,"UN List"]
["2019-05-14T20:44:25.777-04:00",112494,1,"DJAMEL","LOUNICI",null,null,"Al-Qaida","QDi.155","2004-01-16",null,null,"جمال لونيسي","Father's name is Abdelkader. Mother's name is Djohra Birouch. Returned from France to Algeria where he resides since Sep. 2008. Review pursuant to Security Council resolution 1822 (2008) was concluded on 27 Jul. 2010. INTERPOL-UN Security Council Special Notice web link: https://www.interpol.int/en/How-we-work/Notices/View-UN-Notices-Individuals",null,null,null,"Algeria","UN List"]
["2019-05-14T20:44:25.777-04:00",6908700,1,"MYRNA","AJIJUL","MABANZA",null,"Al-Qaida","QDi.413","2018-06-18",null,null,null,"Facilitator for the Islamic State in Iraq and the Levant (ISIL), listed as Al-Qaida in Iraq (QDe.115). Gender: female. INTERPOL-UN Security Council Special Notice web link: https://www.interpol.int/en/How-we-work/Notices/View-UN-Notices-Individuals",null,null,null,"Philippines","UN List"]
["2019-05-14T20:44:25.777-04:00",6908473,1,"AQSA","MAHMOOD",null,null,"Al-Qaida","QDi.356","2015-09-28","Female",null,null,"Recruiter for Islamic State in Iraq and the Levant, listed as Al-Qaida in Iraq (QDe.115), in the Syrian Arab Republic, and a key figure in the the Al-Khanssaa brigade, a female ISIL brigade established in Al-Raqqa to enforce ISIL’s interpretation of Sharia law. Sex: female. Photo available for inclusion in the INTERPOL-UN Security Council Special Notice. INTERPOL-UN Security Council Special Notice web link: https://www.interpol.int/en/How-we-work/Notices/View-UN-Notices-Individuals",null,null,null,"United Kingdom of Great Britain and Northern Ireland","UN List"]
["2019-05-14T20:44:25.777-04:00",112364,1,"IBRAHIM","MOHAMED KHALIL",null,null,"Al-Qaida","QDi.206","2005-12-06",null,null,"ابراهيم محمد خليل","Sentenced to 7 years of imprisonment in Germany on 6 Dec. 2007. Released on 30 December 2012. Photo and fingerprints available for inclusion in the INTERPOL-UN Security Council Special Notice. Review pursuant to Security Council resolution 1822 (2008) was concluded on 5 Oct. 2009. Review pursuant to Security Council resolution 2253 (2015) was concluded on 21 Feb. 2019.  INTERPOL-UN Security Council Special Notice web link: https://www.interpol.int/en/How-we-work/Notices/View-UN-Notices-Individuals",null,null,null,"Syrian Arab Republic","UN List"]
["2019-05-14T20:44:25.777-04:00",111783,1,"MAZEN","SALAH","MOHAMMED",null,"Al-Qaida","QDi.202","2005-12-06",null,null,"مازن صلاح محمد","Member of Ansar Al-Islam (QDe.098). Released from custody in Germany on\n18 May 2012. Review pursuant to Security Council resolution 1822 (2008) was concluded on\n30 Jul. 2009. Review pursuant to Security Council resolution 2253 (2015) was concluded on 21 Feb. 2019.  INTERPOL-UN Security Council Special Notice web link: https://www.interpol.int/en/How-we-work/Notices/View-UN-Notices-Individuals",null,null,null,"Iraq","UN List"]
["2019-05-14T20:44:25.777-04:00",113442,1,"YUNOS","UMPARA","MOKLIS",null,"Al-Qaida","QDi.126","2003-09-09",null,null,null,"Sentenced to life without parole in the Philippines on 23 Jan. 2009 for\nhis involvement in the bombings of 30 Dec. 2000 in Manila, the Philippines. Review\npursuant to Security Council resolution 1822 (2008) was concluded on 25 May\n2010. Photos included in INTERPOL-UN Security Council Special Notice web link: https://www.interpol.int/en/How-we-work/Notices/View-UN-Notices-Individuals",null,null,null,"Philippines","UN List"]
["2019-05-14T20:44:25.777-04:00",112378,1,"MOHAMED","AMIN","MOSTAFA",null,"Al-Qaida","QDi.147","2003-11-12",null,null,"محمد أمين مصطفى","Under administrative control measure in Italy scheduled to expire on 15\nJan. 2012. Review pursuant to Security Council resolution 1822 (2008) was concluded on\n21 Jun. 2010. Review pursuant to Security Council resolution 2253 (2015) was concluded on 21 Feb. 2019.   INTERPOL-UN Security Council Special Notice web link: https://www.interpol.int/en/How-we-work/Notices/View-UN-Notices-Individuals",null,null,null,"Iraq","UN List","2005-09-09, 2007-06-07, 2011-05-16, 2016-10-25, 2019-05-01",null,null,null,null,null,null,"Via della Martinella 132","Parma",null,null,"Italy","Domicile","EXACT",null,"1975-10-11",null,null,null,"Kirkuk",null,"Iraq"]
["2019-05-14T20:44:25.777-04:00",112379,1,"DJAMEL","MOUSTFA",null,null,"Al-Qaida","QDi.129","2003-09-23",null,null,"جمال مصطفى","Father's name is Djelalli Moustfa. Mother's name is Kadeja Mansore.\nDeported from Germany to Algeria in Sep. 2007.\nReview pursuant to Security Council resolution 1822 (2008) was concluded on 19 Oct.\n2009. Review pursuant to Security Council resolution 2253 (2015) was concluded on 21 Feb. 2019.  INTERPOL-UN Security Council Special Notice web link: https://www.interpol.int/en/How-we-work/Notices/View-UN-Notices-Individuals",null,null,null,"Algeria","UN List"]
["2019-05-14T20:44:25.777-04:00",2797841,1,"MUBARAK","MUSHAKHAS","SANAD","MUBARAK AL-BATHALI","Al-Qaida","QDi.238","2008-01-16",null,null,"مبارك مشخص سند مبارك البذالي","Review pursuant to Security Council resolution 1822 (2008) was concluded\non 14 Sep. 2009. Review pursuant to Security Council resolution 2253 (2015) was concluded on 21 Feb. 2019. INTERPOL-UN Security Council Special Notice web link: https://www.interpol.int/en/How-we-work/Notices/View-UN-Notices-Individuals",null,null,null,"Kuwait","UN List"]
["2019-05-14T20:44:25.777-04:00",2863574,1,"MOHAMMED","YAHYA","MUJAHID",null,"Al-Qaida","QDi.272","2009-06-29",null,null,null,"Associated with Lashkar-e-Tayyiba (QDe.118). In detention as at June\n2009. Review pursuant to Security Council resolution 2253 (2015) was concluded on 21 Feb. 2019. INTERPOL-UN Security Council Special Notice web link: https://www.interpol.int/en/How-we-work/Notices/View-UN-Notices-Individuals",null,null,null,"Pakistan","UN List"]
["2019-05-14T20:44:25.777-04:00",113211,1,"ARIS","MUNANDAR",null,null,"Al-Qaida","QDi.119","2003-09-09",null,null,null,"Review pursuant to Security Council resolution 1822 (2008) was concluded\non 25 May 2010. Review pursuant to Security Council resolution 2253 (2015) was concluded on 21 Feb. 2019.  INTERPOL-UN Security Council Special Notice web link: https://www.interpol.int/en/How-we-work/Notices/View-UN-Notices-Individuals",null,null,null,"Indonesia (as at Dec. 2003)","UN List"]
["2019-05-14T20:44:25.777-04:00",113313,1,"ABDUL HAKIM","MURAD",null,null,"Al-Qaida","QDi.120","2003-09-09",null,null,"عبد الحكيم مراد","Mother's name is Aminah Ahmad Sher al-Baloushi. In custody of the United\nStates. Review pursuant to Security Council resolution 1822 (2008) was concluded on 25\nMay 2010. INTERPOL-UN Security Council Special Notice web link: https://www.interpol.int/en/How-we-work/Notices/View-UN-Notices-Individuals",null,null,null,"Pakistan","UN List"]
["2019-05-14T20:44:25.777-04:00",113212,1,"ALI","SAYYID","MUHAMED","MUSTAFA BAKRI","Al-Qaida","QDi.196","2005-09-29",null,null,"على السيد محمد مصطفى بكري","Member of the Shura Council of Al-Qaida (QDe.004) and Egyptian Islamic\nJihad (QDe.003). Review pursuant to Security Council resolution 1822 (2008) was\nconcluded on 1 Jun. 2010. INTERPOL-UN Security Council Special Notice web link: https://www.interpol.int/en/How-we-work/Notices/View-UN-Notices-Individuals",null,null,null,"Egypt","UN List"]
["2019-05-14T20:44:25.777-04:00",6908484,1,"ASEEL","MUTHANA",null,null,"Al-Qaida","QDi.357","2015-09-30",null,null,null,"Foreign terrorist fighter with Islamic State in Iraq and the Levant, listed as Al-Qaida in Iraq (QDe.115), in the Syrian Arab Republic. Wanted by the authorities of the United Kingdom. Physical description: hair colour: brown/black. INTERPOL-UN Security Council Special Notice web link: https://www.interpol.int/en/How-we-work/Notices/View-UN-Notices-Individuals",null,null,null,"United Kingdom of Great Britain and Northern Ireland","UN List"]
["2019-05-14T20:44:25.777-04:00",6908474,1,"NASSER","AHMED","MUTHANA",null,"Al-Qaida","QDi.358","2015-09-28",null,null,null,"Foreign terrorist fighter with Islamic State in Iraq and the Levant (ISIL), listed as Al-Qaida in Iraq (QDe.115), in the Syrian Arab Republic. Wanted by the authorities of the United Kingdom. Physical description: hair colour: brown/black. Photo available for inclusion in the INTERPOL-UN Security Council Special Notice. INTERPOL-UN Security Council Special Notice web link: https://www.interpol.int/en/How-we-work/Notices/View-UN-Notices-Individuals",null,null,null,"United Kingdom of Great Britain and Northern Ireland","UN List"]
["2019-05-14T20:44:25.777-04:00",6908602,1,"Murad","Iraklievich","Margoshvili",null,"Al-Qaida","QDi.406","2017-07-20",null,null,null,"Associated with Jabhat al-Nusrah, listed as Al-Nusrah Front for the People of the Levant (QDe.137). INTERPOL-UN Security Council Special Notice web link: https://www.interpol.int/en/How-we-work/Notices/View-UN-Notices-Individuals",null,null,null,"Russian Federation","UN List"]
["2019-05-14T20:44:25.777-04:00",2901762,1,"TAYEB","NAIL",null,null,"Al-Qaida","QDi.280","2010-04-22",null,null,"الطيب نايل","Convicted in absentia by Algerian tribunal on 28 Mar. 1996. Algerian\ninternational arrest warrant number 04/09 of 6 Jun. 2009 issued by the Tribunal of Sidi\nMhamed, Algiers, Algeria. Algerian extradition request number 2307/09 of 3 Sep. 2009,\npresented to Malian authorities. Father’s name was Benazouz Nail. Mother’s name is\nBelkheiri Oum El Kheir. Member of The Organization of Al-Qaida in the Islamic Maghreb\n(QDe.014) INTERPOL-UN Security Council Special Notice web link: https://www.interpol.int/en/How-we-work/Notices/View-UN-Notices-Individuals",null,null,null,"Algeria","UN List"]
["2019-05-14T20:44:25.777-04:00",3012888,1,"ABDERRAHMANE","OULD EL AMAR",null,null,"Al-Qaida","QDi.314","2013-02-22",null,null,"عبد الرحمن ولد العامر","Leader of the Mouvement pour l’Unification et le Jihad en Afrique de\nl’Ouest (MUJAO) (QDe.134). Member of The Organization of Al-Qaida in the Islamic Maghreb\n(QDe.014). Arrested in April 2005 in Mauritania, escaped from Nouakchott jail on 26 Apr.\n2006. Re-arrested in Sep. 2008 in Mali and released on 15 Apr. 2009. Associated with\nMokhtar Belmokhtar (QDi.136). Father’s name is Leewemere. Review pursuant to Security Council resolution 2253 (2015) was concluded on 21 Feb. 2019. INTERPOL-UN Security Council Special Notice web link: https://www.interpol.int/en/How-we-work/Notices/View-UN-Notices-Individuals",null,null,null,"Mali","UN List"]
["2019-05-14T20:44:25.777-04:00",3013119,1,"HAMADA","OULD MOHAMED EL KHAIRY",null,null,"Al-Qaida","QDi.315","2013-02-22",null,null,"حماده ولد محمد الخيري","Leader of the Mouvement pour l’Unification et le Jihad en Afrique de\nl’Ouest (MUJAO) (QDe.134). Has provided logistical support to the Sahelian group Al\nMoulathamine, linked with the Organization of Al-Qaida in the Islamic Maghreb (QDe.014).\nInternational arrest warrant issued by Mauritania. Mother’s name is Tijal Bint Mohamed\nDadda. Review pursuant to Security Council resolution 2253 (2015) was concluded on 21 Feb. 2019. INTERPOL-UN Security Council Special Notice web link: https://www.interpol.int/en/How-we-work/Notices/View-UN-Notices-Individuals",null,null,null,"Mauritania","UN List"]
["2019-05-14T20:44:25.777-04:00",2974555,1,"ABD AL-RAHMAN","OULD MUHAMMAD AL-HUSAYN","OULD MUHAMMAD SALIM",null,"Al-Qaida","QDi.298","2011-09-15",null,null,"عبد الرحمن ولد محمد الحسين ولد محمد سليم","Pakistan-based senior Al-Qaida (QDe.004) leader also associated with The\nOrganization of Al-Qaida in the Islamic Maghreb (QDe.014). Wanted by Mauritanian\nauthorities. INTERPOL-UN Security Council Special Notice web link: https://www.interpol.int/en/How-we-work/Notices/View-UN-Notices-Individuals",null,null,null,"Mauritania","UN List"]
["2019-05-14T20:44:25.777-04:00",6908453,1,"ALI","BEN TAHER","BEN FALEH","OUNI HARZI","Al-Qaida","QDi.353","2015-04-10",null,null,"علي بن الطاھر بن الفالح العوني الحرزي","Physical description: eye colour: brown; height: 171cm. Photo available for inclusion in the INTERPOL-UN Security Council Special Notice. Previous occupation:  trading agent. A member of Ansar al-Shari’a in Tunisia (QDe.143), active in recruitment of foreign terrorist fighters and arms smuggling. Detained and sentenced to 30 months imprisonment for planning terrorist acts in 2005 in Tunisia. Planned and perpetrated the attack against the Consulate of the United States in Benghazi, Libya on 11 Sep. 2012. Arrest warrant issued by the Tunisian National Guard (as at Mar. 2015). Father’s name is  Taher Ouni Harzi, mother’s name is Borkana Bedairia. Reportedly killed in an airstrike in Mosul, Iraq, in Jun. 2015. Review pursuant to Security Council resolution 2253 (2015) was concluded on 21 Feb. 2019. INTERPOL-UN Security Council Special Notice web link: https://www.interpol.int/en/How-we-work/Notices/View-UN-Notices-Individuals",null,null,null,"Tunisia","UN List"]
["2019-05-14T20:44:25.777-04:00",6908454,1,"TARAK","BEN TAHER","BEN FALEH","OUNI HARZI","Al-Qaida","QDi.354","2015-04-10",null,null,"طارق بن الطاھر بن الفالح العوني الحرزي","Physical description: eye colour: brown; height: 172cm. Photo available for inclusion in the INTERPOL-UN Security Council Special Notice. Previous occupation:  worker. A dangerous and active member of Al Qaida in Iraq (QDe.115) in 2004, also active in facilitating and hosting members of Ansar al-Shari’a in Tunisia (QDe.143) in Syria. Sentenced, in absentia, on 30 October 2007, to 24 years imprisonment for terrorist activities by the Appeals Court of Tunis. Father’s name is Taher Ouni Harzi, mother’s name is Borkana Bedairia. Reportedly killed in Syria in Jun. 2015. Review pursuant to Security Council resolution 2253 (2015) was concluded on 21 Feb. 2019. INTERPOL-UN Security Council Special Notice web link: https://www.interpol.int/en/How-we-work/Notices/View-UN-Notices-Individuals",null,null,null,"Tunisia","UN List"]
["2019-05-14T20:44:25.777-04:00",2812923,1,"DINNO AMOR","ROSALEJOS","PAREJA",null,"Al-Qaida","QDi.242","2008-06-04",null,null,null,"Member of the Rajah Solaiman Movement (QDe.128). Father's name is\nAmorsolo Jarabata Pareja. Mother's name is Leonila Cambaya Rosalejos. Review pursuant to\nSecurity Council resolution 1822 (2008) was concluded on 13 May 2010. INTERPOL-UN Security Council Special Notice web link: https://www.interpol.int/en/How-we-work/Notices/View-UN-Notices-Individuals",null,null,null,"Philippines","UN List"]
["2019-05-14T20:44:25.777-04:00",2971762,1,"UMAR","PATEK",null,null,"Al-Qaida","QDi.294","2011-07-19",null,null,null,"Senior member of Jemaah Islamiyah (QDe.092) involved in planning and funding multiple terrorist attacks in the Philippines and Indonesia. Provided training to Abu Sayyaf Group (QDe.001). Convicted for his role in the 2002 Bali bombings and sentenced to 20 years in prison in Jun. 2012.  Remains in custody in Indonesia as at May 2015 Photos included in INTERPOL-UN Security Council Special Notice web link: https://www.interpol.int/en/How-we-work/Notices/View-UN-Notices-Individuals",null,null,null,"Indonesia","UN List"]
["2019-05-14T20:44:25.777-04:00",6908445,1,"ANGGA","DIMAS","PERSHADA",null,"Al-Qaida","QDi.348","2015-03-13",null,null,null,"Member of Jemaah Islamiyah (QDe.092) and leader of Hilal Ahmar Society\nIndonesia (HASI) (QDe.147). INTERPOL-UN Security Council Special Notice web link: https://www.interpol.int/en/How-we-work/Notices/View-UN-Notices-Individuals",null,"Secretary General (as at mid-2014)",null,null,"UN List"]
["2019-05-14T20:44:25.777-04:00",2863362,1,"ARIF","QASMANI",null,null,"Al-Qaida","QDi.271","2009-06-29",null,null,null,"Associated with Lashkar-e-Tayyiba (QDe.118) and Al-Qaida (QDe.004). In\ndetention as at June 2009. Review pursuant to Security Council resolution 2253 (2015) was concluded on 21 Feb. 2019. INTERPOL-UN Security Council Special Notice web link: https://www.interpol.int/en/How-we-work/Notices/View-UN-Notices-Individuals",null,null,null,"Pakistan","UN List"]
["2019-05-14T20:44:25.777-04:00",2983791,1,"FAZAL","RAHIM",null,null,"Al-Qaida","QDi.303","2012-03-06",null,null,"فضل رحيم","Was a financial facilitator for the Islamic Movement of Uzbekistan\n(QDe.010) and Al-Qaida (QDe.004). Was associated with Tohir Abdulkhalilovich Yuldashev.\nAs of late 2010, in custody ofPakistanauthorities. Father’s name is Fazal\nAhmad. INTERPOL-UN Security Council Special Notice web link: https://www.interpol.int/en/How-we-work/Notices/View-UN-Notices-Individuals",null,null,null,"Afghanistan","UN List"]
["2019-05-14T20:44:25.777-04:00",113322,1,"ABDELHALIM","HAFED","ABDELFATTAH","REMADNA","Al-Qaida","QDi.075","2002-09-03",null,null,"عبدالحليم حافظ عبدالفتاح رمادنا","Deported from Italy to Algeria on 12 Aug. 2006. Review pursuant to\nSecurity Council resolution 1822 (2008) was concluded on 8 Dec. 2009. Review pursuant to Security Council resolution 2253 (2015) was concluded on 21 Feb. 2019. INTERPOL-UN Security Council Special Notice web link: https://www.interpol.int/en/How-we-work/Notices/View-UN-Notices-Individuals",null,null,null,"Algeria","UN List"]
["2019-05-14T20:44:25.777-04:00",113435,1,"TAUFIK","RIFKI",null,null,"Al-Qaida","QDi.219","2006-04-21",null,null,null,"In detention in the Philippines as at May 2011. Review pursuant to\nSecurity Council resolution 1822 (2008) was concluded on 8 Jun. 2010. INTERPOL-UN Security Council Special Notice web link: https://www.interpol.int/en/How-we-work/Notices/View-UN-Notices-Individuals",null,null,null,"Indonesia","UN List"]
["2019-05-14T20:44:25.777-04:00",6908603,1,"OMAN","ROCHMAN",null,null,"Al-Qaida","QDi.407","2017-07-20",null,null,null,"De facto leader for all Islamic State in Iraq and the Levant, listed as Al-Qaida in Iraq (QDe.115), supporters in Indonesia, despite his incarceration in Indonesia since December 2010. INTERPOL-UN Security Council Special Notice web link: https://www.interpol.int/en/How-we-work/Notices/View-UN-Notices-Individuals",null,"Ustadz",null,null,"UN List"]
["2019-05-14T20:44:25.777-04:00",113436,1,"AL-AZHAR","BEN KHALIFA","BEN AHMED","ROUINE","Al-Qaida","QDi.150","2003-11-12",null,null,"الأزهر بن خليفة بن احمد روين","Sentenced to six years and ten months of imprisonment for membership of a terrorist\nassociation by the Appeal Court of Milan, Italy, on 7 Feb. 2008. Imprisoned in Sfax Prison on 5 June\n2007 pursuant to an order issued by the Appeals Tribunal in Tunisia for joining an organization\nlinked to terrorist crimes (case No.9301/207). Sentenced to two years and 15 days’ imprisonment\nand released on 18 June 2008.U Considered a fugitive from justice by the Italian authorities as at\nJul. 2008. Under administrative control measure in Tunisia as at 2010. Review pursuant to Security\nCouncil resolution 1822 (2008) was concluded on 21 Jun. 2010. INTERPOL-UN Security Council Special Notice web link: https://www.interpol.int/en/How-we-work/Notices/View-UN-Notices-Individuals",null,null,null,"Tunisia","UN List"]
["2019-05-14T20:44:25.777-04:00",113215,1,"ABU","RUSDAN",null,null,"Al-Qaida","QDi.186","2005-05-16",null,null,null,"Review pursuant to Security Council resolution 1822 (2008) was concluded on 8 Jun. 2010. Review pursuant to Security Council resolution 2253 (2015) was concluded on 21 Feb. 2019.  INTERPOL-UN Security Council Special Notice web link: https://www.interpol.int/en/How-we-work/Notices/View-UN-Notices-Individuals",null,null,null,null,"UN List","2014-12-12"]
["2019-05-14T20:44:25.777-04:00",6908598,1,"FARED","SAAL",null,null,"Al-Qaida","QDi.403","2017-06-16","Male",null,null,"German foreign terrorist fighter for Islamic State in Iraq and the Levant, listed as Al-Qaida in Iraq (QDe.115). Physical description: eye colour: brown; hair colour: black; height: 178cm; weight: 80kg. European arrest warrant issued by the investigating judge of the German Federal Supreme Court on 13 Aug. 2014.  INTERPOL-UN Security Council Special Notice web link: https://www.interpol.int/en/How-we-work/Notices/View-UN-Notices-Individuals",null,null,null,"Germany","UN List"]
["2019-05-14T20:44:25.777-04:00",111497,1,"AMIN","MUHAMMAD","UL HAQ","SAAM KHAN","Al-Qaida","QDi.002","2001-01-25",null,null,null,"Security coordinator for Usama bin Laden (deceased). Repatriated to\nAfghanistan in February 2006. Review pursuant to Security Council resolution 1822 (2008)\nwas concluded on 15 Jun. 2010. INTERPOL-UN Security Council Special Notice web link: https://www.interpol.int/en/How-we-work/Notices/View-UN-Notices-Individuals",null,null,null,"Afghanistan","UN List"]
["2019-05-14T20:44:25.777-04:00",111660,1,"MOHAMMAD","HAMDI","MOHAMMAD","SADIQ AL-AHDAL","Al-Qaida","QDi.020","2001-10-17",null,null,"محمد حمدي محمد صادق الأهدل","Responsible for the finances of Al-Qa’ida (QDe.004) in Yemen. Accused of\ninvolvement in the attack on the USS Cole in 2000. Arrested in Yemen in Nov. 2003.\nSentenced to three years and one month of imprisonment by the specialized criminal court\nof first instance in Yemen. Released on 25 Dec. 2006 after the completion of his\nsentence. Review pursuant to Security Council resolution 1822 (2008) was concluded on 8\nJul. 2010. INTERPOL-UN Security Council Special Notice web link: https://www.interpol.int/en/How-we-work/Notices/View-UN-Notices-Individuals",null,null,null,"Yemen","UN List"]
["2019-05-14T20:44:25.777-04:00",2833107,1,"HAFIZ","MUHAMMAD","SAEED",null,"Al-Qaida","QDi.263","2008-12-10",null,null,null,"Muhammad Saeed is the leader of Lashkar-e-Tayyiba (QDe.118). INTERPOL-UN Security Council Special Notice web link: https://www.interpol.int/en/How-we-work/Notices/View-UN-Notices-Individuals",null,null,null,"Pakistan","UN List"]
["2019-05-14T20:44:25.777-04:00",113323,1,"RADULAN","SAHIRON",null,null,"Al-Qaida","QDi.208","2005-12-06",null,null,null,"Physical description: eye colour: black; hair colour: gray; height: 5 feet 6 inches – 168 cm; weight: 140 pounds – 64 kg; build: slight; right arm is amputated above his elbow.  Review pursuant to Security Council resolution 1822 (2008) was concluded on 8 Jun. 2010. Wanted by the Philippines authorities for terrorist offences  and by authorities of the United States of America for involvement in the kidnapping of its national.   Photos included in INTERPOL-UN Security Council Special Notice web link: https://www.interpol.int/en/How-we-work/Notices/View-UN-Notices-Individuals",null,null,null,"Philippines","UN List"]
["2019-05-14T20:44:25.777-04:00",2758395,1,"NESSIM","BEN ROMDHANE","SAHRAOUI",null,"Al-Qaida","QDi.222","2006-08-02",null,null,"نسيم بن رمضان صحراوي","Considered a fugitive from justice by the Italian authorities and\nsentenced in absentia to 6 years detention on 20 Nov. 2008. Sentenced in Tunisia to 4\nyears imprisonment for terrorist activity and in detention in Tunisia as at Jun. 2009.\nReview pursuant to Security Council resolution 1822 (2008) was concluded on 20 Jul.\n2009. INTERPOL-UN Security Council Special Notice web link: https://www.interpol.int/en/How-we-work/Notices/View-UN-Notices-Individuals",null,null,null,"Tunisia","UN List"]
["2019-05-14T20:44:25.777-04:00",6908535,1,"MOHAMMED","ABDEL-HALIM","HEMAIDA","SALEH","Al-Qaida","QDi.387","2016-02-29",null,null,null,"Member of Al-Qaida (QDe.004). Involved in recruiting suicide bombers to go to Syrian Arab Republic and planning terrorist activities against targets in Europe. Arrested in Cairo, Egypt in 2013. INTERPOL-UN Security Council Special Notice web link: https://www.interpol.int/en/How-we-work/Notices/View-UN-Notices-Individuals",null,null,null,"Egypt","UN List"]
["2019-05-14T20:44:25.777-04:00",2813148,1,"HILARION","DEL ROSARIO","SANTOS",null,"Al-Qaida","QDi.244","2008-06-04",null,null,null,"Founder and leader of the Rajah Solaiman Movement (QDe.128) and linked to\nthe Abu Sayyaf Group (QDe.001). In detention in the Philippines as of May 2011. Review\npursuant to Security Council resolution 1822 (2008) was concluded on 13 May\n2010. Photos included in INTERPOL-UN Security Council Special Notice web link: https://www.interpol.int/en/How-we-work/Notices/View-UN-Notices-Individuals",null,"\"Amir\"",null,null,"UN List"]
["2019-05-14T20:44:25.777-04:00",6908447,1,"WIJI","JOKO","SANTOSO",null,"Al-Qaida","QDi.350","2015-03-13",null,null,null,"Head of the foreign affairs division and key outreach player of Jemaah\nIslamiyah (QDe.092). Associated with Hilal Ahmar Society Indonesia (HASI)\n(QDe.147). INTERPOL-UN Security Council Special Notice web link: https://www.interpol.int/en/How-we-work/Notices/View-UN-Notices-Individuals",null,null,null,"Indonesia","UN List"]
["2019-05-14T20:44:25.777-04:00",6908425,1,"ABUBAKAR","MOHAMMED","SHEKAU",null,"Al-Qaida","QDi.322","2014-06-26",null,null,"أبو بكر محمد الشكوى","Member of the Kanuri tribe. Physical description: eye colour: black; hair colour: black. Photo available for inclusion in the INTERPOL-UN Security Council Special Notice. Leader of Jama'atu Ahlis Sunna Lidda'Awati Wal-Jihad (Boko Haram) (QDe.138). Under Shekau’s leadership, Boko Haram has been responsible for a series of major terrorist attacks. INTERPOL-UN Security Council Special Notice web link: https://www.interpol.int/en/How-we-work/Notices/View-UN-Notices-Individuals",null,null,null,"Nigeria","UN List"]
["2019-05-14T20:44:25.777-04:00",111782,1,"THARWAT","SALAH","SHIHATA",null,"Al-Qaida","QDi.017","2001-10-06",null,null,"ثروت صالح شحاته","Review pursuant to Security Council resolution 1822 (2008) was concluded\non 15 Jun. 2010. INTERPOL-UN Security Council Special Notice web link: https://www.interpol.int/en/How-we-work/Notices/View-UN-Notices-Individuals",null,null,null,"Egypt","UN List"]
["2019-05-14T20:44:25.777-04:00",113220,1,"PARLINDUNGAN","SIREGAR",null,null,"Al-Qaida","QDi.122","2003-09-09",null,null,null,"Review pursuant to Security Council resolution 1822 (2008) was concluded\non 25 May 2010. INTERPOL-UN Security Council Special Notice web link: https://www.interpol.int/en/How-we-work/Notices/View-UN-Notices-Individuals",null,null,null,"Indonesia","UN List"]
["2019-05-14T20:44:25.777-04:00",113439,1,"YAZID","SUFAAT",null,null,"Al-Qaida","QDi.124","2003-09-09",null,null,null,"Founding member of Jemaah Islamiyah (JI) (QDe.092) who worked on Al-Qaida’s (QDe.004) biological weapons program, provided support to those involved in Al-Qaida’s 11 Sep. 2001 attacks in the United States of America, and was involved in JI bombing operations. Detained in Malaysia from 2001 to 2008. Arrested in Malaysia in 2013 and sentenced to 7 years in Jan. 2016 for failing to report information relating to terrorist acts. Due for release in Feb. 2020. Review pursuant to Security Council resolution 1989 (2011) was concluded on 6 Mar. 2014. Photos included in INTERPOL-UN Security Council Special Notice web link: https://www.interpol.int/en/notice/search/un/1424794.  Review pursuant to Security Council resolution 2253 (2015) was concluded on 21 Feb. 2019.  INTERPOL-UN Security Council Special Notice web link: https://www.interpol.int/en/How-we-work/Notices/View-UN-Notices-Individuals",null,null,null,"Malaysia","UN List"]
["2019-05-14T20:44:25.777-04:00",6908446,1,"BAMBANG","SUKIRNO",null,null,"Al-Qaida","QDi.349","2015-03-13",null,null,null,"A senior leader of Jemaah Islamiyah (QDe.092) who has held leadership\npositions in Hilal Ahmar Society Indonesia (HASI) (QDe.147). INTERPOL-UN Security Council Special Notice web link: https://www.interpol.int/en/How-we-work/Notices/View-UN-Notices-Individuals",null,null,null,"Indonesia","UN List"]
["2019-05-14T20:44:25.777-04:00",113444,1,"ARIS","SUMARSONO",null,null,"Al-Qaida","QDi.187","2005-05-16",null,null,null,"Review pursuant to Security Council resolution 1822 (2008) was concluded\non 8 Jun. 2010. Review pursuant to Security Council resolution 2253 (2015) was concluded on 7 June 2018.  INTERPOL-UN Security Council Special Notice web link: https://www.interpol.int/en/How-we-work/Notices/View-UN-Notices-Individuals",null,null,null,"Indonesia","UN List"]
["2019-05-14T20:44:25.777-04:00",113222,1,"YASSIN","SYAWAL",null,null,"Al-Qaida","QDi.123","2003-09-09",null,null,null,"At large as at Dec. 2003. Review pursuant to Security Council resolution\n1822 (2008) was concluded on 25 May 2010. Review pursuant to Security Council resolution 2253 (2015) was concluded on 21 February 2019. INTERPOL-UN Security Council Special Notice web link: https://www.interpol.int/en/How-we-work/Notices/View-UN-Notices-Individuals",null,null,null,"Indonesia","UN List"]
["2019-05-14T20:44:25.777-04:00",111639,1,"IBRAHIM","ALI","ABU BAKR","TANTOUSH","Al-Qaida","QDi.057","2002-01-11",null,null,"ابراهيم علي أبو بكر تنتوش","Associated with Afghan Support Committee (ASC) (QDe.069), Revival of Islamic Heritage Society (RIHS)(QDe.070) and the Libyan Islamic Fighting Group (LIFG) (QDe.011). Photograph and fingerprints available for inclusion in the INTERPOL-UNSC Special Notice. Review pursuant to  Security Council resolution 1822 (2008) was concluded on 8 Jun. 2010. INTERPOL-UN Security Council Special Notice web link: https://www.interpol.int/en/How-we-work/Notices/View-UN-Notices-Individuals",null,null,null,"Libya","UN List"]
["2019-05-14T20:44:25.777-04:00",2813362,1,"ANGELO","RAMIREZ","TRINIDAD",null,"Al-Qaida","QDi.241","2008-06-04",null,null,null,"Distinguishing marks include scars on both legs. Member of the Rajah\nSolaiman Movement (QDe.128), and associated with the Abu Sayyaf Group (QDe.001) and the\nJemaah Islamiyah (QDe.092). In detention in the Philippines as of May 2011. Review\npursuant to Security Council resolution 1822 (2008) was concluded on 13 May\n2010. INTERPOL-UN Security Council Special Notice web link: https://www.interpol.int/en/How-we-work/Notices/View-UN-Notices-Individuals",null,null,null,"Philippines","UN List"]
["2019-05-14T20:44:25.777-04:00",113440,1,"MOHAMMED","TUFAIL",null,null,"Al-Qaida","QDi.056","2001-12-24",null,null,null,"Served as a director of Ummah Tameer e-Nau (UTN) (QDe.068). Review\npursuant to Security Council resolution 1822 (2008) was concluded on 1 Jun.\n2010.  Review pursuant to Security Council resolution 2253 (2015) was concluded on 21 Feb.  INTERPOL-UN Security Council Special Notice web link: https://www.interpol.int/en/How-we-work/Notices/View-UN-Notices-Individuals",null,null,null,"Pakistan","UN List"]
["2019-05-14T20:44:25.777-04:00",6908540,1,"NAYEF","SALAM","MUHAMMAD","UJAYM AL-HABABI","Al-Qaida","QDi.390","2016-03-28",null,null,"نایف سلام محمد عجیم الحبابي","Al-Qaida (QDe.004) emir for the eastern zone of Afghanistan. Has led an Al-\nQaida battalion in Afghanistan since at least mid-2010. INTERPOL-UN Security Council Special Notice web link: https://www.interpol.int/en/How-we-work/Notices/View-UN-Notices-Individuals",null,"Sheikh",null,null,"UN List"]
["2019-05-14T20:44:25.777-04:00",2960872,1,"DOKU","KHAMATOVICH","UMAROV",null,"Al-Qaida","QDi.290","2011-03-10",null,null,"Умаров Доку Хаматович","Physical description: 180 cm tall, dark hair, 7-9 cm. long scar on the\nface, part of the tongue is missing, has a speech defect. Resides in the Russian\nFederation as at Nov. 2010. International arrest warrant issued in the year 2000.\nINTERPOL Special Notice contains biometric information. Reportedly deceased as of April\n2014. Review pursuant to Security Council resolution 2253 (2015) was concluded on 21 Feb. 2019. INTERPOL-UN Security Council Special Notice web link: https://www.interpol.int/en/How-we-work/Notices/View-UN-Notices-Individuals",null,null,null,"Russian Federation","UN List"]
["2019-05-14T20:44:25.777-04:00",112283,1,"OMAR","MAHMOUD","UTHMAN",null,"Al-Qaida","QDi.031","2001-10-17",null,null,"عمر محمود عثمان","Associated with Al-Qaida-related groups in the United Kingdom and other\ncountries. Convicted in absentia in Jordan for involvement in terrorist acts in 1998.\nArrested in Feb. 2001 in the United Kingdom, was further detained between Oct. 2002 and\nMar. 2005 and between Aug. 2005 and Jun. 2008. In custody since Dec. 2008. Deported to\nJordan from the United Kingdom on 7 July 2013 to face terrorism charges. Review pursuant\nto Security Council resolution 1822 (2008) was concluded on 19 Oct. 2009. INTERPOL-UN Security Council Special Notice web link: https://www.interpol.int/en/How-we-work/Notices/View-UN-Notices-Individuals",null,null,null,"Jordan","UN List"]
["2019-05-14T20:44:25.777-04:00",6908548,1,"AYRAT","NASIMOVICH","VAKHITOV",null,"Al-Qaida","QDi.397","2016-08-03",null,null,"Айрат Насимович Вахитов","May use a fake passport of a Syrian or Iraqi citizen. Member of the Al-Nusrah Front for the People of the Levant (ANF) (QDe.137), “Bulgar Group”, leads a group of 100 fighters. Photo available for inclusion in the INTERPOL-UN Security Council Special Notice. INTERPOL-UN Security Council Special Notice web link: https://www.interpol.int/en/How-we-work/Notices/View-UN-Notices-Individuals",null,null,null,"Russian Federation","UN List"]
["2019-05-14T20:44:25.777-04:00",113328,1,"ABDUL RAHMAN","YASIN",null,null,"Al-Qaida","QDi.037","2001-10-17",null,null,"عبد الرحمن ياسين","Abdul Rahman Yasin is in Iraq. Review pursuant to Security Council\nresolution 1822 (2008) was concluded on 21 Jun. 2010. INTERPOL-UN Security Council Special Notice web link: https://www.interpol.int/en/How-we-work/Notices/View-UN-Notices-Individuals",null,null,null,"United States of America","UN List"]
["2019-05-14T20:44:25.777-04:00",2830354,1,"ADEM","YILMAZ",null,null,"Al-Qaida","QDi.261","2008-10-27",null,null,null,"Associated with the Islamic Jihad Union (IJU), also known as the Islamic\nJihad Group (QDe.119). Associated with Fritz Martin Gelowicz (QDi.259). In detention in Germany as of Jun. 2010. INTERPOL-UN Security Council Special Notice web link: https://www.interpol.int/en/How-we-work/Notices/View-UN-Notices-Individuals",null,null,null,"Turkey","UN List"]
["2019-05-14T20:44:25.777-04:00",112021,1,"HANI","AL-SAYYID","AL-SEBAI","YUSIF","Al-Qaida","QDi.198","2005-09-29",null,null,"هاني السيد السباعي يوسف","Father's name is Mohamed Elsayed Elsebai. Review pursuant to Security\nCouncil resolution 1822 (2008) was concluded on 29 Jul. 2010. INTERPOL-UN Security Council Special Notice web link: https://www.interpol.int/en/How-we-work/Notices/View-UN-Notices-Individuals",null,null,null,"Egypt","UN List"]
["2019-05-14T20:44:25.777-04:00",111922,1,"IMED","BEN MEKKI","ZARKAOUI",null,"Al-Qaida","QDi.139","2003-11-12",null,null,"عماد بن مكي زرقاوي","Mother’s name is Zina al-Zarkaoui. Imprisoned in France since 1 Feb. 2010\non charges of criminal conspiracy in relation to a terrorist organization. Review\npursuant to Security Council resolution 1822 (2008) was concluded on 6 May\n2010. INTERPOL-UN Security Council Special Notice web link: https://www.interpol.int/en/How-we-work/Notices/View-UN-Notices-Individuals",null,null,null,"Tunisia","UN List"]
["2019-05-14T20:44:25.777-04:00",2758288,1,"MERAI","ABDEFATTAH","KHALIL","ZOGHBI","Al-Qaida","QDi.223","2006-08-02",null,null,"مرعي عبدفتاح خليل زغبي","Considered a fugitive from justice by the Italian authorities and sentenced in absentia to 6 years imprisonment on 20 Nov. 2008. Member of Libyan Islamic Fighting Group (QDe.011). Son of Wanisa Abdessalam. Review pursuant to Security Council resolution 1822 (2008) was concluded on 20 Jul. 2009. INTERPOL-UN Security Council Special Notice web link: https://www.interpol.int/en/How-we-work/Notices/View-UN-Notices-Individuals",null,null,null,"Libya","UN List"]
["2019-05-14T20:44:25.777-04:00",113219,1,"Mohammed","Salahaldin","Abd El Halim","Zidane","Al-Qaida","QDi.001","2001-01-25",null,null,"محمد صلاح الدين عبدالحليم زيدان","Responsible for Usama bin Laden’s (deceased) security. Hair: Dark. Eyes: Dark. Photo available for inclusion in the INTERPOL-UN Security Council Special Notice . Review pursuant to Security Council resolution 1822 (2008) was concluded on 15 Jun. 2010. Review pursuant to Security Council resolution 2253 (2015) was concluded on 21 February 2019.  INTERPOL-UN Security Council Special Notice web link: https://www.interpol.int/en/How-we-work/Notices/View-UN-Notices-Individuals",null,null,null,"Egypt","UN List"]
["2019-05-14T20:44:25.777-04:00",2959427,1,"SAID JAN","‘ABD AL-SALAM",null,null,"Al-Qaida","QDi.289","2011-02-09",null,null,"سعید جان عبد السلام","In approximately 2005, ran a \"basic training\" camp for Al-Qaida (QDe.004)\nin Pakistan.  Review pursuant to Security Council resolution 2253 (2015) was concluded on 21 Feb. 2019.  INTERPOL-UN Security Council Special Notice web link: https://www.interpol.int/en/How-we-work/Notices/View-UN-Notices-Individuals",null,null,null,"Afghanistan","UN List"]
["2019-05-14T20:44:25.777-04:00",null,null,null,null,null,null,null,null,null,null,null,null,null,null,null,null,null,null,null,null,null,null,null,null,null,null,null,null,null,null,null,null,null,null,null,null,null,null,null,null,null,null,null,null,null,null,null,null,null,null,null,null,6908409,1,"ABDALLAH AZZAM BRIGADES (AAB), ABDALLAH AZZAM BRIGADES (AAB), ABDALLAH AZZAM BRIGADES (AAB), ABDALLAH AZZAM BRIGADES (AAB), ABDALLAH AZZAM BRIGADES (AAB)","Al-Qaida, Al-Qaida, Al-Qaida, Al-Qaida, Al-Qaida","QDe.144, QDe.144, QDe.144, QDe.144, QDe.144","2014-09-23, 2014-09-23, 2014-09-23, 2014-09-23, 2014-09-23",null,null,"An armed group that has carried out joint attacks with Al-Nusrah Front\nfor the People of the Levant (QDe.137). INTERPOL-UN Security Council Special Notice web link: https://www.interpol.int/en/How-we-work/Notices/View-UN-Notices-Entities, An armed group that has carried out joint attacks with Al-Nusrah Front\nfor the People of the Levant (QDe.137). INTERPOL-UN Security Council Special Notice web link: https://www.interpol.int/en/How-we-work/Notices/View-UN-Notices-Entities, An armed group that has carried out joint attacks with Al-Nusrah Front\nfor the People of the Levant (QDe.137). INTERPOL-UN Security Council Special Notice web link: https://www.interpol.int/en/How-we-work/Notices/View-UN-Notices-Entities, An armed group that has carried out joint attacks with Al-Nusrah Front\nfor the People of the Levant (QDe.137). INTERPOL-UN Security Council Special Notice web link: https://www.interpol.int/en/How-we-work/Notices/View-UN-Notices-Entities, An armed group that has carried out joint attacks with Al-Nusrah Front\nfor the People of the Levant (QDe.137). INTERPOL-UN Security Council Special Notice web link: https://www.interpol.int/en/How-we-work/Notices/View-UN-Notices-Entities","UN List, UN List, UN List, UN List, UN List",null,"a.k.a., a.k.a., a.k.a.","Abdullah Azzam Brigades, Ziyad al-Jarrah Battalions of the Abdallah Azzam Brigades, Yusuf al-'Uyayri Battalions of the Abdallah Azzam Brigades",null,null,null,null,null,"Operates in Lebanon, Syria and the Arabian Peninsula"]
["2019-05-14T20:44:25.777-04:00",null,null,null,null,null,null,null,null,null,null,null,null,null,null,null,null,null,null,null,null,null,null,null,null,null,null,null,null,null,null,null,null,null,null,null,null,null,null,null,null,null,null,null,null,null,null,null,null,null,null,null,null,113445,1,"ABU SAYYAF GROUP","Al-Qaida","QDe.001","2001-10-06",null,null,"Associated with Jemaah Islamiyah (JI) (QDe.092). Current leader is\nRadulan Sahiron (QDi.208). Review pursuant to Security Council resolution 1822 (2008)\nwas concluded on 21 Jun. 2010. INTERPOL-UN Security Council Special Notice web link: https://www.interpol.int/en/How-we-work/Notices/View-UN-Notices-Entities","UN List","2011-12-13"]
["2019-05-14T20:44:25.777-04:00",null,null,null,null,null,null,null,null,null,null,null,null,null,null,null,null,null,null,null,null,null,null,null,null,null,null,null,null,null,null,null,null,null,null,null,null,null,null,null,null,null,null,null,null,null,null,null,null,null,null,null,null,113226,1,"AFGHAN SUPPORT COMMITTEE (ASC)","Al-Qaida","QDe.069","2002-01-11",null,null,"Associated with the Revival of Islamic Heritage Society (QDe.070). Abu\nBakr al-Jaziri (QDi.058) served as finance chief of ASC. Review pursuant to Security\nCouncil resolution 1822 (2008) was concluded on 8 Jun. 2010. INTERPOL-UN Security Council Special Notice web link: https://www.interpol.int/en/How-we-work/Notices/View-UN-Notices-Entities","UN List","2011-12-13"]
["2019-05-14T20:44:25.777-04:00",null,null,null,null,null,null,null,null,null,null,null,null,null,null,null,null,null,null,null,null,null,null,null,null,null,null,null,null,null,null,null,null,null,null,null,null,null,null,null,null,null,null,null,null,null,null,null,null,null,null,null,null,113231,1,"AL FURQAN","Al-Qaida","QDe.107","2004-05-11",null,null,"Registered in Bosnia and Herzegovina as a citizens’ association under the\nname of “Citizens’ Association for Support and Prevention of lies – Furqan” on 26 Sep.\n1997. Al Furqan ceased its work by decision of the Ministry of Justice of the Bosnia and\nHerzegovina Federation (decision number 03-054-286/97 dated 8 Nov. 2002). Al Furqan was\nno longer in existence as at Dec. 2008. Review pursuant to Security Council resolution\n1822 (2008) was concluded on 15 Jun. 2010. Review pursuant to Security Council resolution 2253 (2015) was concluded on 21 Feb. 2019. INTERPOL-UN Security Council Special Notice web link: https://www.interpol.int/en/How-we-work/Notices/View-UN-Notices-Entities","UN List","2004-11-26"]
["2019-05-14T20:44:25.777-04:00",null,null,null,null,null,null,null,null,null,null,null,null,null,null,null,null,null,null,null,null,null,null,null,null,null,null,null,null,null,null,null,null,null,null,null,null,null,null,null,null,null,null,null,null,null,null,null,null,null,null,null,null,6908426,1,"AL MOUAKAOUNE BIDDAM","Al-Qaida","QDe.139","2014-06-02",null,"الموقعون بالدم","Associated with the Organization of Al-Qaida in the Islamic Maghreb\n(QDe.014) and led by Mokhtar Belmokhtar (QDi.136). Active in the Sahel/Sahara\nregion. INTERPOL-UN Security Council Special Notice web link: https://www.interpol.int/en/How-we-work/Notices/View-UN-Notices-Entities","UN List"]
["2019-05-14T20:44:25.777-04:00",null,null,null,null,null,null,null,null,null,null,null,null,null,null,null,null,null,null,null,null,null,null,null,null,null,null,null,null,null,null,null,null,null,null,null,null,null,null,null,null,null,null,null,null,null,null,null,null,null,null,null,null,6908427,1,"AL MOULATHAMOUN","Al-Qaida","QDe.140","2014-06-02",null,"الملثمون","Founded in 2012 as a splinter group of the Organization of Al-Qaida in\nthe Islamic Maghreb (QDe.014). On 20 Aug. 2013, Al Moulathamoun merged with the\nMouvement pour l’Unification et le Jihad en Afrique de l’Ouest (MUJAO) (QDe.134) and\nestablished Al Mourabitoun (QDe.141). Associated with the Organization of Al-Qaida in\nthe Islamic Maghreb (QDe.014) and led by Mokhtar Belmokhtar (QDi.136). Active in the\nSahel/Sahara region. INTERPOL-UN Security Council Special Notice web link: https://www.interpol.int/en/How-we-work/Notices/View-UN-Notices-Entities","UN List"]
["2019-05-14T20:44:25.777-04:00",null,null,null,null,null,null,null,null,null,null,null,null,null,null,null,null,null,null,null,null,null,null,null,null,null,null,null,null,null,null,null,null,null,null,null,null,null,null,null,null,null,null,null,null,null,null,null,null,null,null,null,null,6908428,1,"AL MOURABITOUN","Al-Qaida","QDe.141","2014-06-02",null,"المرابطون","Founded on 20 Aug. 2013 as result of a merger between Al Moulathamoun\n(QDe.140) and the Mouvement pour l’Unification et le Jihad en Afrique de l’Ouest (MUJAO)\n(QDe.134). Associated with the Organization of Al-Qaida in the Islamic Maghreb (QDe.014)\nand led by Mokhtar Belmokhtar (QDi.136). Active in the Sahel/Sahara region. INTERPOL-UN Security Council Special Notice web link: https://www.interpol.int/en/How-we-work/Notices/View-UN-Notices-Entities","UN List"]
["2019-05-14T20:44:25.777-04:00",null,null,null,null,null,null,null,null,null,null,null,null,null,null,null,null,null,null,null,null,null,null,null,null,null,null,null,null,null,null,null,null,null,null,null,null,null,null,null,null,null,null,null,null,null,null,null,null,null,null,null,null,113459,1,"AL RASHID TRUST","Al-Qaida","QDe.005","2001-10-06",null,null,"Headquarters are in Pakistan. Operations in Afghanistan: Herat Jalalabad,\nKabul, Kandahar, Mazar Sherif. Also operations in Kosovo, Chechnya. Involved in the\nfinancing of Al-Qaida and the Taliban. Until 21 Oct. 2008, this entity appeared also as\n\"Aid Organization of the Ulema, Pakistan\" (QDe.073), listed on 24 Apr. 2002 and amended\non 25 Jul. 2006. The two entries Al Rashid Trust (QDe.005) and Aid Organization of the\nUlema, Pakistan (QDe.073) were consolidated into this entity on 21 Oct. 2008. Founded by\nMufti Rashid Ahmad Ledahyanoy (deceased). Associated with Jaish-i-Mohammed (QDe.019).\nBanned in Pakistan since Oct. 2001. Despite the closure of its offices in Pakistan in\nFebruary 2007 it has continued its activities. Review pursuant to Security Council\nresolution 1822 (2008) was concluded on 6 May 2010. INTERPOL-UN Security Council Special Notice web link: https://www.interpol.int/en/How-we-work/Notices/View-UN-Notices-Entities","UN List","2008-10-21"]
["2019-05-14T20:44:25.777-04:00",null,null,null,null,null,null,null,null,null,null,null,null,null,null,null,null,null,null,null,null,null,null,null,null,null,null,null,null,null,null,null,null,null,null,null,null,null,null,null,null,null,null,null,null,null,null,null,null,null,null,null,null,113227,1,"AL-AKHTAR TRUST INTERNATIONAL","Al-Qaida","QDe.121","2005-08-17",null,null,"Regional offices in Pakistan: Bahawalpur, Bawalnagar, Gilgit, Islamabad,\nMirpur Khas, Tando-Jan-Muhammad. Akhtarabad Medical Camp is in Spin Boldak, Afghanistan.\nRegistered by members of Jaish-i-Mohammed (QDe.019). Associated with Harakat\nul-Mujahidin/ HUM (QDe.008), Lashkar I Jhanghvi (LJ) (QDe.096) and Lashkar-e-Tayyiba\n(QDe.118). Banned in Pakistan. Review pursuant to Security Council resolution 1822\n(2008) was concluded on 14 Sep. 2009. Review pursuant to Security Council resolution 2253 (2015) was concluded on 21 Feb. 2019. INTERPOL-UN Security Council Special Notice web link: https://www.interpol.int/en/How-we-work/Notices/View-UN-Notices-Entities","UN List","2008-12-10"]
["2019-05-14T20:44:25.777-04:00",null,null,null,null,null,null,null,null,null,null,null,null,null,null,null,null,null,null,null,null,null,null,null,null,null,null,null,null,null,null,null,null,null,null,null,null,null,null,null,null,null,null,null,null,null,null,null,null,null,null,null,null,113232,1,"AL-HARAMAIN & AL MASJED AL-AQSA CHARITY FOUNDATION","Al-Qaida","QDe.109","2004-06-28",null,null,"Used to be officially registered in Bosnia and Herzegovina under registry\nnumber 24. Al-Haramain & Al Masjed Al-Aqsa Charity Foundation ceased its work by\ndecision of the Ministry of Justice of the Bosnia and Herzegovina Federation (decision\non cessation of operation number 03-05-2-203/04). It was no longer in existence as at\nDec. 2008. Its premises and humanitarian activities were transferred under Government\nsupervision to a new entity called Sretna Buducnost. Review pursuant to Security Council\nresolution 1822 (2008) was concluded on 22 Jun. 2010. INTERPOL-UN Security Council Special Notice web link: https://www.interpol.int/en/How-we-work/Notices/View-UN-Notices-Entities","UN List","2004-11-26"]
["2019-05-14T20:44:25.777-04:00",null,null,null,null,null,null,null,null,null,null,null,null,null,null,null,null,null,null,null,null,null,null,null,null,null,null,null,null,null,null,null,null,null,null,null,null,null,null,null,null,null,null,null,null,null,null,null,null,null,null,null,null,113336,1,"AL-HARAMAIN FOUNDATION (INDONESIA)","Al-Qaida","QDe.103","2004-01-26",null,null,"Review pursuant to Security Council resolution 1822 (2008) was concluded\non 22 Jun. 2010. Review pursuant to Security Council resolution 2253 (2015) was concluded on 21 Feb. 2019. INTERPOL-UN Security Council Special Notice web link: https://www.interpol.int/en/How-we-work/Notices/View-UN-Notices-Entities","UN List","2012-03-21"]
["2019-05-14T20:44:25.777-04:00",null,null,null,null,null,null,null,null,null,null,null,null,null,null,null,null,null,null,null,null,null,null,null,null,null,null,null,null,null,null,null,null,null,null,null,null,null,null,null,null,null,null,null,null,null,null,null,null,null,null,null,null,113455,1,"AL-HARAMAIN FOUNDATION (PAKISTAN)","Al-Qaida","QDe.104","2004-01-26",null,null,"Review pursuant to Security Council resolution 1822 (2008) was concluded\non 19 Oct. 2009. INTERPOL-UN Security Council Special Notice web link: https://www.interpol.int/en/How-we-work/Notices/View-UN-Notices-Entities","UN List","2012-03-21"]
["2019-05-14T20:44:25.777-04:00",null,null,null,null,null,null,null,null,null,null,null,null,null,null,null,null,null,null,null,null,null,null,null,null,null,null,null,null,null,null,null,null,null,null,null,null,null,null,null,null,null,null,null,null,null,null,null,null,null,null,null,null,113234,1,"AL-HARAMAIN FOUNDATION (UNION OF THE COMOROS)","Al-Qaida","QDe.116","2004-09-28",null,null,"Review pursuant to Security Council resolution 1822 (2008) was concluded\non 22 Jun. 2010. INTERPOL-UN Security Council Special Notice web link: https://www.interpol.int/en/How-we-work/Notices/View-UN-Notices-Entities","UN List","2012-03-21"]
["2019-05-14T20:44:25.777-04:00",null,null,null,null,null,null,null,null,null,null,null,null,null,null,null,null,null,null,null,null,null,null,null,null,null,null,null,null,null,null,null,null,null,null,null,null,null,null,null,null,null,null,null,null,null,null,null,null,null,null,null,null,113456,1,"AL-HARAMAIN ISLAMIC FOUNDATION","Al-Qaida","QDe.071","2002-03-13",null,null,"Under criminal investigation by the authorities of Bosnia and Herzegovina\nas of Nov. 2007. Review pursuant to Security Council\nresolution 1822 (2008) was concluded on 22 Jun. 2010. INTERPOL-UN Security Council Special Notice web link: https://www.interpol.int/en/How-we-work/Notices/View-UN-Notices-Entities","UN List","2003-12-26"]
["2019-05-14T20:44:25.777-04:00",null,null,null,null,null,null,null,null,null,null,null,null,null,null,null,null,null,null,null,null,null,null,null,null,null,null,null,null,null,null,null,null,null,null,null,null,null,null,null,null,null,null,null,null,null,null,null,null,null,null,null,null,244845,1,"AL-HARAMAIN ISLAMIC FOUNDATION (SOMALIA)","Al-Qaida","QDe.072","2002-03-13",null,null,"Review pursuant to Security Council resolution 1822 (2008) was concluded\non 22 Jun. 2010. Review pursuant to Security Council resolution 2253 (2015) was concluded on 21 Feb. 2019. INTERPOL-UN Security Council Special Notice web link: https://www.interpol.int/en/How-we-work/Notices/View-UN-Notices-Entities","UN List","2011-12-13"]
["2019-05-14T20:44:25.777-04:00",null,null,null,null,null,null,null,null,null,null,null,null,null,null,null,null,null,null,null,null,null,null,null,null,null,null,null,null,null,null,null,null,null,null,null,null,null,null,null,null,null,null,null,null,null,null,null,null,null,null,null,null,113453,1,"AL-HARAMAIN: AFGHANISTAN BRANCH","Al-Qaida","QDe.110","2004-07-06",null,null,"Review pursuant to Security Council resolution 1822 (2008) was concluded\non 22 Jun. 2010. INTERPOL-UN Security Council Special Notice web link: https://www.interpol.int/en/How-we-work/Notices/View-UN-Notices-Entities","UN List","2012-03-21"]
["2019-05-14T20:44:25.777-04:00",null,null,null,null,null,null,null,null,null,null,null,null,null,null,null,null,null,null,null,null,null,null,null,null,null,null,null,null,null,null,null,null,null,null,null,null,null,null,null,null,null,null,null,null,null,null,null,null,null,null,null,null,113335,1,"AL-HARAMAIN: ALBANIA BRANCH","Al-Qaida","QDe.111","2004-07-06",null,null,"Review pursuant to Security Council resolution 1822 (2008) was concluded\non 22 Jun. 2010. INTERPOL-UN Security Council Special Notice web link: https://www.interpol.int/en/How-we-work/Notices/View-UN-Notices-Entities","UN List","2012-03-21"]
["2019-05-14T20:44:25.777-04:00",null,null,null,null,null,null,null,null,null,null,null,null,null,null,null,null,null,null,null,null,null,null,null,null,null,null,null,null,null,null,null,null,null,null,null,null,null,null,null,null,null,null,null,null,null,null,null,null,null,null,null,null,113454,1,"AL-HARAMAIN: BANGLADESH BRANCH","Al-Qaida","QDe.112","2004-07-06",null,null,"Review pursuant to Security Council resolution 1822 (2008) was concluded\non 22 Jun. 2010. INTERPOL-UN Security Council Special Notice web link: https://www.interpol.int/en/How-we-work/Notices/View-UN-Notices-Entities","UN List","2012-03-21"]
["2019-05-14T20:44:25.777-04:00",null,null,null,null,null,null,null,null,null,null,null,null,null,null,null,null,null,null,null,null,null,null,null,null,null,null,null,null,null,null,null,null,null,null,null,null,null,null,null,null,null,null,null,null,null,null,null,null,null,null,null,null,113233,1,"AL-HARAMAIN: ETHIOPIA BRANCH","Al-Qaida","QDe.113","2004-07-06",null,null,"Review pursuant to Security Council resolution 1822 (2008) was concluded\non 22 Jun. 2010. INTERPOL-UN Security Council Special Notice web link: https://www.interpol.int/en/How-we-work/Notices/View-UN-Notices-Entities","UN List","2012-03-21"]
["2019-05-14T20:44:25.777-04:00",null,null,null,null,null,null,null,null,null,null,null,null,null,null,null,null,null,null,null,null,null,null,null,null,null,null,null,null,null,null,null,null,null,null,null,null,null,null,null,null,null,null,null,null,null,null,null,null,null,null,null,null,113235,1,"AL-HARAMAIN: THE NETHERLANDS BRANCH","Al-Qaida","QDe.114","2004-07-06",null,null,"Review pursuant to Security Council resolution 1822 (2008) was concluded\non 28 Jun. 2010. INTERPOL-UN Security Council Special Notice web link: https://www.interpol.int/en/How-we-work/Notices/View-UN-Notices-Entities","UN List","2012-04-13"]
["2019-05-14T20:44:25.777-04:00",null,null,null,null,null,null,null,null,null,null,null,null,null,null,null,null,null,null,null,null,null,null,null,null,null,null,null,null,null,null,null,null,null,null,null,null,null,null,null,null,null,null,null,null,null,null,null,null,null,null,null,null,113338,1,"AL-HARAMAYN FOUNDATION (KENYA)","Al-Qaida","QDe.105","2004-01-26",null,null,"Review pursuant to Security Council resolution 1822 (2008) was concluded\non 22 Jun. 2010. Review pursuant to Security Council resolution 2253 (2015) was concluded on 21 Feb. 2019. INTERPOL-UN Security Council Special Notice web link: https://www.interpol.int/en/How-we-work/Notices/View-UN-Notices-Entities","UN List","2012-03-21"]
["2019-05-14T20:44:25.777-04:00",null,null,null,null,null,null,null,null,null,null,null,null,null,null,null,null,null,null,null,null,null,null,null,null,null,null,null,null,null,null,null,null,null,null,null,null,null,null,null,null,null,null,null,null,null,null,null,null,null,null,null,null,113339,1,"AL-HARAMAYN FOUNDATION (TANZANIA)","Al-Qaida","QDe.106","2004-01-26",null,null,"Review pursuant to Security Council resolution 1822 (2008) was concluded\non 22 Jun. 2010. INTERPOL-UN Security Council Special Notice web link: https://www.interpol.int/en/How-we-work/Notices/View-UN-Notices-Entities","UN List","2012-03-21"]
["2019-05-14T20:44:25.777-04:00",null,null,null,null,null,null,null,null,null,null,null,null,null,null,null,null,null,null,null,null,null,null,null,null,null,null,null,null,null,null,null,null,null,null,null,null,null,null,null,null,null,null,null,null,null,null,null,null,null,null,null,null,113457,1,"AL-ITIHAAD AL-ISLAMIYA / AIAI","Al-Qaida","QDe.002","2001-10-06",null,"الاتحاد الاسلامي","Reported to have operated in Somalia and Ethiopia and to have merged with\nHarakat Al-Shabaab Al-Mujaahidiin (Al-Shabaab), which was accepted as an affiliate of\nAl-Qaida (QDe.004) by Aiman Muhammed Rabi al-Zawahiri (QDi.006) in Feb. 2012, and is\nalso subject to the sanctions measures set out in Security Council resolution 1844\n(2008) concerning Somalia and Eritrea (see https://www.un.org/sc/suborg/en/sanctions/751).\nLeadership included Hassan Abdullah Hersi Al-Turki (QDi.172) and Hassan Dahir Aweys\n(QDi.042). AIAI has received funds through the Al-Haramain Islamic Foundation (Somalia)\n(QDe.072). Review pursuant to Security Council resolution 1822 (2008) was concluded on\n21 Jun. 2010. INTERPOL-UN Security Council Special Notice web link: https://www.interpol.int/en/How-we-work/Notices/View-UN-Notices-Entities","UN List","2007-12-21"]
["2019-05-14T20:44:25.777-04:00",null,null,null,null,null,null,null,null,null,null,null,null,null,null,null,null,null,null,null,null,null,null,null,null,null,null,null,null,null,null,null,null,null,null,null,null,null,null,null,null,null,null,null,null,null,null,null,null,null,null,null,null,6908660,1,"AL-KAWTHAR MONEY EXCHANGE","Al-Qaida","QDe.157","2018-03-06",null,"شركة الكوثر للتوسط ببيع وشراء العملات الأجنبية","Money exchange business and owned by Umar Mahmud Irhayyim al-Kubaysi (QDi.412) as of mid-2016. Facilitated financial transactions on behalf of companies associated with Islamic State in Iraq and the Levant (ISIL), listed as Al-Qaida in Iraq (QDe.115). Established in 2000 under License number 202, issued on 17 May 2000, and since withdrawn. INTERPOL-UN Security Council Special Notice web link: https://www.interpol.int/en/How-we-work/Notices/View-UN-Notices-Entities","UN List"]
["2019-05-14T20:44:25.777-04:00",null,null,null,null,null,null,null,null,null,null,null,null,null,null,null,null,null,null,null,null,null,null,null,null,null,null,null,null,null,null,null,null,null,null,null,null,null,null,null,null,null,null,null,null,null,null,null,null,null,null,null,null,6908429,1,"AL-NUSRAH FRONT FOR THE PEOPLE OF THE LEVANT","Al-Qaida","QDe.137","2014-05-14",null,"جبهة النصرة لأهل الشام","Associated with Al-Qaida (QDe.004). Brought Syrian and foreign Al-Qaida in Iraq (QDe.115) and Asbat al-Ansar (QDe.007) fighters, along with other foreign Al-Qaida operatives, to join local elements in Syrian Arab Republic to carry out terrorist and guerrilla operations there. Previously associated with the Islamic State in Iraq and the Levant (ISIL), listed as Al-Qaida in Iraq (QDe.115), and its leader Ibrahim Awwad Ibrahim Ali al-Badri al-Samarrai (QDi.299) but separated from that group in 2013. In Jul. 2016, Abu Mohammed Al-Jawlani (QDi.317), the leader of Al-Nusrah Front for the People of the Levant, announced the group had changed its name to Jabhat Fath al-Sham and was no longer affiliated with any external entity. Despite the announcement and attempts to distinguish itself from Al-Nusrah Front for the People of the Levant, the group remains aligned with Al-Qaida and continues to carry out terrorist operations under this new name. In January 2017, Al-Nusrah Front created Hay’at Tahrir al-Sham (HTS) as a vehicle to advance its position in the Syrian insurgency and further its own goals as Al-Qaida’s affiliate in Syria. Previously listed between 30 May 2013 and 13 May 2014 as an aka of Al-Qaida in Iraq (QDe.115).  INTERPOL-UN Security Council Special Notice web link: https://www.interpol.int/en/How-we-work/Notices/View-UN-Notices-Entities","UN List","2017-06-07"]
["2019-05-14T20:44:25.777-04:00",null,null,null,null,null,null,null,null,null,null,null,null,null,null,null,null,null,null,null,null,null,null,null,null,null,null,null,null,null,null,null,null,null,null,null,null,null,null,null,null,null,null,null,null,null,null,null,null,null,null,null,null,113458,1,"AL-QAIDA","Al-Qaida","QDe.004","2001-10-06",null,"القاعدة","Review pursuant to Security Council resolution 1822 (2008) was concluded\non 21 Jun. 2010. INTERPOL-UN Security Council Special Notice web link: https://www.interpol.int/en/How-we-work/Notices/View-UN-Notices-Entities","UN List","2009-03-05"]
["2019-05-14T20:44:25.777-04:00",null,null,null,null,null,null,null,null,null,null,null,null,null,null,null,null,null,null,null,null,null,null,null,null,null,null,null,null,null,null,null,null,null,null,null,null,null,null,null,null,null,null,null,null,null,null,null,null,null,null,null,null,113966,1,"AL-QAIDA IN IRAQ","Al-Qaida","QDe.115","2004-10-18",null,"القاعده في العراق","Review pursuant to Security Council resolution 1822 (2008) was concluded\non 25 May 2010. INTERPOL-UN Security Council Special Notice web link: https://www.interpol.int/en/How-we-work/Notices/View-UN-Notices-Entities","UN List","2004-12-02"]
["2019-05-14T20:44:25.777-04:00",null,null,null,null,null,null,null,null,null,null,null,null,null,null,null,null,null,null,null,null,null,null,null,null,null,null,null,null,null,null,null,null,null,null,null,null,null,null,null,null,null,null,null,null,null,null,null,null,null,null,null,null,2881836,1,"AL-QAIDA IN THE ARABIAN PENINSULA (AQAP)","Al-Qaida","QDe.129","2010-01-19",null,"القاعدة في جزيرة العرب","AQAP is a regional affiliate of Al-Qaida (QDe.004) and an armed group\noperating primarily in Arabian Peninsula. Location: Yemen. Alternative location: Saudi\nArabia (2004 – 2006). Formed in Jan. 2009 when Al-Qaida in Yemen combined with Saudi\nArabian Al-Qaida operatives. Leader of AQAP is Qasim Mohamed Mahdi Al-Rimi (QDi.282).  Ansar al-Shari’a was formed in early 2011 by AQAP and has taken\nresponsibility for multiple attacks in Yemen against both government and civilian\ntargets. INTERPOL-UN Security Council Special Notice web link: https://www.interpol.int/en/How-we-work/Notices/View-UN-Notices-Entities","UN List","2012-10-04"]
["2019-05-14T20:44:25.777-04:00",null,null,null,null,null,null,null,null,null,null,null,null,null,null,null,null,null,null,null,null,null,null,null,null,null,null,null,null,null,null,null,null,null,null,null,null,null,null,null,null,null,null,null,null,null,null,null,null,null,null,null,null,6908438,1,"ANSAR AL CHARIA BENGHAZI","Al-Qaida","QDe.146","2014-11-19",null,"أنصار الشريعة - بنغازي","Associated with the Organization of Al-Qaida in the Islamic Maghreb\n(QDe.014), Al Mourabitoun (QDe.141), Ansar al-Shari’a in Tunisia (AAS-T) (QDe.143), and\nAnsar al Charia Derna (QDe.145). The leader is Mohamed al-Zahawi (not listed). Runs\ntraining camps for foreign terrorist fighters travelling to Syria, Iraq and\nMali. INTERPOL-UN Security Council Special Notice web link: https://www.interpol.int/en/How-we-work/Notices/View-UN-Notices-Entities","UN List"]
["2019-05-14T20:44:25.777-04:00",null,null,null,null,null,null,null,null,null,null,null,null,null,null,null,null,null,null,null,null,null,null,null,null,null,null,null,null,null,null,null,null,null,null,null,null,null,null,null,null,null,null,null,null,null,null,null,null,null,null,null,null,6908437,1,"ANSAR AL CHARIA DERNA","Al-Qaida","QDe.145","2014-11-19",null,"أنصار الشريعة – درنة","Associated with the Organization of Al-Qaida in the Islamic Maghreb\n(QDe.014), Ansar al-Shari’a in Tunisia (AAS-T) (QDe.143) and Ansar al Charia Benghazi\n(QDe.146). Runs training camps for foreign terrorist fighters travelling to Syria and\nIraq. INTERPOL-UN Security Council Special Notice web link: https://www.interpol.int/en/How-we-work/Notices/View-UN-Notices-Entities","UN List"]
["2019-05-14T20:44:25.777-04:00",null,null,null,null,null,null,null,null,null,null,null,null,null,null,null,null,null,null,null,null,null,null,null,null,null,null,null,null,null,null,null,null,null,null,null,null,null,null,null,null,null,null,null,null,null,null,null,null,null,null,null,null,113460,1,"ANSAR AL-ISLAM","Al-Qaida","QDe.098","2003-02-24",null,"أنصار الاسلام","The founder is Najmuddin Faraj Ahmad (QDi.226). Associated with Al-Qaida\nin Iraq (QDe.115). Located and primarily active in northern Iraq but maintains a\npresence in western and central Iraq. Review pursuant to Security Council resolution\n1822 (2008) was concluded on 21 Jun. 2010. INTERPOL-UN Security Council Special Notice web link: https://www.interpol.int/en/How-we-work/Notices/View-UN-Notices-Entities","UN List","2004-03-31"]
["2019-05-14T20:44:25.777-04:00",null,null,null,null,null,null,null,null,null,null,null,null,null,null,null,null,null,null,null,null,null,null,null,null,null,null,null,null,null,null,null,null,null,null,null,null,null,null,null,null,null,null,null,null,null,null,null,null,null,null,null,null,6908410,1,"ANSAR AL-SHARI’A IN TUNISIA (AAS-T)","Al-Qaida","QDe.143","2014-09-23",null,null,"A Tunisian armed group with links to the Organization of Al-Qaida in the\nIslamic Maghreb (QDe.014). The leader is Seifallah ben Hassine (QDi.333). INTERPOL-UN Security Council Special Notice web link: https://www.interpol.int/en/How-we-work/Notices/View-UN-Notices-Entities","UN List"]
["2019-05-14T20:44:25.777-04:00",null,null,null,null,null,null,null,null,null,null,null,null,null,null,null,null,null,null,null,null,null,null,null,null,null,null,null,null,null,null,null,null,null,null,null,null,null,null,null,null,null,null,null,null,null,null,null,null,null,null,null,null,3014161,1,"ANSAR EDDINE","Al-Qaida","QDe.135","2013-03-20",null,"انصار الدين","Was founded in December 2011 by Iyad ag Ghali (QDi.316). Linked to the\nOrganization of Al-Qaida in the Islamic Maghreb (QDe.014) and Mouvement pour\nl’Unification et le Jihad en Afrique de l’Ouest (MUJAO) (QDe.134). Associated with\nAbdelmalek Droukdel (QDi.232). Review pursuant to Security Council resolution 2253 (2015) was concluded on 21 Feb. 2019. INTERPOL-UN Security Council Special Notice web link: https://www.interpol.int/en/How-we-work/Notices/View-UN-Notices-Entities","UN List","2019-05-01"]
["2019-05-14T20:44:25.777-04:00",null,null,null,null,null,null,null,null,null,null,null,null,null,null,null,null,null,null,null,null,null,null,null,null,null,null,null,null,null,null,null,null,null,null,null,null,null,null,null,null,null,null,null,null,null,null,null,null,null,null,null,null,6908430,1,"ANSARUL MUSLIMINA FI BILADIS SUDAN","Al-Qaida","QDe.142","2014-06-26",null,"أنصار المسلمین في بلاد السودان","Terrorist and paramilitary group established in 2012 and operating in\nNigeria. Associated with the Organization of Al-Qaida in the Islamic Maghreb (AQIM)\n(QDe.014), Jama'atu Ahlis Sunna Lidda'Awati Wal-Jihad (Boko Haram) (QDe.138) and\nAbubakar Mohammed Shekau (QDi322). INTERPOL-UN Security Council Special Notice web link: https://www.interpol.int/en/How-we-work/Notices/View-UN-Notices-Entities","UN List"]
["2019-05-14T20:44:25.777-04:00",null,null,null,null,null,null,null,null,null,null,null,null,null,null,null,null,null,null,null,null,null,null,null,null,null,null,null,null,null,null,null,null,null,null,null,null,null,null,null,null,null,null,null,null,null,null,null,null,null,null,null,null,113237,1,"ARMED ISLAMIC GROUP","Al-Qaida","QDe.006","2001-10-06",null,"الجماعة الاسلامية المسلحة","Review pursuant to Security Council resolution 1822 (2008) was concluded\non 21 Jun. 2010. INTERPOL-UN Security Council Special Notice web link: https://www.interpol.int/en/How-we-work/Notices/View-UN-Notices-Entities","UN List","2008-04-07"]
["2019-05-14T20:44:25.777-04:00",null,null,null,null,null,null,null,null,null,null,null,null,null,null,null,null,null,null,null,null,null,null,null,null,null,null,null,null,null,null,null,null,null,null,null,null,null,null,null,null,null,null,null,null,null,null,null,null,null,null,null,null,113461,1,"ASBAT AL-ANSAR","Al-Qaida","QDe.007","2001-10-06",null,"عصبة الأنصار","Active in northern Iraq. Associated with Al-Qaida in Iraq (QDe.115).\nReview pursuant to Security Council resolution 1822 (2008) was concluded on 21 Jun.\n2010. INTERPOL-UN Security Council Special Notice web link: https://www.interpol.int/en/How-we-work/Notices/View-UN-Notices-Entities","UN List","2009-01-30"]
["2019-05-14T20:44:25.777-04:00",null,null,null,null,null,null,null,null,null,null,null,null,null,null,null,null,null,null,null,null,null,null,null,null,null,null,null,null,null,null,null,null,null,null,null,null,null,null,null,null,null,null,null,null,null,null,null,null,null,null,null,null,113474,1,"BENEVOLENCE INTERNATIONAL FOUNDATION","Al-Qaida","QDe.093","2002-11-21",null,null,"Employer Identification Number (United States of America): 36-3823186.\nReview pursuant to Security Council resolution 1822 (2008) was concluded on 22 Jun.\n2010. INTERPOL-UN Security Council Special Notice web link: https://www.interpol.int/en/How-we-work/Notices/View-UN-Notices-Entities","UN List","2003-01-24"]
["2019-05-14T20:44:25.777-04:00",null,null,null,null,null,null,null,null,null,null,null,null,null,null,null,null,null,null,null,null,null,null,null,null,null,null,null,null,null,null,null,null,null,null,null,null,null,null,null,null,null,null,null,null,null,null,null,null,null,null,null,null,113356,1,"EASTERN TURKISTAN ISLAMIC MOVEMENT (ETIM)","Al-Qaida","QDe.088","2002-09-11",null,null,"Active in China, South Asia and Central Asia. Review pursuant to Security\nCouncil resolution 1822 (2008) was concluded on 20 May 2010. INTERPOL-UN Security Council Special Notice web link: https://www.interpol.int/en/How-we-work/Notices/View-UN-Notices-Entities","UN List","2008-10-03"]
["2019-05-14T20:44:25.777-04:00",null,null,null,null,null,null,null,null,null,null,null,null,null,null,null,null,null,null,null,null,null,null,null,null,null,null,null,null,null,null,null,null,null,null,null,null,null,null,null,null,null,null,null,null,null,null,null,null,null,null,null,null,113236,1,"EGYPTIAN ISLAMIC JIHAD","Al-Qaida","QDe.003","2001-10-06",null,"الجهاد الاسلامي المصري","Co-founded by Aiman Muhammed Rabi al-Zawahiri (QDi.006), who was also its\nmilitary leader. Review pursuant to Security Council resolution 1822 (2008) was\nconcluded on 21 Jun. 2010. INTERPOL-UN Security Council Special Notice web link: https://www.interpol.int/en/How-we-work/Notices/View-UN-Notices-Entities","UN List","2009-03-05"]
["2019-05-14T20:44:25.777-04:00",null,null,null,null,null,null,null,null,null,null,null,null,null,null,null,null,null,null,null,null,null,null,null,null,null,null,null,null,null,null,null,null,null,null,null,null,null,null,null,null,null,null,null,null,null,null,null,null,null,null,null,null,2971893,1,"EMARAT KAVKAZ","Al-Qaida","QDe.131","2011-07-29",null,"Эмират Кавказ","Mainly active in the Russian Federation, Afghanistan and Pakistan. Led by\nDoku Khamatovich Umarov (QDi.290) INTERPOL-UN Security Council Special Notice web link: https://www.interpol.int/en/How-we-work/Notices/View-UN-Notices-Entities","UN List"]
["2019-05-14T20:44:25.777-04:00",null,null,null,null,null,null,null,null,null,null,null,null,null,null,null,null,null,null,null,null,null,null,null,null,null,null,null,null,null,null,null,null,null,null,null,null,null,null,null,null,null,null,null,null,null,null,null,null,null,null,null,null,113476,1,"GLOBAL RELIEF FOUNDATION (GRF)","Al-Qaida","QDe.091","2002-10-22",null,null,"Other Foreign Locations: Afghanistan, Bangladesh, Eritrea, Ethiopia,\nIndia, Iraq, West Bank and Gaza, Somalia and Syria. Federal Employer Identification\nNumber (United States of America): 36-3804626. Review pursuant to Security Council\nresolution 1822 (2008) was concluded on 21 Jun. 2010. INTERPOL-UN Security Council Special Notice web link: https://www.interpol.int/en/How-we-work/Notices/View-UN-Notices-Entities","UN List","2004-11-26"]
["2019-05-14T20:44:25.777-04:00",null,null,null,null,null,null,null,null,null,null,null,null,null,null,null,null,null,null,null,null,null,null,null,null,null,null,null,null,null,null,null,null,null,null,null,null,null,null,null,null,null,null,null,null,null,null,null,null,null,null,null,null,6908604,1,"HANIFA MONEY EXCHANGE OFFICE (BRANCH LOCATED IN ALBU KAMAL,\nSYRIAN ARAB REPUBLIC)","Al-Qaida","QDe.153","2017-07-20",null,"مكتب حنيفة للصرافة","Money exchange business in Albu Kamal (Al-Bukamal), Syrian Arab Republic, facilitating the movement of funds on behalf of Islamic State in Iraq and the Levant (ISIL), listed as Al-Qaida in Iraq (QDe.115). Used exclusively for ISIL-related transactions. INTERPOL-UN Security Council Special Notice web link: https://www.interpol.int/en/How-we-work/Notices/View-UN-Notices-Entities","UN List"]
["2019-05-14T20:44:25.777-04:00",null,null,null,null,null,null,null,null,null,null,null,null,null,null,null,null,null,null,null,null,null,null,null,null,null,null,null,null,null,null,null,null,null,null,null,null,null,null,null,null,null,null,null,null,null,null,null,null,null,null,null,null,6908521,1,"HARAKAT SHAM AL-ISLAM","Al-Qaida","QDe.149","2016-02-29",null,null,"Moroccan-led terrorist organization formed in Aug. 2013 and operating in Syrian Arab Republic. Principally composed of foreign terrorist fighters and associated with AI-Nusrah Front for the People of the Levant (QDe.137).  INTERPOL-UN Security Council Special Notice web link: https://www.interpol.int/en/How-we-work/Notices/View-UN-Notices-Entities","UN List"]
["2019-05-14T20:44:25.777-04:00",null,null,null,null,null,null,null,null,null,null,null,null,null,null,null,null,null,null,null,null,null,null,null,null,null,null,null,null,null,null,null,null,null,null,null,null,null,null,null,null,null,null,null,null,null,null,null,null,null,null,null,null,113263,1,"HARAKAT UL-MUJAHIDIN / HUM","Al-Qaida","QDe.008","2001-10-06",null,null,"Associated with Jaish-i-Mohammed (QDe.019), Lashkar i Jhangvi (LJ)\n(QDe.096) and Lashkar-e-Tayyiba (QDe.118). Active in Pakistan and Afghanistan. Banned in\nPakistan. Review pursuant to Security Council resolution 1822 (2008) was concluded on 21\nJun. 2010. INTERPOL-UN Security Council Special Notice web link: https://www.interpol.int/en/How-we-work/Notices/View-UN-Notices-Entities","UN List","2011-12-13"]
["2019-05-14T20:44:25.777-04:00",null,null,null,null,null,null,null,null,null,null,null,null,null,null,null,null,null,null,null,null,null,null,null,null,null,null,null,null,null,null,null,null,null,null,null,null,null,null,null,null,null,null,null,null,null,null,null,null,null,null,null,null,2921366,1,"HARAKAT-UL JIHAD ISLAMI","Al-Qaida","QDe.130","2010-08-06",null,"حرکت الجہاد الاسلامی","Was established in Afghanistan in 1980. In 1993, Harakat-ul Jihad Islami\nmerged with Harakat ul-Mujahidin (QDe.008) to form Harakat ul-Ansar. In 1997, Harakat-ul\nJihad Islami split from Harakat ul-Ansar and resumed using its former name. Operations\nare in India, Pakistan and Afghanistan. Banned in Pakistan. INTERPOL-UN Security Council Special Notice web link: https://www.interpol.int/en/How-we-work/Notices/View-UN-Notices-Entities","UN List","2011-12-13"]
["2019-05-14T20:44:25.777-04:00",null,null,null,null,null,null,null,null,null,null,null,null,null,null,null,null,null,null,null,null,null,null,null,null,null,null,null,null,null,null,null,null,null,null,null,null,null,null,null,null,null,null,null,null,null,null,null,null,null,null,null,null,6908448,1,"HILAL AHMAR SOCIETY INDONESIA (HASI)","Al-Qaida","QDe.147","2015-03-13",null,null,"Ostensibly humanitarian wing of Jemaah Islamiyah (QDe.092). Operates in\nLampung, Jakarta, Semarang, Yogyakarta, Solo, Surabaya and Makassar, Indonesia. Has been\nrecruiting, funding and facilitating travel of foreign terrorist fighters to Syria. Not\naffiliated with the humanitarian group International Federation of the Red Cross and Red\nCrescent Societies (IFRC). INTERPOL-UN Security Council Special Notice web link: https://www.interpol.int/en/How-we-work/Notices/View-UN-Notices-Entities","UN List"]
["2019-05-14T20:44:25.777-04:00",null,null,null,null,null,null,null,null,null,null,null,null,null,null,null,null,null,null,null,null,null,null,null,null,null,null,null,null,null,null,null,null,null,null,null,null,null,null,null,null,null,null,null,null,null,null,null,null,null,null,null,null,114074,1,"ISLAMIC ARMY OF ADEN","Al-Qaida","QDe.009","2001-10-06",null,null,"Review pursuant to Security Council resolution 1822 (2008) was concluded\non 9 Jul. 2010. INTERPOL-UN Security Council Special Notice web link: https://www.interpol.int/en/How-we-work/Notices/View-UN-Notices-Entities","UN List"]
["2019-05-14T20:44:25.777-04:00",null,null,null,null,null,null,null,null,null,null,null,null,null,null,null,null,null,null,null,null,null,null,null,null,null,null,null,null,null,null,null,null,null,null,null,null,null,null,null,null,null,null,null,null,null,null,null,null,null,null,null,null,113963,1,"ISLAMIC INTERNATIONAL BRIGADE (IIB)","Al-Qaida","QDe.099","2003-03-04",null,null,"Linked to the Riyadus-Salikhin Reconnaissance and Sabotage Battalion of\nChechen Martyrs (RSRSBCM) (QDe.100) and the Special Purpose Islamic Regiment (SPIR)\n(QDe.101). Review pursuant to Security Council resolution 1822 (2008) was concluded on\n17 May 2010. INTERPOL-UN Security Council Special Notice web link: https://www.interpol.int/en/How-we-work/Notices/View-UN-Notices-Entities","UN List","2011-12-13"]
["2019-05-14T20:44:25.777-04:00",null,null,null,null,null,null,null,null,null,null,null,null,null,null,null,null,null,null,null,null,null,null,null,null,null,null,null,null,null,null,null,null,null,null,null,null,null,null,null,null,null,null,null,null,null,null,null,null,null,null,null,null,113853,1,"ISLAMIC JIHAD GROUP","Al-Qaida","QDe.119","2005-06-01",null,null,"Founded and led by Najmiddin Kamolitdinovich Jalolov (deceased) and\nSuhayl Fatilloevich Buranov (deceased). Associated with the Islamic Movement of\nUzbekistan (QDe.010) and Emarat Kavkaz (QDe.131). Active in the Afghanistan/Pakistan\nborder area, Central Asia, South Asia region and some European States. Review pursuant\nto Security Council resolution 1822 (2008) was concluded on 20 May 2010. INTERPOL-UN Security Council Special Notice web link: https://www.interpol.int/en/How-we-work/Notices/View-UN-Notices-Entities","UN List","2006-04-19"]
["2019-05-14T20:44:25.777-04:00",null,null,null,null,null,null,null,null,null,null,null,null,null,null,null,null,null,null,null,null,null,null,null,null,null,null,null,null,null,null,null,null,null,null,null,null,null,null,null,null,null,null,null,null,null,null,null,null,null,null,null,null,113964,1,"ISLAMIC MOVEMENT OF UZBEKISTAN","Al-Qaida","QDe.010","2001-10-06",null,null,"Associated with the Eastern Turkistan Islamic Movement (QDe.088), Islamic\nJihad Group (QDe.119) and Emarat Kavkaz (QDe.131). Active in the Afghanistan/Pakistan\nborder area, northern Afghanistan and Central Asia. Review pursuant to Security Council\nresolution 1822 (2008) was concluded on 21 Jun. 2010. INTERPOL-UN Security Council Special Notice web link: https://www.interpol.int/en/How-we-work/Notices/View-UN-Notices-Entities","UN List","2011-12-13"]
["2019-05-14T20:44:25.777-04:00",null,null,null,null,null,null,null,null,null,null,null,null,null,null,null,null,null,null,null,null,null,null,null,null,null,null,null,null,null,null,null,null,null,null,null,null,null,null,null,null,null,null,null,null,null,null,null,null,null,null,null,null,6908777,1,"ISLAMIC STATE IN IRAQ AND THE LEVANT - KHORASAN (ISIL-\nK)","Al-Qaida","QDe.161","2019-05-14",null,null,"Islamic State of Iraq and the Levant - Khorasan (ISIL - K) was formed on January 10, 2015 by a former Tehrik-e Taliban Pakistan (TTP) (QDe.132) commander and was established by former Taliban faction commanders who swore an oath of allegiance to the Islamic State of Iraq and the Levant (listed as Al-Qaida in Iraq (QDe.115)). ISIL – K has claimed responsibility for numerous attacks in both Afghanistan and Pakistan.  INTERPOL-UN Security Council Special Notice web link: https://www.interpol.int/en/How-we-work/Notices/View-UN-Notices-Entities","UN List"]
["2019-05-14T20:44:25.777-04:00",null,null,null,null,null,null,null,null,null,null,null,null,null,null,null,null,null,null,null,null,null,null,null,null,null,null,null,null,null,null,null,null,null,null,null,null,null,null,null,null,null,null,null,null,null,null,null,null,null,null,null,null,113965,1,"JAISH-I-MOHAMMED","Al-Qaida","QDe.019","2001-10-17",null,null,"Based in Peshawar and Muzaffarabad, Pakistan Associated with Harakat\nul-Mujahidin / HUM (QDe.008), Lashkar-e-Tayyiba (QDe.118), Al-Akhtar Trust International\n(QDe.121), and Harakat-ul Jihad Islami (QDe.130). Banned in Pakistan. Review pursuant to\nSecurity Council resolution 1822 (2008) was concluded on 21 Jun. 2010. INTERPOL-UN Security Council Special Notice web link: https://www.interpol.int/en/How-we-work/Notices/View-UN-Notices-Entities","UN List","2011-12-13"]
["2019-05-14T20:44:25.777-04:00",null,null,null,null,null,null,null,null,null,null,null,null,null,null,null,null,null,null,null,null,null,null,null,null,null,null,null,null,null,null,null,null,null,null,null,null,null,null,null,null,null,null,null,null,null,null,null,null,null,null,null,null,113854,1,"JAM'YAH TA'AWUN AL-ISLAMIA","Al-Qaida","QDe.020","2001-10-17",null,null,"Founded by Usama Mohammad Awad bin Laden (deceased) in 2001. Review\npursuant to Security Council resolution 1822 (2008) was concluded on 21 Jun.\n2010. INTERPOL-UN Security Council Special Notice web link: https://www.interpol.int/en/How-we-work/Notices/View-UN-Notices-Entities","UN List","2011-12-13"]
["2019-05-14T20:44:25.777-04:00",null,null,null,null,null,null,null,null,null,null,null,null,null,null,null,null,null,null,null,null,null,null,null,null,null,null,null,null,null,null,null,null,null,null,null,null,null,null,null,null,null,null,null,null,null,null,null,null,null,null,null,null,6908431,1,"JAMA'ATU AHLIS SUNNA LIDDA'AWATI WAL-JIHAD","Al-Qaida","QDe.138","2014-05-22",null,null,"Affiliate of Al-Qaida (QDe.004), and the Organization of Al-Qaida in the Islamic Maghreb (AQIM) (QDe.014). Associated with Jama'atu Ansarul Muslimina Fi Biladis-Sudan (Ansaru). The leader is Abubakar Shekau. INTERPOL-UN Security Council Special Notice web link: https://www.interpol.int/en/How-we-work/Notices/View-UN-Notices-Entities","UN List"]
["2019-05-14T20:44:25.777-04:00",null,null,null,null,null,null,null,null,null,null,null,null,null,null,null,null,null,null,null,null,null,null,null,null,null,null,null,null,null,null,null,null,null,null,null,null,null,null,null,null,null,null,null,null,null,null,null,null,null,null,null,null,6908599,1,"JAMAAT-UL-AHRAR (JuA)","Al-Qaida","QDe.152","2017-07-06",null,"جمات ال احرار","Splinter group of the Tehrik-e Taliban Pakistan (QDe.132). Associated with Islamic State in Iraq and the Levant, listed as Al-Qaida in Iraq (QDe.115). Formed in Aug. 2014 in Mohmand Agency, Pakistan. Operates from Nangarhar Province, Afghanistan and Pakistan-Afghanistan border region. Banned in Pakistan on 21 Nov. 2016. INTERPOL-UN Security Council Special Notice web link: https://www.interpol.int/en/How-we-work/Notices/View-UN-Notices-Entities","UN List"]
["2019-05-14T20:44:25.777-04:00",null,null,null,null,null,null,null,null,null,null,null,null,null,null,null,null,null,null,null,null,null,null,null,null,null,null,null,null,null,null,null,null,null,null,null,null,null,null,null,null,null,null,null,null,null,null,null,null,null,null,null,null,113967,1,"JEMAAH ISLAMIYAH","Al-Qaida","QDe.092","2002-10-25",null,null,"Operates in Southeast Asia, including Indonesia, Malaysia and the\nPhilippines. Associated with the Abu Sayyaf Group (QDe.001). Review pursuant to Security\nCouncil resolution 1822 (2008) was concluded on 25 May 2010. INTERPOL-UN Security Council Special Notice web link: https://www.interpol.int/en/How-we-work/Notices/View-UN-Notices-Entities","UN List","2011-12-13"]
["2019-05-14T20:44:25.777-04:00",null,null,null,null,null,null,null,null,null,null,null,null,null,null,null,null,null,null,null,null,null,null,null,null,null,null,null,null,null,null,null,null,null,null,null,null,null,null,null,null,null,null,null,null,null,null,null,null,null,null,null,null,2983820,1,"JEMMAH ANSHORUT TAUHID (JAT)","Al-Qaida","QDe.133","2012-03-12",null,null,"A group affiliated with the Islamic State in Iraq and the Levant (ISIL), listed as Al-Qaida in Iraq (QDe.115), that has perpetrated attacks in Indonesia. Founded and led by Abu Bakar Ba'asyir (QDi.217). Established on 27 Jul. 2008 in Solo, Indonesia. Had been associated with Jemmah Islamiya (JI) (QDe.092). Review pursuant to Security Council resolution 2253 (2015) was concluded on 7 June 2018. Website: http://ansharuttauhid.com/ INTERPOL-UN Security Council Special Notice web link: https://www.interpol.int/en/How-we-work/Notices/View-UN-Notices-Entities","UN List","2018-07-17"]
["2019-05-14T20:44:25.777-04:00",null,null,null,null,null,null,null,null,null,null,null,null,null,null,null,null,null,null,null,null,null,null,null,null,null,null,null,null,null,null,null,null,null,null,null,null,null,null,null,null,null,null,null,null,null,null,null,null,null,null,null,null,6908486,1,"JUND AL-KHILAFAH IN ALGERIA (JAK-A)","Al-Qaida","QDe.151","2015-09-29",null,null,"Emerged on 13 Sep. 2014. Most known for its abduction and subsequent beheading of French national Herve Gourdel. Claimed responsibility for attacking police and gendarmes in Algeria and continued planning future attacks. INTERPOL-UN Security Council Special Notice web link: https://www.interpol.int/en/How-we-work/Notices/View-UN-Notices-Entities","UN List"]
["2019-05-14T20:44:25.777-04:00",null,null,null,null,null,null,null,null,null,null,null,null,null,null,null,null,null,null,null,null,null,null,null,null,null,null,null,null,null,null,null,null,null,null,null,null,null,null,null,null,null,null,null,null,null,null,null,null,null,null,null,null,6908726,1,"Jama'a Nusrat ul-Islam wa al-Muslimin (JNIM)","Al-Qaida","QDe.159","2018-10-04",null,"جماعة نصرة الإسلام والمسلمين","Associated with Al-Qaida (QDe.004), the Organization of Al-Qaida in the Islamic Maghreb (QDe.014), Ansar Eddine (QDe.135) and Al-Mourabitoun (QDe.141). Operations in Mali and Burkina Faso. INTERPOL-UN Security Council Special Notice web link: https://www.interpol.int/en/How-we-work/Notices/View-UN-Notices-Entities","UN List"]
["2019-05-14T20:44:25.777-04:00",null,null,null,null,null,null,null,null,null,null,null,null,null,null,null,null,null,null,null,null,null,null,null,null,null,null,null,null,null,null,null,null,null,null,null,null,null,null,null,null,null,null,null,null,null,null,null,null,null,null,null,null,6908606,1,"Jaysh Khalid Ibn al Waleed","Al-Qaida","QDe.155","2017-07-20",null,null,"Joined the Islamic State in Iraq and the Levant (ISIL), listed as Al-Qaida in Iraq (QDe.115), in May 2015.  INTERPOL-UN Security Council Special Notice web link: https://www.interpol.int/en/How-we-work/Notices/View-UN-Notices-Entities","UN List"]
["2019-05-14T20:44:25.777-04:00",null,null,null,null,null,null,null,null,null,null,null,null,null,null,null,null,null,null,null,null,null,null,null,null,null,null,null,null,null,null,null,null,null,null,null,null,null,null,null,null,null,null,null,null,null,null,null,null,null,null,null,null,6908607,1,"Jund Al Aqsa","Al-Qaida","QDe.156","2017-07-20",null,null,"Associated with the Al Nusrah Front for the People of the Levant (QDe.137). INTERPOL-UN Security Council Special Notice web link: https://www.interpol.int/en/How-we-work/Notices/View-UN-Notices-Entities","UN List"]
["2019-05-14T20:44:25.777-04:00",null,null,null,null,null,null,null,null,null,null,null,null,null,null,null,null,null,null,null,null,null,null,null,null,null,null,null,null,null,null,null,null,null,null,null,null,null,null,null,null,null,null,null,null,null,null,null,null,null,null,null,null,6908669,1,"KHATIBA IMAM AL-BUKHARI (KIB)","Al-Qaida","QDe.158","2018-03-29",null,null,"Associated with Al-Nusrah Front for the People of the Levant (QDe.137). Committed terrorist attacks in the Syrian Arab Republic. Since 2016 redeployed to Northern Afghanistan to project attacks against Central Asia countries. INTERPOL-UN Security Council Special Notice web link: https://www.interpol.int/en/How-we-work/Notices/View-UN-Notices-Entities","UN List"]
["2019-05-14T20:44:25.777-04:00",null,null,null,null,null,null,null,null,null,null,null,null,null,null,null,null,null,null,null,null,null,null,null,null,null,null,null,null,null,null,null,null,null,null,null,null,null,null,null,null,null,null,null,null,null,null,null,null,null,null,null,null,114089,1,"LASHKAR I JHANGVI (LJ)","Al-Qaida","QDe.096","2003-02-03",null,null,"Based primarily in Pakistan’s Punjab region and in the city of Karachi. Active in Pakistan although banned as at 2010. Review pursuant to Security Council resolution 2161 (2014) was concluded on 23 Dec. 2016.  INTERPOL-UN Security Council Special Notice web link: https://www.interpol.int/en/How-we-work/Notices/View-UN-Notices-Entities","UN List","2011-12-13"]
["2019-05-14T20:44:25.777-04:00",null,null,null,null,null,null,null,null,null,null,null,null,null,null,null,null,null,null,null,null,null,null,null,null,null,null,null,null,null,null,null,null,null,null,null,null,null,null,null,null,null,null,null,null,null,null,null,null,null,null,null,null,114076,1,"LASHKAR-E-TAYYIBA","Al-Qaida","QDe.118","2005-05-02",null,null,"Associated with Hafiz Muhammad Saeed (QDi.263) who is the leader of\nLashkar-e-Tayyiba. Review pursuant to Security Council resolution 1822 (2008) was\nconcluded on 8 Jun. 2010. INTERPOL-UN Security Council Special Notice web link: https://www.interpol.int/en/How-we-work/Notices/View-UN-Notices-Entities","UN List","2005-11-03"]
["2019-05-14T20:44:25.777-04:00",null,null,null,null,null,null,null,null,null,null,null,null,null,null,null,null,null,null,null,null,null,null,null,null,null,null,null,null,null,null,null,null,null,null,null,null,null,null,null,null,null,null,null,null,null,null,null,null,null,null,null,null,114090,1,"LIBYAN ISLAMIC FIGHTING GROUP","Al-Qaida","QDe.011","2001-10-06",null,"الجماعة الاسلامية المقاتلة الليبية","Members in Afghanistan merged with Al-Qaida (QDe.004) in Nov. 2007.\nReview pursuant to Security Council resolution 1822 (2008) was concluded on 21 Jun.\n2010. INTERPOL-UN Security Council Special Notice web link: https://www.interpol.int/en/How-we-work/Notices/View-UN-Notices-Entities","UN List","2009-03-05"]
["2019-05-14T20:44:25.777-04:00",null,null,null,null,null,null,null,null,null,null,null,null,null,null,null,null,null,null,null,null,null,null,null,null,null,null,null,null,null,null,null,null,null,null,null,null,null,null,null,null,null,null,null,null,null,null,null,null,null,null,null,null,113858,1,"MAKHTAB AL-KHIDAMAT","Al-Qaida","QDe.012","2001-10-06",null,"مكتب الخدمات","Absorbed into Al-Qaida (QDe.004). Review pursuant to Security Council\nresolution 1822 (2008) was concluded on 21 Jun. 2010. INTERPOL-UN Security Council Special Notice web link: https://www.interpol.int/en/How-we-work/Notices/View-UN-Notices-Entities","UN List","2009-03-05"]
["2019-05-14T20:44:25.777-04:00",null,null,null,null,null,null,null,null,null,null,null,null,null,null,null,null,null,null,null,null,null,null,null,null,null,null,null,null,null,null,null,null,null,null,null,null,null,null,null,null,null,null,null,null,null,null,null,null,null,null,null,null,113977,1,"MOROCCAN ISLAMIC COMBATANT GROUP","Al-Qaida","QDe.089","2002-10-10",null,"الجماعة الاسلامية المغربية المقاتلة","Associated with the Organization of Al-Qaida in the Islamic Maghreb\n(QDe.014). Review pursuant to Security Council resolution 1822 (2008) was concluded on\n20 May 2010. INTERPOL-UN Security Council Special Notice web link: https://www.interpol.int/en/How-we-work/Notices/View-UN-Notices-Entities","UN List","2009-03-05"]
["2019-05-14T20:44:25.777-04:00",null,null,null,null,null,null,null,null,null,null,null,null,null,null,null,null,null,null,null,null,null,null,null,null,null,null,null,null,null,null,null,null,null,null,null,null,null,null,null,null,null,null,null,null,null,null,null,null,null,null,null,null,3026605,1,"MUHAMMAD JAMAL NETWORK (MJN)","Al-Qaida","QDe.136","2013-10-21",null,"شبكة محمد جمال","Terrorist and paramilitary group established by Muhammad Jamal al Kashif\n(QDi.318) in 2011 and linked to Al-Qaida (QDe.004), Aiman al-Zawahiri (QDi.006), and the\nleadership of Al-Qaida in the Arabian Peninsula (AQAP) (QDe.129) and the Organization of\nAl-Qaida in the Islamic Maghreb (AQIM) (QDe.014). Funded and supported by AQAP. Multiple\nterrorist training camps in Egypt and Libya. Reportedly acquiring weapons, conducting\ntraining and establishing terrorist groups in the Sinai, Egypt. Training suicide\nbombers, foreign fighters and planning terrorist attacks in Egypt, Libya and elsewhere\nas of Sep. 2013. MJN members were reported to be involved in the attack on the United\nStates Mission in Benghazi, Libya, on 11 Sep. 2012. Review pursuant to Security Council resolution 2253 (2015) was concluded on 21 Feb. 2019. INTERPOL-UN Security Council Special Notice web link: https://www.interpol.int/en/How-we-work/Notices/View-UN-Notices-Entities","UN List","2019-05-01"]
["2019-05-14T20:44:25.777-04:00",null,null,null,null,null,null,null,null,null,null,null,null,null,null,null,null,null,null,null,null,null,null,null,null,null,null,null,null,null,null,null,null,null,null,null,null,null,null,null,null,null,null,null,null,null,null,null,null,null,null,null,null,6908485,1,"MUJAHIDIN INDONESIAN TIMUR (MIT)","Al-Qaida","QDe.150","2015-09-29",null,null,"Terrorist group linked to Islamic State in Iraq and the Levant (ISIL), listed as Al-Qaida in Iraq (QDe.115), Jemaah Islamiyah (JI) (QDe.092), and Jemmah Anshorut Tauhid (JAT) (QDe.133). Operates in Java and Sulawesi, Indonesia and also active in Indonesia’s eastern provinces. Its former leader was Abu Wardah, a.k.a. Santoso (deceased).  INTERPOL-UN Security Council Special Notice web link: https://www.interpol.int/en/How-we-work/Notices/View-UN-Notices-Entities","UN List","2017-03-30"]
["2019-05-14T20:44:25.777-04:00",null,null,null,null,null,null,null,null,null,null,null,null,null,null,null,null,null,null,null,null,null,null,null,null,null,null,null,null,null,null,null,null,null,null,null,null,null,null,null,null,null,null,null,null,null,null,null,null,null,null,null,null,3001252,1,"Mouvement pour l’Unification et le Jihad en Afrique de l’Ouest (MUJAO)","Al-Qaida","QDe.134","2012-12-05",null,"حركة التوحيد والجهاد في غرب إفريقيا","Associated with The Organization of Al-Qaida in the Islamic Maghreb\n(QDe.014) and Mokhtar Belmokhtar (QDi.136). Active in the Sahel/Sahara region. INTERPOL-UN Security Council Special Notice web link: https://www.interpol.int/en/How-we-work/Notices/View-UN-Notices-Entities","UN List"]
["2019-05-14T20:44:25.777-04:00",null,null,null,null,null,null,null,null,null,null,null,null,null,null,null,null,null,null,null,null,null,null,null,null,null,null,null,null,null,null,null,null,null,null,null,null,null,null,null,null,null,null,null,null,null,null,null,null,null,null,null,null,113993,1,"RABITA TRUST","Al-Qaida","QDe.021","2001-10-17",null,null,"Banned in Pakistan. Review pursuant to Security Council resolution 1822\n(2008) was concluded on 21 Jun. 2010. INTERPOL-UN Security Council Special Notice web link: https://www.interpol.int/en/How-we-work/Notices/View-UN-Notices-Entities","UN List","2012-03-21"]
["2019-05-14T20:44:25.777-04:00",null,null,null,null,null,null,null,null,null,null,null,null,null,null,null,null,null,null,null,null,null,null,null,null,null,null,null,null,null,null,null,null,null,null,null,null,null,null,null,null,null,null,null,null,null,null,null,null,null,null,null,null,2812924,1,"RAJAH SOLAIMAN MOVEMENT","Al-Qaida","QDe.128","2008-06-04",null,null,"Founded and headed by Hilarion Del Rosario Santos III (QDi.244).\nAssociated with the Abu Sayyaf Group (QDe.001), Jemaah Islamiyah (QDe.092) and Khadafi\nAbubakar Janjalani (deceased). Review pursuant to Security Council resolution 1822 (2008)\nwas concluded on 13 May 2010. INTERPOL-UN Security Council Special Notice web link: https://www.interpol.int/en/How-we-work/Notices/View-UN-Notices-Entities","UN List","2011-12-13"]
["2019-05-14T20:44:25.777-04:00",null,null,null,null,null,null,null,null,null,null,null,null,null,null,null,null,null,null,null,null,null,null,null,null,null,null,null,null,null,null,null,null,null,null,null,null,null,null,null,null,null,null,null,null,null,null,null,null,null,null,null,null,113994,1,"REVIVAL OF ISLAMIC HERITAGE SOCIETY","Al-Qaida","QDe.070","2002-01-11",null,"جمعية احياء التراث الاسلامي","NOTE: Only the Pakistan and Afghanistan offices of this entity are\ndesignated. Associated with Abu Bakr al-Jaziri (QDi.058) and Afghan Support Committee\n(ASC) (QDe.069). Review pursuant to Security Council resolution 1822 (2008) was\nconcluded on 8 Jun. 2010. INTERPOL-UN Security Council Special Notice web link: https://www.interpol.int/en/How-we-work/Notices/View-UN-Notices-Entities","UN List","2006-07-25"]
["2019-05-14T20:44:25.777-04:00",null,null,null,null,null,null,null,null,null,null,null,null,null,null,null,null,null,null,null,null,null,null,null,null,null,null,null,null,null,null,null,null,null,null,null,null,null,null,null,null,null,null,null,null,null,null,null,null,null,null,null,null,113868,1,"RIYADUS-SALIKHIN RECONNAISSANCE AND SABOTAGE BATTALION OF CHECHEN MARTYRS (RSRSBCM)","Al-Qaida","QDe.100","2003-03-04",null,null,"Associated with the Islamic International Brigade (IIB) (QDe.099), the\nSpecial Purpose Islamic Regiment (SPIR) (QDe.101) and Emarat Kavkaz (QDe.131). Review\npursuant to Security Council resolution 1822 (2008) was concluded on 17 May\n2010. INTERPOL-UN Security Council Special Notice web link: https://www.interpol.int/en/How-we-work/Notices/View-UN-Notices-Entities","UN List","2006-07-25"]
["2019-05-14T20:44:25.777-04:00",null,null,null,null,null,null,null,null,null,null,null,null,null,null,null,null,null,null,null,null,null,null,null,null,null,null,null,null,null,null,null,null,null,null,null,null,null,null,null,null,null,null,null,null,null,null,null,null,null,null,null,null,6908605,1,"SELSELAT AL-THAHAB","Al-Qaida","QDe.154","2017-07-20",null,"سلسلة الذهب للصرافة","Money exchange business facilitating the movement of funds on behalf of Islamic State in Iraq and the Levant (ISIL), listed as Al-Qaida in Iraq (QDe.115), as of Apr. 2016. Conducted over one hundred financial transfers into ISIL-controlled territory.  INTERPOL-UN Security Council Special Notice web link: https://www.interpol.int/en/How-we-work/Notices/View-UN-Notices-Entities","UN List"]
["2019-05-14T20:44:25.777-04:00",null,null,null,null,null,null,null,null,null,null,null,null,null,null,null,null,null,null,null,null,null,null,null,null,null,null,null,null,null,null,null,null,null,null,null,null,null,null,null,null,null,null,null,null,null,null,null,null,null,null,null,null,114111,1,"SPECIAL PURPOSE ISLAMIC REGIMENT (SPIR)","Al-Qaida","QDe.101","2003-03-04",null,null,"Linked to the Islamic International Brigade (IIB) (QDe.099) and the\nRiyadus-Salikhin Reconnaissance and Sabotage Battalion of Chechen Martyrs (RSRSBCM)\n(QDe.100). Review pursuant to Security Council resolution 1822 (2008) was concluded on\n17 May 2010. INTERPOL-UN Security Council Special Notice web link: https://www.interpol.int/en/How-we-work/Notices/View-UN-Notices-Entities","UN List","2006-07-25"]
["2019-05-14T20:44:25.777-04:00",null,null,null,null,null,null,null,null,null,null,null,null,null,null,null,null,null,null,null,null,null,null,null,null,null,null,null,null,null,null,null,null,null,null,null,null,null,null,null,null,null,null,null,null,null,null,null,null,null,null,null,null,114112,1,"TAIBAH INTERNATIONAL-BOSNIA OFFICES","Al-Qaida","QDe.108","2004-05-11",null,null,"In 2002-2004, Taibah International – Bosnia offices used premises of the\nCulture Home in Hadzici, Sarajevo, Bosnia and Herzegovina. The organization was\nofficially registered in Bosnia and Herzegovina as a branch of Taibah International Aid\nAssociation under registry number 7. Taibah International – Bosnia offices ceased its\nwork by decision of the Ministry of Justice of the Bosnia and Herzegovina Federation\n(decision on cessation of operation number 03-05-2-70/03). Review pursuant to Security\nCouncil resolution 1822 (2008) was concluded on 21 Jun. 2010. INTERPOL-UN Security Council Special Notice web link: https://www.interpol.int/en/How-we-work/Notices/View-UN-Notices-Entities","UN List","2009-03-24"]
["2019-05-14T20:44:25.777-04:00",null,null,null,null,null,null,null,null,null,null,null,null,null,null,null,null,null,null,null,null,null,null,null,null,null,null,null,null,null,null,null,null,null,null,null,null,null,null,null,null,null,null,null,null,null,null,null,null,null,null,null,null,6908768,1,"TARIQ GIDAR GROUP (TGG)","Al-Qaida","QDe.160","2019-03-22",null,"طارق گیدڑ گروپ","Splinter group of Tehrik-e Taliban Pakistan (TTP) (QDe.132). The group was formed in Darra Adam Khel, Federally Administered Tribal Area (FATA), Pakistan, in 2007. INTERPOL-UN Security Council Special Notice web link: https://www.interpol.int/en/How-we-work/Notices/View-UN-Notices-Entities","UN List"]
["2019-05-14T20:44:25.777-04:00",null,null,null,null,null,null,null,null,null,null,null,null,null,null,null,null,null,null,null,null,null,null,null,null,null,null,null,null,null,null,null,null,null,null,null,null,null,null,null,null,null,null,null,null,null,null,null,null,null,null,null,null,2971894,1,"TEHRIK-E TALIBAN PAKISTAN (TTP)","Al-Qaida","QDe.132","2011-07-29",null,"تحریک طالبان پاکستان","Tehrik-e Taliban is based in the tribal areas along the Afghanistan/Pakistan border. Formed in 2007, its leader is Maulana Fazlullah (QDi.352).  INTERPOL-UN Security Council Special Notice web link: https://www.interpol.int/en/How-we-work/Notices/View-UN-Notices-Entities","UN List","2015-06-15"]
["2019-05-14T20:44:25.777-04:00",null,null,null,null,null,null,null,null,null,null,null,null,null,null,null,null,null,null,null,null,null,null,null,null,null,null,null,null,null,null,null,null,null,null,null,null,null,null,null,null,null,null,null,null,null,null,null,null,null,null,null,null,6908463,1,"THE ARMY OF EMIGRANTS AND SUPPORTERS","Al-Qaida","QDe.148","2015-08-06",null,"تنظیم جیش المھاجرین و الأنصار","Established by foreign terrorist fighters in 2013. Location: Syrian Arab\nRepublic. Affiliated with Islamic State in Iraq and the Levant, listed as Al-Qaida in\nIraq (QDe.115) and AI-Nusrah Front for the People of the Levant (QDe.137). INTERPOL-UN Security Council Special Notice web link: https://www.interpol.int/en/How-we-work/Notices/View-UN-Notices-Entities","UN List"]
["2019-05-14T20:44:25.777-04:00",null,null,null,null,null,null,null,null,null,null,null,null,null,null,null,null,null,null,null,null,null,null,null,null,null,null,null,null,null,null,null,null,null,null,null,null,null,null,null,null,null,null,null,null,null,null,null,null,null,null,null,null,113995,1,"THE ORGANIZATION OF AL-QAIDA IN THE ISLAMIC MAGHREB","Al-Qaida","QDe.014","2001-10-06","2009-07-17","تنظيم القا عدة ببلاد المغرب الاسلامي","Headed by Abdelmalek Droukdel (QDi.232). Zone of operation includes\nAlgeria and parts of Mali, Mauritania, Niger, Tunisia and Morocco. Review pursuant to\nSecurity Council resolution 1822 (2008) was concluded on 21 Jun. 2010. INTERPOL-UN Security Council Special Notice web link: https://www.interpol.int/en/How-we-work/Notices/View-UN-Notices-Entities","UN List","2007-04-26"]
["2019-05-14T20:44:25.777-04:00",null,null,null,null,null,null,null,null,null,null,null,null,null,null,null,null,null,null,null,null,null,null,null,null,null,null,null,null,null,null,null,null,null,null,null,null,null,null,null,null,null,null,null,null,null,null,null,null,null,null,null,null,113997,1,"TUNISIAN COMBATANT GROUP","Al-Qaida","QDe.090","2002-10-10",null,"الجماعة التونسية المقاتلة","Associated with the Organization of Al-Qaida in the Islamic Maghreb\n(QDe.014). Review pursuant to Security Council resolution 1822 (2008) was concluded on 6\nMay 2010. INTERPOL-UN Security Council Special Notice web link: https://www.interpol.int/en/How-we-work/Notices/View-UN-Notices-Entities","UN List","2004-11-26"]
["2019-05-14T20:44:25.777-04:00",null,null,null,null,null,null,null,null,null,null,null,null,null,null,null,null,null,null,null,null,null,null,null,null,null,null,null,null,null,null,null,null,null,null,null,null,null,null,null,null,null,null,null,null,null,null,null,null,null,null,null,null,113883,1,"UMMAH TAMEER E-NAU (UTN)","Al-Qaida","QDe.068","2001-12-24",null,null,"Its directors included Mahmood Sultan Bashir-Ud-Din (QDi.055), Majeed\nAbdul Chaudhry (QDi.054) and Mohammed Tufail (QDi.056). Banned in Pakistan. Review\npursuant to Security Council resolution 1822 (2008) was concluded on 21 Jun.\n2010. INTERPOL-UN Security Council Special Notice web link: https://www.interpol.int/en/How-we-work/Notices/View-UN-Notices-Entities","UN List","2011-12-13"]
["2019-05-14T20:44:25.777-04:00",null,null,null,null,null,null,null,null,null,null,null,null,null,null,null,null,null,null,null,null,null,null,null,null,null,null,null,null,null,null,null,null,null,null,null,null,null,null,null,null,null,null,null,null,null,null,null,null,null,null,null,null,114113,1,"WAFA HUMANITARIAN ORGANIZATION","Al-Qaida","QDe.015","2001-10-06",null,null,"Headquarters was in Kandahar, Afghanistan as at 2001. Wafa was a\ncomponent of Al-Qaida (QDe.004) in 2001. Review pursuant to Security Council resolution\n1822 (2008) was concluded on 21 Jun. 2010. INTERPOL-UN Security Council Special Notice web link: https://www.interpol.int/en/How-we-work/Notices/View-UN-Notices-Entities","UN List","2012-03-21"]

{"sheet":"TA","index":1,"n_rows":142,"n_cols":75,"rows_kept":142,"cut":false,"hidden":false,"merged":[]}
["Data generacji listy","Numer ID danych","Numer wersji","Godność - pierwsza część","Godność - druga część","Godność - trzecia część","Godność - czwarta część","Typ listy sankcyjnej ONZ","Numer referencyjny","Data dodania do listy","Płeć","Dodany przez","Godność - oryginalna pisownia","Komentarze","Narodowość","Dodatkowe informacje ","Dodatkowe informacje ","Dodatkowe informacje ","Dodatkowe informacje ","Dodatkowe informacje ","Jakość danych","Aliasy","Data urodzenia","Miasto urodzenia","Kraj urodzenia","Dodatkowe informacje","Ulica","Miejscowość","Stan/Prowincja","Kod pocztowy","Kraj","Dodatkowe informacje","Typ daty","Dodatkowe informacje","Data","Rok","Rok od","Rok do","Miejscowość","Stan/Prowincja","Kraj","Dodatkowe informacje","Typ dokumentu","Typ dokumentu","Numer dokumentu","Kraj wydania dokumentu","Data wydania dokumentu","Miasto wydania dokumentu","Kraj wydania dokumentu","Dodatkowe informacje","Klucz sortowania","Klucz sortowania ostatnia modyfikacja","Data usunięcia z listy","Numer ID danych","Numer wersji","Nazwa","Typ listy sankcyjnej ONZ","Numer referencyjny","Data dodania do listy","Data zgłoszenia","Oryginalna pisownia nazwy","Komentarze","Dodatkowe informacje","Dodatkowe informacje","Jakość danych","Aliasy","Ulica","Miejscowość","Stan/Prowincja","Kod pocztowy","Kraj","Dodatkowe informacje","Klucz sortowania","Klucz sortowania ostatnia modyfikacja","Data usunięcia z listy"]
["dateGenerated","DATAID","VERSIONNUM","FIRST_NAME","SECOND_NAME","THIRD_NAME","FOURTH_NAME","UN_LIST_TYPE","REFERENCE_NUMBER","LISTED_ON","GENDER","SUBMITTED_BY","NAME_ORIGINAL_SCRIPT","COMMENTS1","NATIONALITY2","VALUE","VALUE2","VALUE3","VALUE4","VALUE5","QUALITY","ALIAS_NAME","DATE_OF_BIRTH","CITY_OF_BIRTH","COUNTRY_OF_BIRTH","NOTE","STREET","CITY","STATE_PROVINCE","ZIP_CODE","COUNTRY","NOTE6","TYPE_OF_DATE","NOTE7","DATE","YEAR","FROM_YEAR","TO_YEAR","CITY8","STATE_PROVINCE9","COUNTRY10","NOTE11","TYPE_OF_DOCUMENT","TYPE_OF_DOCUMENT2","NUMBER","ISSUING_COUNTRY","DATE_OF_ISSUE","CITY_OF_ISSUE","COUNTRY_OF_ISSUE","NOTE12","SORT_KEY","SORT_KEY_LAST_MOD","DELISTED_ON","DATAID13","VERSIONNUM14","FIRST_NAME15","UN_LIST_TYPE16","REFERENCE_NUMBER17","LISTED_ON18","SUBMITTED_ON","NAME_ORIGINAL_SCRIPT19","COMMENTS120","VALUE21","VALUE22","QUALITY23","ALIAS_NAME24","STREET25","CITY26","STATE_PROVINCE27","ZIP_CODE28","COUNTRY29","NOTE30","SORT_KEY31","SORT_KEY_LAST_MOD32","DELISTED_ON33"]
["2019-05-14T20:44:25.777-04:00",2975591,1,"ABDUL AZIZ","ABBASIN",null,null,"Taliban","TAi.155","2011-10-04",null,null,"عبد العزيز عباسین","Key commander in the Haqqani Network (TAe.012) under Sirajuddin\nJallaloudine Haqqani (TAi.144). Taliban Shadow Governor for Orgun District, Paktika\nProvince as of early 2010. Operated a training camp for non-Afghan fighters in Paktika\nProvince. Has been involved in the transport of weapons to Afghanistan. INTERPOL-UN Security Council Special Notice web link: https://www.interpol.int/en/How-we-work/Notices/View-UN-Notices-Individuals",null,null,null,null,"UN List","2013-04-22","Good","Abdul Aziz Mahsud",null,null,null,null,null,null,null,null,null,null,"EXACT",null,null,1969,null,null,"Sheykhan Village, Pirkowti Area, Orgun District","Paktika Province","Afghanistan"]
["2019-05-14T20:44:25.777-04:00",111301,1,"AZIZIRAHMAN","ABDUL AHAD",null,null,"Taliban","TAi.121","2001-01-25",null,null,"عزیز الرحمان عبد الاحد","Belongs to Hotak tribe. Review pursuant to Security Council resolution\n1822 (2008) was concluded on 29 Jul. 2010. INTERPOL-UN Security Council Special Notice web link: https://www.interpol.int/en/How-we-work/Notices/View-UN-Notices-Individuals",null,"Mr",null,null,"UN List"]
["2019-05-14T20:44:25.777-04:00",111040,1,"ABDUL GHANI","BARADAR","ABDUL AHMAD TURK",null,"Taliban","TAi.024","2001-02-23",null,null,"عبدالغنی برادر عبد الاحمد ترک","Arrested in Feb. 2010 and in custody in Pakistan. Extradition request to\nAfghanistan pending in Lahore High Court, Pakistan as of June 2011. Belongs to Popalzai\ntribe. Senior Taliban military commander and member of Taliban Quetta Council as of May\n2007. Review pursuant to Security Council resolution 1822 (2008) was concluded on 1 Jun.\n2010. INTERPOL-UN Security Council Special Notice web link: https://www.interpol.int/en/How-we-work/Notices/View-UN-Notices-Individuals",null,"Mullah",null,null,"UN List"]
["2019-05-14T20:44:25.777-04:00",111302,1,"ABDUL QADEER","BASIR","ABDUL BASEER",null,"Taliban","TAi.128","2001-01-25",null,null,"عبدالقدیر بصیر عبد البصير","Financial advisor to Taliban Peshawar Military Council and Head of\nTaliban Peshawar Financial Commission. Believed to be in Afghanistan/Pakistan border\narea. Review pursuant to Security Council resolution 1822 (2008) was concluded on 21\nJul. 2010. INTERPOL-UN Security Council Special Notice web link: https://www.interpol.int/en/How-we-work/Notices/View-UN-Notices-Individuals",null,"General, Maulavi","Military Attache, Taliban Embassy, Islamabad, Pakistan","Afghanistan","UN List","2003-09-03, 2006-07-25, 2007-04-23, 2007-07-18, 2007-09-21, 2011-11-29, 2012-08-13","Good","Abdul Qadir, Ahmad Haji, Abdul Qadir Haqqani, Abdul Qadir Basir"]
["2019-05-14T20:44:25.777-04:00",110962,1,"NAZIR MOHAMMAD","ABDUL BASIR",null,null,"Taliban","TAi.100","2001-02-23",null,null,"نظر محمدعبد البصیر","Alternative title: Sar Muallim. Reconciled after the fall of the Taliban\nregime, and assumed duties under the new Government on district level in Kunduz\nProvince. Confirmed assassinated by Taliban on 9 November 2008. Review pursuant to\nSecurity Council resolution 1822 (2008) was concluded on 27 Jul. 2010. INTERPOL-UN Security Council Special Notice web link: https://www.interpol.int/en/How-we-work/Notices/View-UN-Notices-Individuals",null,"Maulavi",null,null,"UN List"]
["2019-05-14T20:44:25.777-04:00",690726,1,"ABDUL GHAFAR","QURISHI","ABDUL GHANI",null,"Taliban","TAi.130","2001-01-25",null,null,"عبدالغفار قریشی عبد الغنی","Involved in drug trafficking. Belongs to Tajik ethnic group. Review\npursuant to Security Council resolution 1822 (2008) was concluded on 29 Jul.\n2010. INTERPOL-UN Security Council Special Notice web link: https://www.interpol.int/en/How-we-work/Notices/View-UN-Notices-Individuals",null,"Maulavi",null,null,"UN List"]
["2019-05-14T20:44:25.777-04:00",2989674,1,"ABDUL SATAR","ABDUL MANAN",null,null,"Taliban","TAi.162","2012-06-29",null,null,"عبد الستار عبد المنان","Co-owner of Haji Khairullah Haji Sattar Money Exchange (TAe.010) and\nassociated also with Khairullah Barakzai (TAi.163). Belongs to Barakzai tribe. Father’s\nname is Hajji ‘Abd-al-Manaf. INTERPOL-UN Security Council Special Notice web link: https://www.interpol.int/en/How-we-work/Notices/View-UN-Notices-Individuals",null,"Haji",null,null,"UN List"]
["2019-05-14T20:44:25.777-04:00",111239,1,"ABDUL HAI","HAZEM","ABDUL QADER",null,"Taliban","TAi.142","2001-01-25",null,null,"عبد الحی عظیم عبد القادر","Review pursuant to Security Council resolution 1822 (2008) was concluded\non 29 Jul. 2010. INTERPOL-UN Security Council Special Notice web link: https://www.interpol.int/en/How-we-work/Notices/View-UN-Notices-Individuals",null,"Maulavi",null,null,"UN List"]
["2019-05-14T20:44:25.777-04:00",110964,1,"AHMAD TAHA","KHALID","ABDUL QADIR",null,"Taliban","TAi.105","2001-02-23",null,null,"احمد طه خالد عبد القادر","Taliban member responsible for Nangarhar Province as at 2011. Believed to\nbe in Afghanistan/Pakistan border area. Belongs to Zadran tribe. Close associate of\nSirajuddin Jallaloudine Haqqani (TAi.144). Review pursuant to Security Council\nresolution 1822 (2008) was concluded on 1 Jun. 2010. INTERPOL-UN Security Council Special Notice web link: https://www.interpol.int/en/How-we-work/Notices/View-UN-Notices-Individuals",null,"Maulavi",null,null,"UN List"]
["2019-05-14T20:44:25.777-04:00",111119,1,"SAYED ESMATULLAH","ASEM","ABDUL QUDDUS",null,"Taliban","TAi.080","2001-02-23",null,null,"سید عصمت الله عاصم عبد القدوس","Member of the Taliban Supreme Council as of May 2007. Believed to be in\nAfghanistan/Pakistan border area. Member of the Taliban Peshawar Shura. Responsible for\nAfghan Taliban activity in Federally Administrated Tribal Areas, Pakistan as at 2008. A\nleading expert in IED and suicide attacks as of 2012. Review pursuant to Security\nCouncil resolution 1822 (2008) was concluded on 1 Jun. 2010. INTERPOL-UN Security Council Special Notice web link: https://www.interpol.int/en/How-we-work/Notices/View-UN-Notices-Individuals",null,"Maulavi",null,null,"UN List"]
["2019-05-14T20:44:25.777-04:00",110896,1,"SHAMS","UR-RAHMAN","ABDUL ZAHIR",null,"Taliban","TAi.008","2001-02-23",null,null,"شمس الرحمن عبد الظاهر","Believed to be in Afghanistan/Pakistan border area. Involved in drug\ntrafficking. Belongs to Ghilzai tribe. Review pursuant to Security Council resolution\n1822 (2008) was concluded on 27 Jul. 2010. INTERPOL-UN Security Council Special Notice web link: https://www.interpol.int/en/How-we-work/Notices/View-UN-Notices-Individuals",null,"Mullah",null,null,"UN List"]
["2019-05-14T20:44:25.777-04:00",2913551,1,"AMIR","ABDULLAH",null,null,"Taliban","TAi.145","2010-07-20",null,null,"امیر عبد الله","Has travelled to Kuwait, Saudi Arabia, the Libyan Arab Jamahiriya and the\nUnited Arab Emirates to raise funds for the Taliban. Treasurer to Abdul Ghani Baradar\nAbdul Ahmad Turk (TAi.024). Believed to be in Afghanistan/Pakistan border\narea. INTERPOL-UN Security Council Special Notice web link: https://www.interpol.int/en/How-we-work/Notices/View-UN-Notices-Individuals",null,null,"Former Kandahar Province Deputy Taliban Governor",null,"UN List"]
["2019-05-14T20:44:25.777-04:00",2983128,1,"ABDUL SAMAD","ACHEKZAI",null,null,"Taliban","TAi.160","2012-03-02",null,null,"عبد الصمد اچکزی","Senior Taliban member responsible for the manufacturing of improvised explosive devices (IED). Involved in recruiting and deploying suicide bombers to conduct attacks in Afghanistan. INTERPOL-UN Security Council Special Notice web link: https://www.interpol.int/en/How-we-work/Notices/View-UN-Notices-Individuals",null,null,null,"Afghanistan","UN List"]
["2019-05-14T20:44:25.777-04:00",3016479,1,"ADAM KHAN","ACHEKZAI",null,null,"Taliban","TAi.167","2013-04-16",null,null,"آدم خان اچکزی","Improvised explosive device manufacturer and facilitator for the Taliban.\nTaliban member responsible for Badghis Province, Afghanistan, as at mid – 2010. Former\nTaliban member responsible for Sar-e Pul and Samangan Provinces, Afghanistan. As Taliban\nmilitary commander in Kandahar Province, Afghanistan, he was involved in organizing\nsuicide attacks in neighboring provinces. Associated with Abdul Samad Achekzai\n(TAi.160). INTERPOL-UN Security Council Special Notice web link: https://www.interpol.int/en/How-we-work/Notices/View-UN-Notices-Individuals",null,"Maulavi",null,null,"UN List"]
["2019-05-14T20:44:25.777-04:00",110967,1,"ABDUL RAHMAN","AGHA",null,null,"Taliban","TAi.114","2001-01-25",null,null,"عبدالرحمان آغا","Believed to be in Afghanistan/Pakistan border area. Review pursuant to\nSecurity Council resolution 1822 (2008) was concluded on 29 Jul. 2010. INTERPOL-UN Security Council Special Notice web link: https://www.interpol.int/en/How-we-work/Notices/View-UN-Notices-Individuals",null,"Maulavi",null,null,"UN List"]
["2019-05-14T20:44:25.777-04:00",2981707,1,"AHMAD","ZIA","AGHA",null,"Taliban","TAi.156","2012-01-06",null,null,"احمد ضیا آغا","Senior Taliban official with military and financial responsibilities as\nat 2011. Leader of the Taliban’s Military Council as of 2010. In 2008 and 2009, served\nas a Taliban finance officer and distributed money to Taliban commanders in\nAfghanistan/Pakistan border area. INTERPOL-UN Security Council Special Notice web link: https://www.interpol.int/en/How-we-work/Notices/View-UN-Notices-Individuals",null,"Haji",null,null,"UN List"]
["2019-05-14T20:44:25.777-04:00",111204,1,"JANAN","AGHA",null,null,"Taliban","TAi.091","2001-02-23",null,null,"جانان آغا","Member of Taliban Supreme Council and advisor to Mullah Mohammed Omar\n(TAi.004) as at June 2010. Leads a Taliban \"front\" (mahaz) as of mid-2013. Believed to\nbe in Afghanistan/Pakistan border area. Belongs to Sadat ethnic group. Review pursuant\nto Security Council resolution 1822 (2008) was concluded on 23 Jul. 2010. INTERPOL-UN Security Council Special Notice web link: https://www.interpol.int/en/How-we-work/Notices/View-UN-Notices-Individuals",null,"Mullah",null,null,"UN List"]
["2019-05-14T20:44:25.777-04:00",111072,1,"SAYED","MOHAMMAD","AZIM","AGHA","Taliban","TAi.057","2001-02-23",null,null,"سید محمد عظیم ﺁغا","Directs a Taliban \"front\"(mahaz) and serves as member of the military\ncommission of the Taliban as of mid-2013. Believed to be in Afghanistan/Pakistan border\narea. Review pursuant to Security Council resolution 1822 (2008) was concluded on 23\nJul. 2010. INTERPOL-UN Security Council Special Notice web link: https://www.interpol.int/en/How-we-work/Notices/View-UN-Notices-Individuals",null,"Maulavi",null,null,"UN List"]
["2019-05-14T20:44:25.777-04:00",110944,1,"SAYYED GHIASSOUDDINE","AGHA",null,null,"Taliban","TAi.072","2001-01-31",null,null,"سيد غیاث الدین آغا","Taliban member responsible for Faryab, Jawzjan, Sari Pul and Balkh\nProvinces, Afghanistan as at June 2010. Involved in drug trafficking. Member of Taliban\nSupreme Council and Taliban Military Council as at December 2009. Believed to be in\nAfghanistan/Pakistan border area. Belongs to Sadat ethnic group. Review pursuant to\nSecurity Council resolution 1822 (2008) was concluded on 27 Jul. 2010. INTERPOL-UN Security Council Special Notice web link: https://www.interpol.int/en/How-we-work/Notices/View-UN-Notices-Individuals",null,"Maulavi",null,null,"UN List"]
["2019-05-14T20:44:25.777-04:00",6908491,1,"TOREK","AGHA",null,null,"Taliban","TAi.174","2015-11-02",null,null,"تورک آغا","Key commander for Taliban military council involved in fundraising from Gulf-based donors. Photo available for inclusion in the INTERPOL-UN Security Council Special Notice. Reportedly deceased as of November 2018. INTERPOL-UN Security Council Special Notice web link: https://www.interpol.int/en/How-we-work/Notices/View-UN-Notices-Individuals",null,"Haji",null,null,"UN List"]
["2019-05-14T20:44:25.777-04:00",110901,1,"MOHAMMAD","AHMADI",null,null,"Taliban","TAi.031","2001-02-23",null,null,"محمد احمدی","Believed to be in Afghanistan/Pakistan border area. Belongs to Kakar\ntribe. He is a member of the Taliban Supreme Council. Review pursuant to Security\nCouncil resolution 1822 (2008) was concluded on 23 Jul. 2010. INTERPOL-UN Security Council Special Notice web link: https://www.interpol.int/en/How-we-work/Notices/View-UN-Notices-Individuals",null,"Mullah",null,null,"UN List"]
["2019-05-14T20:44:25.777-04:00",2981584,1,"AHMED JAN","WAZIR","AKHTAR MOHAMMAD",null,"Taliban","TAi.159","2012-01-06",null,null,"احمد جان وزیر اختر محمد","Key commander of the Haqqani Network (TAe.012), which is based in\nAfghanistan/Pakistan border area. Acts as deputy, spokesperson and advisor for Haqqani\nNetwork senior leader Sirajuddin Jallaloudine Haqqani (TAi.144). Liaises with the\nTaliban Supreme Council. Has travelled abroad. Liaises with and provides Taliban\ncommanders in Ghazni Province, Afghanistan, with money, weapons, communications\nequipment and supplies. Reportedly deceased as of 2013. INTERPOL-UN Security Council Special Notice web link: https://www.interpol.int/en/How-we-work/Notices/View-UN-Notices-Individuals",null,null,"Official of the Ministry of Finance during the Taliban\nregime",null,"UN List"]
["2019-05-14T20:44:25.777-04:00",2945562,1,"SALEH","MOHAMMAD","KAKAR","AKHTAR MUHAMMAD","Taliban","TAi.149","2010-11-04",null,null,"ﺻﺍﻠﺡ ﻤﺣﻤﺩ ﻛﺍﻛﺭ اختر محمد","Has run an organized smuggling network in Kandahar and Helmand provinces,\nAfghanistan. Previously operated heroin processing laboratories in Band-e Temur,\nKandahar Province, Afghanistan. Has owned a car dealership in Mirwais Mena, Dand\nDistrict in Kandahar Province, Afghanistan. Released from custody in Afghanistan in\nFebruary 2014. Linked by marriage to Mullah Ubaidullah Akhund Yar Mohammad Akhund\n(TAi.022). Belongs to Kakar tribe. INTERPOL-UN Security Council Special Notice web link: https://www.interpol.int/en/How-we-work/Notices/View-UN-Notices-Individuals",null,null,null,"Afghanistan","UN List"]
["2019-05-14T20:44:25.777-04:00",111205,1,"ABDUL BARI","AKHUND",null,null,"Taliban","TAi.094","2001-02-23",null,null,"عبد الباری ﺁخوند","Member of the Taliban Supreme Council as of 2009. Believed to be in\nAfghanistan/Pakistan border area. Belongs to Alokozai tribe. Member of Taliban\nleadership in Helmand Province, Afghanistan. Review pursuant to Security Council\nresolution 1822 (2008) was concluded on 1 Jun. 2010. INTERPOL-UN Security Council Special Notice web link: https://www.interpol.int/en/How-we-work/Notices/View-UN-Notices-Individuals",null,"Maulavi",null,null,"UN List"]
["2019-05-14T20:44:25.777-04:00",111034,1,"ATTIQULLAH","AKHUND",null,null,"Taliban","TAi.009","2001-02-23",null,null,"عتیق الله آخوند","Member of Taliban Supreme Military Council as well as Taliban Supreme\nCouncil as at June 2010. Belongs to Popalzai tribe. Review pursuant to Security Council\nresolution 1822 (2008) was concluded on 23 Jul. 2010. INTERPOL-UN Security Council Special Notice web link: https://www.interpol.int/en/How-we-work/Notices/View-UN-Notices-Individuals",null,"Maulavi",null,null,"UN List"]
["2019-05-14T20:44:25.777-04:00",2981821,1,"MOHAMMAD","AMAN","AKHUND",null,"Taliban","TAi.158","2012-01-06",null,null,"محمد امان آخوند","Senior Taliban member as at 2011 with financial duties, including raising\nfunds on behalf of the leadership. Has provided logistical support for Taliban\noperations and channeled proceeds from drug trafficking to arms purchases. Has acted as\nsecretary to Taliban leader Mullah Mohammed Omar (TAi.004) and as his messenger at\nsenior-level meetings of the Taliban. Also associated with Gul Agha Ishakzai (TAi.147).\nMember of Mullah Mohammed Omar’s (TAi.004) inner circle during the Taliban\nregime. INTERPOL-UN Security Council Special Notice web link: https://www.interpol.int/en/How-we-work/Notices/View-UN-Notices-Individuals",null,null,null,null,"UN List","2012-05-18"]
["2019-05-14T20:44:25.777-04:00",110577,1,"MOHAMMAD","HASSAN","AKHUND",null,"Taliban","TAi.002","2001-01-25",null,null,"محمد حسن آخوند","A close associate of Mullah Mohammed Omar (TAi.004). Member of Taliban\nSupreme Council as at Dec. 2009. Belongs to Kakar tribe. Review pursuant to Security\nCouncil resolution 1822 (2008) was concluded on 21 Jul. 2010. INTERPOL-UN Security Council Special Notice web link: https://www.interpol.int/en/How-we-work/Notices/View-UN-Notices-Individuals",null,"Mullah",null,null,"UN List"]
["2019-05-14T20:44:25.777-04:00",110942,1,"MOHAMMAD ABBAS","AKHUND",null,null,"Taliban","TAi.066","2001-01-25",null,null,"محمد عباس آخوند","Member of Taliban Supreme Council in charge of the Medical Committee as\nof Jan. 2011. Directly supervises three medical centers caring for wounded Taliban\nfighters as of mid-2013. Believed to be in Afghanistan/Pakistan border area. Belongs to\nBarakzai tribe. Review pursuant to Security Council resolution 1822 (2008) was concluded\non 29 Jul. 2010. INTERPOL-UN Security Council Special Notice web link: https://www.interpol.int/en/How-we-work/Notices/View-UN-Notices-Individuals",null,"Mullah",null,null,"UN List"]
["2019-05-14T20:44:25.777-04:00",111074,1,"MOHAMMAD ESSA","AKHUND",null,null,"Taliban","TAi.060","2001-01-25",null,null,"محمد عیسی آخوند","Belongs to Nurzai tribe. Review pursuant to Security Council resolution\n1822 (2008) was concluded on 27 Jul. 2010. INTERPOL-UN Security Council Special Notice web link: https://www.interpol.int/en/How-we-work/Notices/View-UN-Notices-Individuals",null,"Alhaj",null,null,"UN List"]
["2019-05-14T20:44:25.777-04:00",111148,1,"AHMAD JAN","AKHUNDZADA","SHUKOOR","AKHUNDZADA","Taliban","TAi.109","2001-01-25",null,null,"احمد جان آخوند زاده شكور آخوند زاده","Taliban member responsible for Uruzgan Province, Afghanistan, as at early\n2007. Brother-in-law of Mullah Mohammed Omar (TAi.004). Believed to be in\nAfghanistan/Pakistan border area. Review pursuant to Security Council resolution 1822\n(2008) was concluded on 29 Jul. 2010. INTERPOL-UN Security Council Special Notice web link: https://www.interpol.int/en/How-we-work/Notices/View-UN-Notices-Individuals",null,"Maulavi",null,null,"UN List"]
["2019-05-14T20:44:25.777-04:00",111121,1,"EHSANULLAH","SARFIDA","HESAMUDDIN","AKHUNDZADA","Taliban","TAi.083","2001-02-23",null,null,"احسان الله سرفدا حسام الدین آخوندزاده","As of mid-2007, he provided support to the Taliban in the form of weapons\nand money. Believed to be in the Gulf region. Belongs to Taraki tribe. Review pursuant\nto Security Council resolution 1822 (2008) was concluded on 23 Jul. 2010. INTERPOL-UN Security Council Special Notice web link: https://www.interpol.int/en/How-we-work/Notices/View-UN-Notices-Individuals",null,"Maulavi",null,null,"UN List"]
["2019-05-14T20:44:25.777-04:00",111145,1,"MOHAMMAD ESHAQ","AKHUNZADA",null,null,"Taliban","TAi.101","2001-02-23",null,null,"محمد اسحاق آخوند زاده","Taliban commander for Ghazni Province as at 2008. Belongs to Andar tribe.\nReview pursuant to Security Council resolution 1822 (2008) was concluded on 23 Jul.\n2010. INTERPOL-UN Security Council Special Notice web link: https://www.interpol.int/en/How-we-work/Notices/View-UN-Notices-Individuals",null,"Maulavi",null,null,"UN List"]
["2019-05-14T20:44:25.777-04:00",2945892,1,"ABDUL HABIB","ALIZAI",null,null,"Taliban","TAi.148","2010-11-04",null,null,"عبد الحبیب عالیزی","Has managed a drug trafficking network in Helmand Province, Afghanistan.\nHas regularly traveled to Pakistan. INTERPOL-UN Security Council Special Notice web link: https://www.interpol.int/en/How-we-work/Notices/View-UN-Notices-Individuals",null,"Haji",null,null,"UN List"]
["2019-05-14T20:44:25.777-04:00",111182,1,"HAMDULLAH","ALLAH NOOR",null,null,"Taliban","TAi.143","2001-01-25",null,null,"حمد الله الله نور","Believed to be in Afghanistan/Pakistan border area. Belongs to Baloch\nethnic group. Review pursuant to Security Council resolution 1822 (2008) was concluded\non 21 Jul. 2010. Additional title: Hafiz. INTERPOL-UN Security Council Special Notice web link: https://www.interpol.int/en/How-we-work/Notices/View-UN-Notices-Individuals",null,"Maulavi",null,null,"UN List"]
["2019-05-14T20:44:25.777-04:00",111303,1,"MOHAMMAD SADIQ","AMIR MOHAMMAD",null,null,"Taliban","TAi.136","2001-01-25",null,null,"محمد صادق امیر محمد","Reportedly deceased. Review pursuant to Security Council resolution 1822\n(2008) was concluded on 21 Jul. 2010. INTERPOL-UN Security Council Special Notice web link: https://www.interpol.int/en/How-we-work/Notices/View-UN-Notices-Individuals",null,"Alhaj",null,null,"UN List"]
["2019-05-14T20:44:25.777-04:00",110447,1,"MUHAMMAD","TAHER","ANWARI",null,"Taliban","TAi.005","2001-02-23",null,null,"محمد طاهر أنوري","Belongs to Andar tribe. Review pursuant to Security Council resolution\n1822 (2008) was concluded on 23 Jul. 2010. INTERPOL-UN Security Council Special Notice web link: https://www.interpol.int/en/How-we-work/Notices/View-UN-Notices-Individuals",null,"Mullah",null,null,"UN List"]
["2019-05-14T20:44:25.777-04:00",110914,1,"ABDUL BAQI","BASIR","AWAL SHAH",null,"Taliban","TAi.038","2001-02-23",null,null,"عبد الباقي بصير أول شاه","Believed to be in Afghanistan/Pakistan border area. Taliban member\nresponsible for Nangarhar Province as at 2008. Until 7 Sep. 2007 he was also listed\nunder number TAi.048. Review pursuant to Security Council resolution 1822 (2008) was\nconcluded on 1 Jun. 2010. INTERPOL-UN Security Council Special Notice web link: https://www.interpol.int/en/How-we-work/Notices/View-UN-Notices-Individuals",null,"Maulavi",null,null,"UN List"]
["2019-05-14T20:44:25.777-04:00",111147,1,"MOHAMMAD RASUL","AYYUB",null,null,"Taliban","TAi.104","2001-02-23",null,null,"محمد رسول ایوب","Member of the Taliban Quetta Shura. Believed to be in\nAfghanistan/Pakistan border area. Belongs to Nurzai tribe. Review pursuant to Security\nCouncil resolution 1822 (2008) was concluded on 27 Jul. 2010. INTERPOL-UN Security Council Special Notice web link: https://www.interpol.int/en/How-we-work/Notices/View-UN-Notices-Individuals",null,"Maulavi",null,null,"UN List"]
["2019-05-14T20:44:25.777-04:00",111211,1,"SHAHABUDDIN","DELAWAR",null,null,"Taliban","TAi.113","2001-02-23",null,null,"شهاب الدين دلاور","Deputy Head of Taliban Embassy in Riyadh, Saudi Arabia until 25 Sept. 1998. Believed to be in Afghanistan/Pakistan border area. Review pursuant to Security Council resolution 1822 (2008) was concluded on 27 Jul. 2010. Picture available for inclusion in the INTERPOL-UN Security Council Special Notice. INTERPOL-UN Security Council Special Notice web link: https://www.interpol.int/en/How-we-work/Notices/View-UN-Notices-Individuals",null,"Maulavi",null,null,"UN List"]
["2019-05-14T20:44:25.777-04:00",111143,1,"DOST MOHAMMAD",null,null,null,"Taliban","TAi.092","2001-01-25",null,null,"دوست محمد","Associated with Mullah Jalil Haqqani (TAi.034). Believed to be in\nAfghanistan/Pakistan border area. Belongs to Popalzai tribe. Review pursuant to Security\nCouncil resolution 1822 (2008) was concluded on 27 Jul. 2010. INTERPOL-UN Security Council Special Notice web link: https://www.interpol.int/en/How-we-work/Notices/View-UN-Notices-Individuals",null,"Mullah",null,null,"UN List"]
["2019-05-14T20:44:25.777-04:00",111037,1,"NIK MOHAMMAD","DOST MOHAMMAD",null,null,"Taliban","TAi.019","2001-01-31",null,null,"نیک محمد دوست محمد","Leads a commission to register enemies of the Taliban as of mid-2013.\nBelieved to be in Afghanistan/Pakistan border area. Belongs to Nurzai tribe. Review\npursuant to Security Council resolution 1822 (2008) was concluded on 27 Jul.\n2010. INTERPOL-UN Security Council Special Notice web link: https://www.interpol.int/en/How-we-work/Notices/View-UN-Notices-Individuals",null,"Maulavi",null,null,"UN List"]
["2019-05-14T20:44:25.777-04:00",111113,1,"MOHAMMAD AZAM","ELMI",null,null,"Taliban","TAi.063","2001-02-23",null,null,"محمد اعظم علمی","Reportedly deceased in 2005. Review pursuant to Security Council\nresolution 1822 (2008) was concluded on 29 Jul. 2010. INTERPOL-UN Security Council Special Notice web link: https://www.interpol.int/en/How-we-work/Notices/View-UN-Notices-Individuals",null,"Maulavi","Deputy Minister of Mines and Industries under the Taliban\nregime","Afghanistan","UN List","2003-09-03, 2007-07-18, 2007-09-21, 2011-11-29","Good","Muhammad Azami",null,null,null,null,null,null,null,null,null,null,"APPROXIMATELY",null,null,1968,null,null,"Sayd Karam District","Paktia Province","Afghanistan"]
["2019-05-14T20:44:25.777-04:00",110913,1,"FAIZ",null,null,null,"Taliban","TAi.036","2001-02-23",null,null,"فيض","Review pursuant to Security Council resolution 1822 (2008) was concluded\non 23 Jul. 2010. INTERPOL-UN Security Council Special Notice web link: https://www.interpol.int/en/How-we-work/Notices/View-UN-Notices-Individuals",null,"Maulavi",null,null,"UN List"]
["2019-05-14T20:44:25.777-04:00",111208,1,"MOHAMMAD SHAFIQULLAH","AHMADI","FATIH KHAN",null,"Taliban","TAi.106","2001-02-23",null,null,"محمد شفیق الله احمدی فاتح خان","Originally from Ghazni Province, but later lived in Uruzgan. Taliban Shadow Governor for Uruzgan Province as of late 2012. Serves as a member of the Military Commission as of July 2016. Belongs to Hotak tribe. Review pursuant to Security Council resolution 1822 (2008) was concluded on 27 Jul. 2010. INTERPOL-UN Security Council Special Notice web link: https://www.interpol.int/en/How-we-work/Notices/View-UN-Notices-Individuals",null,"Mullah",null,null,"UN List"]
["2019-05-14T20:44:25.777-04:00",111097,1,"AREFULLAH","AREF","GHAZI MOHAMMAD",null,"Taliban","TAi.030","2001-01-31",null,null,"عارف الله عارف غازی محمد","Directs Taliban \"front\" in Gelan District, Ghazni Province, Afghanistan\nas of mid-2013. Believed to be in Afghanistan/Pakistan border area. Belongs to Andar\ntribe. Review pursuant to Security Council resolution 1822 (2008) was concluded on 27\nJul. 2010. INTERPOL-UN Security Council Special Notice web link: https://www.interpol.int/en/How-we-work/Notices/View-UN-Notices-Individuals",null,"Maulavi",null,null,"UN List"]
["2019-05-14T20:44:25.777-04:00",110579,1,"MOHAMMED","OMAR","GHULAM NABI",null,"Taliban","TAi.004","2000-04-12",null,null,"محمد عمر غلام نبی","Father's name is Ghulam Nabi, also known as Mullah Musafir. Left eye missing. Brother-in-law of Ahmad Jan Akhundzada Shukoor Akhundzada (TAi.109). Believed to be in Afghanistan/Pakistan border area. Belongs to Hotak tribe. Review pursuant to Security Council resolution 1822 (2008) was concluded on 27 Jul. 2010. Reportedly deceased as of April 2013. INTERPOL-UN Security Council Special Notice web link: https://www.interpol.int/en/How-we-work/Notices/View-UN-Notices-Individuals",null,"Mullah",null,null,"UN List"]
["2019-05-14T20:44:25.777-04:00",2989151,1,"BAKHT","GUL",null,null,"Taliban","TAi.161","2012-06-27",null,null,"بخت گل","Communications assistant to Badruddin Haqqani (deceased). Also coordinates movement of Haqqani insurgents, foreign fighters and weapons in the Afghanistan/Pakistan border area. Belongs to Zadran tribe. INTERPOL-UN Security Council Special Notice web link: https://www.interpol.int/en/How-we-work/Notices/View-UN-Notices-Individuals",null,null,null,"Afghanistan","UN List"]
["2019-05-14T20:44:25.777-04:00",110943,1,"RUSTUM","HANAFI","HABIBULLAH",null,"Taliban","TAi.069","2001-01-25",null,null,"رستم حنفی حبیب الله","Taliban member responsible for Nuristan Province, Afghanistan, as of May\n2007. Belongs to Nuristani tribe. Reportedly deceased in early 2012. Review pursuant to\nSecurity Council resolution 1822 (2008) was concluded on 23 Jul. 2010. INTERPOL-UN Security Council Special Notice web link: https://www.interpol.int/en/How-we-work/Notices/View-UN-Notices-Individuals",null,"Maulavi",null,null,"UN List"]
["2019-05-14T20:44:25.777-04:00",111181,1,"GUL AHMAD","HAKIMI",null,null,"Taliban","TAi.140","2001-01-25",null,null,"گل احمد حكيمى","Believed to be in Afghanistan/Pakistan border area. Review pursuant to\nSecurity Council resolution 1822 (2008) was concluded on 29 Jul. 2010. INTERPOL-UN Security Council Special Notice web link: https://www.interpol.int/en/How-we-work/Notices/View-UN-Notices-Individuals",null,"Maulavi",null,null,"UN List"]
["2019-05-14T20:44:25.777-04:00",110917,1,"DIN MOHAMMAD","HANIF",null,null,"Taliban","TAi.043","2001-01-25",null,null,"دین محمد حنیف","Member of Taliban Supreme Council responsible for Takhar and Badakhshan provinces. Believed to be in Afghanistan/Pakistan border area. Review pursuant to Security Council resolution 1822 (2008) was concluded on 27 Jul. 2010. Picture available for inclusion in the INTERPOL-UN Security Council Special Notice. INTERPOL-UN Security Council Special Notice web link: https://www.interpol.int/en/How-we-work/Notices/View-UN-Notices-Individuals",null,"Qari",null,null,"UN List"]
["2019-05-14T20:44:25.777-04:00",110915,1,"JALALUDDIN","HAQQANI",null,null,"Taliban","TAi.040","2001-01-31",null,null,"جلال الدين حقانى","Father of Sirajuddin Jallaloudine Haqqani (TAi.144), Nasiruddin Haqqani\n(TAi.146) and Badruddin Haqqani (deceased). Brother of Mohammad Ibrahim Omari (TAi.042)\nand Khalil Ahmed Haqqani (TAi.150). He is an active Taliban leader. Believed to be in\nAfghanistan/Pakistan border area. Head of the Taliban Miram Shah Shura as at 2008.\nBelongs to Zadran tribe. Review pursuant to Security Council resolution 1822 (2008) was\nconcluded on 27 Jul. 2010. Reportedly deceased as of September 2018. INTERPOL-UN Security Council Special Notice web link: https://www.interpol.int/en/How-we-work/Notices/View-UN-Notices-Individuals",null,"Maulavi",null,null,"UN List"]
["2019-05-14T20:44:25.777-04:00",2960150,1,"KHALIL","AHMED","HAQQANI",null,"Taliban","TAi.150","2011-02-09",null,null,"خلیل احمد حقانی","Senior member of the Haqqani Network (TAe.012), which operates out of\nNorth Waziristan in the Federally Administered Tribal Areas of Pakistan. Has previously\ntraveled to, and raised funds in, Dubai, United Arab Emirates. Brother of Jalaluddin\nHaqqani (TAi.040) and uncle of Sirajuddin Jallaloudine Haqqani (TAi.144). INTERPOL-UN Security Council Special Notice web link: https://www.interpol.int/en/How-we-work/Notices/View-UN-Notices-Individuals",null,"Haji",null,null,"UN List"]
["2019-05-14T20:44:25.777-04:00",111118,1,"MOHAMMAD SALIM","HAQQANI",null,null,"Taliban","TAi.079","2001-01-31",null,null,"محمد سلیم حقانی","Deputy Commander of Ezatullah Haqqani Khan Sayyid (TAi.064) as at Mar.\n2010. Member of Taliban Peshawar Military Council as at June 2010. Belongs to Pashai\nethnic group. Review pursuant to Security Council resolution 1822 (2008) was concluded\non 27 Jul. 2010. INTERPOL-UN Security Council Special Notice web link: https://www.interpol.int/en/How-we-work/Notices/View-UN-Notices-Individuals",null,"Maulavi",null,null,"UN List"]
["2019-05-14T20:44:25.777-04:00",2914108,1,"NASIRUDDIN","HAQQANI",null,null,"Taliban","TAi.146","2010-07-20",null,null,"نصیر الدین حقانی","A leader of the Haqqani Network (TAe.012), which operates out of North\nWaziristan in the Federally Administered Tribal Areas of Pakistan. Son of Jalaluddin\nHaqqani (TAi.040). Has travelled to Saudi Arabia and the United Arab Emirates to raise\nfunds for the Taliban. Reportedly deceased as of 2013. INTERPOL-UN Security Council Special Notice web link: https://www.interpol.int/en/How-we-work/Notices/View-UN-Notices-Individuals",null,null,null,"Afghanistan","UN List"]
["2019-05-14T20:44:25.777-04:00",110580,1,"SAYYED MOHAMMED","HAQQANI",null,null,"Taliban","TAi.006","2001-01-31",null,null,"سيد محمد حقانی","Graduate of the Haqqaniya madrasa in Akora Khattak, Pakistan. Believed to\nhave had close relations with Taliban Leader Mullah Mohammed Omar (TAi.004). Believed to\nbe in Afghanistan/Pakistan border area. Member of Taliban Supreme Council as at June\n2010. Belongs to Barakzai tribe. Review pursuant to Security Council resolution 1822\n(2008) was concluded on 27 Jul. 2010. Photo available for inclusion in the INTERPOL-UN Security Council Special Notice.  Reportedly deceased as of January 2016. INTERPOL-UN Security Council Special Notice web link: https://www.interpol.int/en/How-we-work/Notices/View-UN-Notices-Individuals",null,"Mullah",null,null,"UN List"]
["2019-05-14T20:44:25.777-04:00",2785696,1,"SIRAJUDDIN","JALLALOUDINE","HAQQANI",null,"Taliban","TAi.144","2007-09-13",null,null,"سراج الدين جلال الدين حقانى","Heading the Haqqani Network (TAe.012) as of late 2012. Son of Jalaluddin\nHaqqani (TAi.040). Belongs to Sultan Khel section, Zadran tribe of Garda Saray of Paktia\nprovince, Afghanistan. Believed to be in the Afghanistan/Pakistan border area. Review\npursuant to Security Council resolution 1822 (2008) was concluded on 27 Jul.\n2010. INTERPOL-UN Security Council Special Notice web link: https://www.interpol.int/en/How-we-work/Notices/View-UN-Notices-Individuals",null,null,"Na'ib Amir (Deputy Commander)",null,"UN List"]
["2019-05-14T20:44:25.777-04:00",6908403,1,"YAHYA","HAQQANI",null,null,"Taliban","TAi.169","2014-07-31",null,null,"يحيى حقانی","Senior Haqqani Network (HQN) (TAe.012) member. Closely involved in the\ngroup’s military, financial, and propaganda activities. Injured leg. Father’s name is\nHajji Meyawar Khan (deceased). INTERPOL-UN Security Council Special Notice web link: https://www.interpol.int/en/How-we-work/Notices/View-UN-Notices-Individuals",null,null,null,"Afghanistan","UN List"]
["2019-05-14T20:44:25.777-04:00",111092,1,"HIDAYATULLAH",null,null,null,"Taliban","TAi.014","2001-03-08",null,null,"هدايت الله","Believed to be in Afghanistan/Pakistan border area. Belongs to Ghilzai\ntribe. Review pursuant to Security Council resolution 1822 (2008) was concluded on 29\nJul. 2010. INTERPOL-UN Security Council Special Notice web link: https://www.interpol.int/en/How-we-work/Notices/View-UN-Notices-Individuals",null,null,"Deputy Minister of Civil Aviation and Tourism under the Taliban\nregime",null,"UN List"]
["2019-05-14T20:44:25.777-04:00",111078,1,"NAJIBULLAH","HAQQANI","HIDAYATULLAH",null,"Taliban","TAi.071","2001-02-23",null,null,"نجیب الله حقانی هدايت الله","Cousin of Moulavi Noor Jalal. Grandfather’s name is Salam. Taliban member\nresponsible for Laghman Province as of late 2010. Believed to be in Afghanistan/Pakistan\nborder area. Review pursuant to Security Council resolution 1822 (2008) was concluded on\n1 Jun. 2010. INTERPOL-UN Security Council Special Notice web link: https://www.interpol.int/en/How-we-work/Notices/View-UN-Notices-Individuals",null,"Maulavi",null,null,"UN List"]
["2019-05-14T20:44:25.777-04:00",111109,1,"ABDUL RAHMAN","AHMAD","HOTTAK",null,"Taliban","TAi.049","2001-01-25",null,null,"عبدالرحمان احمد هوتک","Believed to be in Afghanistan/Pakistan border area. Belongs to Hotak\ntribe. Review pursuant to Security Council resolution 1822 (2008) was concluded on 29\nJul. 2010. INTERPOL-UN Security Council Special Notice web link: https://www.interpol.int/en/How-we-work/Notices/View-UN-Notices-Individuals",null,"Maulavi",null,null,"UN List"]
["2019-05-14T20:44:25.777-04:00",111173,1,"JAN MOHAMMAD","MADANI","IKRAM",null,"Taliban","TAi.119","2001-01-25",null,null,"جان محمد مدنی اکرام","Believed to be in Afghanistan/Pakistan border area. Belongs to Alizai tribe. Review pursuant to Security Council resolution 1822 (2008) was concluded on 29 Jul. 2010. Picture available for inclusion in the INTERPOL-UN Security Council Special Notice. INTERPOL-UN Security Council Special Notice web link: https://www.interpol.int/en/How-we-work/Notices/View-UN-Notices-Individuals",null,"Maulavi",null,null,"UN List"]
["2019-05-14T20:44:25.777-04:00",2913442,1,"GUL","AGHA","ISHAKZAI",null,"Taliban","TAi.147","2010-07-20",null,null,"كُل آغا اسحاقزی","Member of a Taliban Council that coordinates the collection of zakat\n(Islamic tax) from Baluchistan Province, Pakistan. Head of Taliban Financial Commission\nas at mid-2013. Associated with Mullah Mohammed Omar (TAi.004). Served as Omar's\nprincipal finance officer and one of his closest advisors. Belongs to Ishaqzai\ntribe. INTERPOL-UN Security Council Special Notice web link: https://www.interpol.int/en/How-we-work/Notices/View-UN-Notices-Individuals",null,null,null,null,"UN List","2011-11-29"]
["2019-05-14T20:44:25.777-04:00",111108,1,"QUDRATULLAH","JAMAL",null,null,"Taliban","TAi.047","2001-01-25",null,null,"قدرت الله جمال","Member of Taliban Supreme Council and member of Taliban Cultural\nCommission as at 2010. Believed to be in Afghanistan/Pakistan border area. Review\npursuant to Security Council resolution 1822 (2008) was concluded on 21 Jul.\n2010. INTERPOL-UN Security Council Special Notice web link: https://www.interpol.int/en/How-we-work/Notices/View-UN-Notices-Individuals",null,"Maulavi",null,null,"UN List"]
["2019-05-14T20:44:25.777-04:00",6908404,1,"SAIDULLAH","JAN",null,null,"Taliban","TAi.170","2014-07-31",null,null,"سعيدالله جان","Senior member of the Haqqani Network (HQN) (TE.H.12.12.) as of 2013. Provided critical facilitation support to drivers and vehicles transporting HQN ammunition. Also involved in the group’s recruiting efforts as of 2011.  Father’s name is Bakhta Jan.   INTERPOL-UN Security Council Special Notice web link: https://www.interpol.int/en/How-we-work/Notices/View-UN-Notices-Individuals",null,null,null,null,"UN List",null,"Good","Abid Khan",null,null,null,null,null,null,null,null,null,null,"EXACT",null,null,1982,null,null,"Giyan District, Paktika Province",null,"Afghanistan"]
["2019-05-14T20:44:25.777-04:00",111304,1,"RAHMATULLAH","KAKAZADA",null,null,"Taliban","TAi.137","2001-01-25",null,null,"رحمت الله کاکا زاده","Taliban member responsible for Ghazni Province, Afghanistan, as of May\n2007. Head of an intelligence network. Believed to be in Afghanistan/Pakistan border\narea. Belongs to Suleimankheil tribe. Review pursuant to Security Council resolution\n1822 (2008) was concluded on 21 Jul. 2010. INTERPOL-UN Security Council Special Notice web link: https://www.interpol.int/en/How-we-work/Notices/View-UN-Notices-Individuals",null,"Maulavi",null,null,"UN List"]
["2019-05-14T20:44:25.777-04:00",111041,1,"ABDUL RAUF","KHADEM",null,null,"Taliban","TAi.025","2001-02-23",null,null,"عبدالروف خادم","Member of the Taliban Quetta Shura as at 2009. Taliban member responsible\nfor Uruzgan Province, Afghanistan, as at 2011. Review pursuant to Security Council\nresolution 1822 (2008) was concluded on 1 Jun. 2010. INTERPOL-UN Security Council Special Notice web link: https://www.interpol.int/en/How-we-work/Notices/View-UN-Notices-Individuals",null,"Mullah","Commander of Central Corps under the Taliban regime","Afghanistan","UN List","2003-09-03, 2007-09-21, 2012-02-13","Good","Mullah Abdul Rauf Aliza",null,null,null,null,null,null,null,null,null,null,"BETWEEN, APPROXIMATELY",null,null,1970,1958,1963,"Azan village, Kajaki District, Spin Boldak District","Helmand Province, Kandahar Province","Afghanistan"]
["2019-05-14T20:44:25.777-04:00",111144,1,"KHAIRULLAH","KHAIRKHWAH",null,null,"Taliban","TAi.093","2001-01-25",null,null,"خيرالله خيرخواه","Belongs to Popalzai tribe. Review pursuant to Security Council resolution 1822 (2008) was concluded on 23 Jul. 2010. INTERPOL-UN Security Council Special Notice web link: https://www.interpol.int/en/How-we-work/Notices/View-UN-Notices-Individuals",null,"Maulavi",null,null,"UN List"]
["2019-05-14T20:44:25.777-04:00",110941,1,"EZATULLAH","HAQQANI","KHAN SAYYID",null,"Taliban","TAi.064","2001-02-23",null,null,"عزت الله حقاني خان سيد","Member of the Taliban Peshawar Shura as of 2008. Believed to be in\nAfghanistan/Pakistan border area. Review pursuant to Security Council resolution 1822\n(2008) was concluded on 1 Jun. 2010. INTERPOL-UN Security Council Special Notice web link: https://www.interpol.int/en/How-we-work/Notices/View-UN-Notices-Individuals",null,"Maulavi",null,null,"UN List"]
["2019-05-14T20:44:25.777-04:00",2989740,1,"KHAIRULLAH","BARAKZAI","KHUDAI NAZAR",null,"Taliban","TAi.163","2012-06-29",null,null,"خيرالله بارکزی خدای نظر","Co-owner of Haji Khairullah Haji Sattar Money Exchange (TAe.010) and\nassociated also with Abdul Satar Abdul Manan (TAi.162). Belongs to Barakzai tribe.\nFather’s name is Haji Khudai Nazar. Alternative father’s name is Nazar\nMohammad. INTERPOL-UN Security Council Special Notice web link: https://www.interpol.int/en/How-we-work/Notices/View-UN-Notices-Individuals",null,"Haji",null,null,"UN List"]
["2019-05-14T20:44:25.777-04:00",3000509,1,"MOHAMMED QASIM","MIR WALI","KHUDAI RAHIM",null,"Taliban","TAi.165","2012-11-21",null,null,"محمد قاسم میر ولی خدايرحيم","Owner of Rahat Ltd. (TAe.013). Involved in the supply of weapons for Taliban, including improvised explosive devices (IED). Arrested in 2012 and in custody in Afghanistan as of January 2013. Associated with Rahat Ltd. (TAe.013). INTERPOL-UN Security Council Special Notice web link: https://www.interpol.int/en/How-we-work/Notices/View-UN-Notices-Individuals",null,"Haji",null,null,"UN List"]
["2019-05-14T20:44:25.777-04:00",110897,1,"MOHAMMAD NAIM","BARICH","KHUDAIDAD",null,"Taliban","TAi.013","2001-02-23","Male",null,"محمد نعيم بريخ خدايداد","Member of the Taliban Military Commission as at mid-2013. Believed to be\nin Afghanistan/Pakistan border area. Belongs to Barich tribe. Review pursuant to\nSecurity Council resolution 1822 (2008) was concluded on 1 Jun. 2010. INTERPOL-UN Security Council Special Notice web link: https://www.interpol.int/en/How-we-work/Notices/View-UN-Notices-Individuals",null,"Mullah",null,null,"UN List"]
["2019-05-14T20:44:25.777-04:00",244736,1,"ABDUL RAZAQ","AKHUND","LALA AKHUND",null,"Taliban","TAi.053","2001-01-25",null,null,"عبد الرزاق آخوند لا لا آخوند","Member of Taliban Supreme Council as at June 2008. Deputy of Mullah\nMohammed Omar (TAi.004) as at Mar. 2010. Member of the Supervision Commission of the\nTaliban as of mid-2013. Involved in drug trafficking. Believed to be in\nAfghanistan/Pakistan border area. Belongs to Achekzai tribe. Review pursuant to Security\nCouncil resolution 1822 (2008) was concluded on 21 Jul. 2010. INTERPOL-UN Security Council Special Notice web link: https://www.interpol.int/en/How-we-work/Notices/View-UN-Notices-Individuals",null,"Mullah",null,null,"UN List"]
["2019-05-14T20:44:25.777-04:00",110963,1,"ZIA-UR-RAHMAN","MADANI",null,null,"Taliban","TAi.102","2001-02-23",null,null,"ضیا الرحمان مدنی","Involved in drug trafficking. Taliban member responsible for military\naffairs in Takhar province, Afghanistan, as of May 2007. Facilitated fund raising in the\nGulf on behalf of the Taliban since 2003. Also facilitated meetings between Taliban\nofficials and wealthy supporters and arranged for more than a dozen individuals to\ntravel to Kabul, Afghanistan, for suicide attacks. Believed to be in the Gulf region.\nReview pursuant to Security Council resolution 1822 (2008) was concluded on 23 Jul.\n2010. INTERPOL-UN Security Council Special Notice web link: https://www.interpol.int/en/How-we-work/Notices/View-UN-Notices-Individuals",null,"Maulavi",null,null,"UN List"]
["2019-05-14T20:44:25.777-04:00",110554,1,"ABDUL LATIF","MANSUR",null,null,"Taliban","TAi.007","2001-01-31",null,null,"عبد اللطيف منصور","Taliban Shadow Governor for Logar Province as of late 2012. Believed to\nbe in Afghanistan/Pakistan border area. Belongs to Sahak tribe (Ghilzai). Review\npursuant to Security Council resolution 1822 (2008) was concluded on 27 Jul.\n2010. INTERPOL-UN Security Council Special Notice web link: https://www.interpol.int/en/How-we-work/Notices/View-UN-Notices-Individuals",null,"Maulavi",null,null,"UN List"]
["2019-05-14T20:44:25.777-04:00",111076,1,"MOHAMMADULLAH","MATI",null,null,"Taliban","TAi.068","2001-01-25",null,null,"محمد الله مطيع","Lost one leg in 1980s. Interim leader of Taliban Supreme Council from\nFebruary to April 2010. In charge of recruitment activities as of mid-2013. Believed to\nbe in Afghanistan/Pakistan border area. Belongs to Isakzai tribe. Review pursuant to\nSecurity Council resolution 1822 (2008) was concluded on 29 Jul. 2010. INTERPOL-UN Security Council Special Notice web link: https://www.interpol.int/en/How-we-work/Notices/View-UN-Notices-Individuals",null,"Maulavi",null,null,"UN List"]
["2019-05-14T20:44:25.777-04:00",111038,1,"ALLAH DAD","MATIN",null,null,"Taliban","TAi.021","2001-01-31",null,null,"الله داد متین","One foot lost in landmine explosion. Believed to be in\nAfghanistan/Pakistan border area. Belongs to Nurzai tribe. Review pursuant to Security\nCouncil resolution 1822 (2008) was concluded on 27 Jul. 2010. INTERPOL-UN Security Council Special Notice web link: https://www.interpol.int/en/How-we-work/Notices/View-UN-Notices-Individuals",null,"Mullah",null,null,"UN List"]
["2019-05-14T20:44:25.777-04:00",111094,1,"MATIULLAH",null,null,null,"Taliban","TAi.020","2001-02-23",null,null,"مطيع الله","Works on recruitment for the Taliban movement as of mid-2013. Believed to\nbe in Afghanistan/Pakistan border area. Belongs to Popalzai tribe. Review pursuant to\nSecurity Council resolution 1822 (2008) was concluded on 23 Jul. 2010. INTERPOL-UN Security Council Special Notice web link: https://www.interpol.int/en/How-we-work/Notices/View-UN-Notices-Individuals",null,"Mullah",null,null,"UN List"]
["2019-05-14T20:44:25.777-04:00",111179,1,"ABDUL QUDDUS","MAZHARI",null,null,"Taliban","TAi.135","2001-01-25",null,null,"عبد القدوس مظهری","Belongs to Popalzai tribe. Review pursuant to Security Council resolution\n1822 (2008) was concluded on 27 Jul. 2010. INTERPOL-UN Security Council Special Notice web link: https://www.interpol.int/en/How-we-work/Notices/View-UN-Notices-Individuals",null,"Maulavi",null,null,"UN List"]
["2019-05-14T20:44:25.777-04:00",110899,1,"FAZL MOHAMMAD","MAZLOOM",null,null,"Taliban","TAi.023","2001-02-23",null,null,"فضل محمد مظلوم","Review pursuant to Security Council resolution 1822 (2008) was concluded on 23 Jul. 2010. INTERPOL-UN Security Council Special Notice web link: https://www.interpol.int/en/How-we-work/Notices/View-UN-Notices-Individuals",null,"Mullah",null,null,"UN List"]
["2019-05-14T20:44:25.777-04:00",111081,1,"MOHAMMAD WALI","MOHAMMAD EWAZ",null,null,"Taliban","TAi.078","2001-01-31",null,null,"محمد ولی محمد عوض","Reportedly deceased in December 2006 and buried in Panjwai District,\nKandahar Province, Afghanistan. Belonged to Ghilzai tribe. Review pursuant to Security\nCouncil resolution 1822 (2008) was concluded on 27 Jul. 2010. INTERPOL-UN Security Council Special Notice web link: https://www.interpol.int/en/How-we-work/Notices/View-UN-Notices-Individuals",null,"Maulavi",null,null,"UN List"]
["2019-05-14T20:44:25.777-04:00",111231,1,"ABDUL MANAN","MOHAMMAD ISHAK",null,null,"Taliban","TAi.122","2001-01-25",null,null,"عبدالمنان محمد اسحاق","Review pursuant to Security Council resolution 1822 (2008) was concluded\non 27 Jul. 2010. INTERPOL-UN Security Council Special Notice web link: https://www.interpol.int/en/How-we-work/Notices/View-UN-Notices-Individuals",null,"Maulavi",null,null,"UN List"]
["2019-05-14T20:44:25.777-04:00",110578,1,"ABDUL KABIR","MOHAMMAD JAN",null,null,"Taliban","TAi.003","2001-01-25",null,null,"عبد الکبیر محمد جان","Active in terrorist operations in Eastern Afghanistan. Collects money\nfrom drug traffickers. Believed to be in Afghanistan/Pakistan border area. Member of the\nTaliban Supreme Council as at 2009. Family is originally from Neka District, Paktia\nProvince, Afghanistan. Responsible for attack on Afghan parliamentarians in November\n2007 in Baghlan; owns land in central Baghlan Province. Belongs to Zadran tribe. Review\npursuant to Security Council resolution 1822 (2008) was concluded on 23 Jul.\n2010. INTERPOL-UN Security Council Special Notice web link: https://www.interpol.int/en/How-we-work/Notices/View-UN-Notices-Individuals",null,"Maulavi",null,null,"UN List"]
["2019-05-14T20:44:25.777-04:00",111305,1,"ABDULLAH","HAMAD","MOHAMMAD KARIM",null,"Taliban","TAi.141","2001-01-25",null,null,"عبد الله حماد ﻤﺤﻤﺪ ﻛﺮﻴﻡ","Believed to be in Afghanistan/Pakistan border area. Belongs to Baloch\nethnic group. Review pursuant to Security Council resolution 1822 (2008) was concluded\non 29 Jul. 2010. INTERPOL-UN Security Council Special Notice web link: https://www.interpol.int/en/How-we-work/Notices/View-UN-Notices-Individuals",null,"Maulavi",null,null,"UN List"]
["2019-05-14T20:44:25.777-04:00",111176,1,"MOHAMMAD","SARWAR","SIDDIQMAL","MOHAMMAD MASOOD","Taliban","TAi.126","2001-01-25",null,null,"محمد سرور صدیق مل ﻤﺣﻤﺩ ﻤﺴﻌﻮﺩ","Belongs to Mangal tribe. Review pursuant to Security Council resolution\n1822 (2008) was concluded on 29 Jul. 2010. INTERPOL-UN Security Council Special Notice web link: https://www.interpol.int/en/How-we-work/Notices/View-UN-Notices-Individuals",null,null,"Third Secretary, Taliban Embassy, Islamabad, Pakistan",null,"UN List"]
["2019-05-14T20:44:25.777-04:00",111070,1,"MOHAMMAD YAQOUB",null,null,null,"Taliban","TAi.052","2001-02-23",null,null,"محمد يعقوب","Member of Taliban Cultural Commission. Directs a Taliban \"front\" and\ncoordinates all military activities of Taliban forces in Maiwand District, Kandahar\nProvince, Afghanistan as of mid-2013. Believed to be in Afghanistan/Pakistan border\narea. Belongs to Kharoti (Taraki) tribe. Review pursuant to Security Council resolution\n1822 (2008) was concluded on 23 Jul. 2010. INTERPOL-UN Security Council Special Notice web link: https://www.interpol.int/en/How-we-work/Notices/View-UN-Notices-Individuals",null,"Maulavi",null,null,"UN List"]
["2019-05-14T20:44:25.777-04:00",111207,1,"MOHAMMAD SHAFIQ","MOHAMMADI",null,null,"Taliban","TAi.099","2001-01-25",null,null,"محمد شفیق محمدی","Supervises two military training centers of the Taliban as of mid-2013.\nBelieved to be in Afghanistan/Pakistan border area. Belongs to Hotak tribe. Review\npursuant to Security Council resolution 1822 (2008) was concluded on 29 Jul.\n2010. INTERPOL-UN Security Council Special Notice web link: https://www.interpol.int/en/How-we-work/Notices/View-UN-Notices-Individuals",null,"Maulavi",null,null,"UN List"]
["2019-05-14T20:44:25.777-04:00",111042,1,"AMIR KHAN","MOTAQI",null,null,"Taliban","TAi.026","2001-01-25",null,null,"امیر خان متقی","Member of the Taliban Supreme Council as at June 2007. Believed to be in\nAfghanistan/Pakistan border area. Belongs to Sulaimankhel tribe. Review pursuant to\nSecurity Council resolution 1822 (2008) was concluded on 21 Jul. 2010. INTERPOL-UN Security Council Special Notice web link: https://www.interpol.int/en/How-we-work/Notices/View-UN-Notices-Individuals",null,"Mullah",null,null,"UN List"]
["2019-05-14T20:44:25.777-04:00",111110,1,"ABDULHAI","MOTMAEN",null,null,"Taliban","TAi.051","2001-02-23",null,null,"عبدالحی مطمئن","Family is originally from Zabul, but settled later in Helmand. Member of\nthe Taliban Supreme Council and spokesperson for Mullah Mohammed Omar (TAi.004) as of\n2007. Believed to be in Afghanistan/Pakistan border area. Belongs to Kharoti tribe.\nReview pursuant to Security Council resolution 1822 (2008) was concluded on 23 Jul.\n2010. INTERPOL-UN Security Council Special Notice web link: https://www.interpol.int/en/How-we-work/Notices/View-UN-Notices-Individuals",null,"Maulavi",null,null,"UN List"]
["2019-05-14T20:44:25.777-04:00",111036,1,"ALLAH DAD","TAYEB","WALI","MUHAMMAD","Taliban","TAi.016","2001-01-25",null,null,"الله داد طیب ولی محمد","Belongs to Popalzai tribe. Review pursuant to Security Council resolution\n1822 (2008) was concluded on 29 Jul. 2010. Photo available for inclusion in the INTERPOL-UN Security Council Special Notice. Deceased as of November 2015. INTERPOL-UN Security Council Special Notice web link: https://www.interpol.int/en/How-we-work/Notices/View-UN-Notices-Individuals",null,"Mullah",null,null,"UN List"]
["2019-05-14T20:44:25.777-04:00",111236,1,"NAJIBULLAH","MUHAMMAD JUMA",null,null,"Taliban","TAi.132","2001-01-25",null,null,"نجيب الله محمد جمعه","Member of Taliban Peshawar Military Council as at 2010. Believed to be in\nAfghanistan/Pakistan border area. Review pursuant to Security Council resolution 1822\n(2008) was concluded on 21 Jul. 2010. INTERPOL-UN Security Council Special Notice web link: https://www.interpol.int/en/How-we-work/Notices/View-UN-Notices-Individuals",null,"Maulavi",null,null,"UN List"]
["2019-05-14T20:44:25.777-04:00",111115,1,"MOHAMMAD","MOSLIM","HAQQANI","MUHAMMADI GUL","Taliban","TAi.073","2001-01-25",null,null,"محمد مسلم حقانى محمدی گل","Ethnic Pashtun from Baghlan Province. Believed to be in\nAfghanistan/Pakistan border area. Speaks fluent English, Urdu and Arabic. Review\npursuant to Security Council resolution 1822 (2008) was concluded on 29 Jul.\n2010. INTERPOL-UN Security Council Special Notice web link: https://www.interpol.int/en/How-we-work/Notices/View-UN-Notices-Individuals",null,"Maulavi",null,null,"UN List"]
["2019-05-14T20:44:25.777-04:00",111068,1,"HAMDULLAH","NOMANI",null,null,"Taliban","TAi.044","2001-02-23",null,null,"حمد الله نعمانى","Member of the Taliban Supreme Council. Believed to be in\nAfghanistan/Pakistan border area. Review pursuant to Security Council resolution 1822\n(2008) was concluded on 23 Jul. 2010. INTERPOL-UN Security Council Special Notice web link: https://www.interpol.int/en/How-we-work/Notices/View-UN-Notices-Individuals",null,"Maulavi",null,null,"UN List"]
["2019-05-14T20:44:25.777-04:00",111180,1,"MOHAMMAD","ALEEM","NOORANI",null,"Taliban","TAi.138","2001-01-25",null,null,"محمد علیم نورانی","Review pursuant to Security Council resolution 1822 (2008) was concluded\non 29 Jul. 2010. INTERPOL-UN Security Council Special Notice web link: https://www.interpol.int/en/How-we-work/Notices/View-UN-Notices-Individuals",null,"Mufti",null,null,"UN List"]
["2019-05-14T20:44:25.777-04:00",6908450,1,"ABDUL BASIR","NOORZAI",null,null,"Taliban","TAi.173","2015-03-27-04:00",null,null,"عبد البصیر نورزی","Owner of Haji Basir and Zarjmil Company Hawala (TAe.014), which provides\nfinancial services to Taliban in the region. INTERPOL-UN Security Council Special Notice web link: https://www.interpol.int/en/How-we-work/Notices/View-UN-Notices-Individuals",null,"Haji",null,null,"UN List"]
["2019-05-14T20:44:25.777-04:00",2975590,1,"MALIK","NOORZAI",null,null,"Taliban","TAi.154","2011-10-04",null,null,"مالک نورزى","Taliban financier. Owns businesses in Japan and frequently travels to\nDubai, United Arab Emirates, and Japan. As of 2009, facilitated Taliban activities,\nincluding through recruitment and the provision of logistical support. Believed to be in\nthe Afghanistan/Pakistan border area. Belongs to Noorzai tribe. Brother of Faizullah\nKhan Noorzai (TAi.153). Father’s name is Haji Akhtar Muhammad. INTERPOL-UN Security Council Special Notice web link: https://www.interpol.int/en/How-we-work/Notices/View-UN-Notices-Individuals",null,"Haji",null,null,"UN List"]
["2019-05-14T20:44:25.777-04:00",110948,1,"NURULLAH","NURI",null,null,"Taliban","TAi.089","2001-01-25",null,null,"نور الله نوری","Belongs to Tokhi tribe. Review pursuant to Security Council resolution 1822 (2008) was concluded on 29 Jul. 2010. INTERPOL-UN Security Council Special Notice web link: https://www.interpol.int/en/How-we-work/Notices/View-UN-Notices-Individuals",null,"Maulavi",null,null,"UN List"]
["2019-05-14T20:44:25.777-04:00",110961,1,"ABDUL MANAN","NYAZI",null,null,"Taliban","TAi.097","2001-01-25",null,null,"عبدالمنان نیازی","Taliban member responsible for Herat, Farah and Nimroz provinces as at\nmid-2013. Member of the Taliban Supreme Council and Quetta Shura. Believed to be in\nAfghanistan/Pakistan border area. Belongs to Achekzai tribe. Involved in transporting\nsuicide bombers to Afghanistan. Review pursuant to Security Council resolution 1822\n(2008) was concluded on 23 Jul. 2010. INTERPOL-UN Security Council Special Notice web link: https://www.interpol.int/en/How-we-work/Notices/View-UN-Notices-Individuals",null,"Mullah",null,null,"UN List"]
["2019-05-14T20:44:25.777-04:00",3013137,1,"AHMED SHAH","NOORZAI","OBAIDULLAH",null,"Taliban","TAi.166","2013-02-26",null,null,"احمد شاه نورزی عبیدالله","Owns and operates the Roshan Money Exchange (TAe.011). Provided financial\nservices to Ghul Agha Ishakzai (TAi.147) and other Taliban in Helmand Province.\nAlternative title is Maulavi. INTERPOL-UN Security Council Special Notice web link: https://www.interpol.int/en/How-we-work/Notices/View-UN-Notices-Individuals",null,"Mullah",null,null,"UN List"]
["2019-05-14T20:44:25.777-04:00",110947,1,"ABDUL JABBAR","OMARI",null,null,"Taliban","TAi.088","2001-02-23",null,null,"عبدالجبار عمری","Belongs to Hottak tribe. Review pursuant to Security Council resolution\n1822 (2008) was concluded on 1 Jun. 2010. INTERPOL-UN Security Council Special Notice web link: https://www.interpol.int/en/How-we-work/Notices/View-UN-Notices-Individuals",null,"Maulavi",null,null,"UN List"]
["2019-05-14T20:44:25.777-04:00",111067,1,"MOHAMMAD IBRAHIM","OMARI",null,null,"Taliban","TAi.042","2001-02-23",null,null,"محمد ابراهیم عمری","Brother of Jalaluddin Haqqani (TAi.040) Believed to be in\nAfghanistan/Pakistan border area. Review pursuant to Security Council resolution 1822\n(2008) was concluded on 29 Jul. 2010. INTERPOL-UN Security Council Special Notice web link: https://www.interpol.int/en/How-we-work/Notices/View-UN-Notices-Individuals",null,"Alhaj",null,null,"UN List"]
["2019-05-14T20:44:25.777-04:00",111075,1,"SHER MOHAMMAD ABBAS","STANEKZAI","PADSHAH KHAN",null,"Taliban","TAi.067","2001-01-25",null,null,"شیر محمد عباس استانکزی پادشاه خان","Believed to be in Afghanistan/Pakistan border area. Review pursuant to Security Council resolution 1822 (2008) was concluded on 29 Jul. 2010. Picture available for inclusion in the INTERPOL-UN Security Council Special Notice.  INTERPOL-UN Security Council Special Notice web link: https://www.interpol.int/en/How-we-work/Notices/View-UN-Notices-Individuals",null,"Maulavi",null,null,"UN List"]
["2019-05-14T20:44:25.777-04:00",111112,1,"NOORUDDIN","TURABI","MUHAMMAD","QASIM","Taliban","TAi.058","2001-01-25",null,null,"نورالدین ترابی محمد قاسم","Deputy to Mullah Mohammed Omar (TAi.004). Review pursuant to Security\nCouncil resolution 1822 (2008) was concluded on 21 Jul. 2010. INTERPOL-UN Security Council Special Notice web link: https://www.interpol.int/en/How-we-work/Notices/View-UN-Notices-Individuals",null,"Mullah",null,null,"UN List"]
["2019-05-14T20:44:25.777-04:00",110965,1,"AMINULLAH","AMIN","QUDDUS",null,"Taliban","TAi.107","2001-02-23",null,null,"امین الله امین قدوس","Member of Taliban Supreme Council as at 2011. Belongs to Nurzai tribe.\nReview pursuant to Security Council resolution 1822 (2008) was concluded on 27 Jul.\n2010. INTERPOL-UN Security Council Special Notice web link: https://www.interpol.int/en/How-we-work/Notices/View-UN-Notices-Individuals",null,"Maulavi",null,null,"UN List"]
["2019-05-14T20:44:25.777-04:00",111043,1,"ABDUL SALAM","HANAFI","ALI MARDAN","QUL","Taliban","TAi.027","2001-02-23",null,null,"عبدالسلام حنفی علی مردان قل","Taliban member responsible for Jawzjan Province in Northern Afghanistan\nuntil 2008. Involved in drug trafficking. Believed to be in Afghanistan/Pakistan border\narea. Review pursuant to Security Council resolution 1822 (2008) was concluded on 1 Jun.\n2010. INTERPOL-UN Security Council Special Notice web link: https://www.interpol.int/en/How-we-work/Notices/View-UN-Notices-Individuals",null,"Mullah",null,null,"UN List"]
["2019-05-14T20:44:25.777-04:00",2981583,1,"FAZL","RABI",null,null,"Taliban","TAi.157","2012-01-06",null,null,"فضل ربيع","Represents and provides financial and logistical support to the Haqqani\nNetwork (TAe.012), which is based in Afghanistan/Pakistan border area. Member of the\nTaliban Financial Council. Has travelled abroad to raise funds on behalf of Sirajuddin\nJallaloudine Haqqani (TAi.144), Jalaluddin Haqqani (TAi.040), the Haqqani network and\nthe Taliban. Believed to be in Afghanistan/Pakistan border area. INTERPOL-UN Security Council Special Notice web link: https://www.interpol.int/en/How-we-work/Notices/View-UN-Notices-Individuals",null,null,"Senior official in Konar Province during the Taliban regime",null,"UN List"]
["2019-05-14T20:44:25.777-04:00",111035,1,"YAR MOHAMMAD","RAHIMI",null,null,"Taliban","TAi.015","2001-01-25",null,null,"یار محمد رحیمی","Member of Taliban Supreme Council as at 2009. Believed to be in\nAfghanistan/Pakistan border area. Belongs to Nurzai tribe. Review pursuant to Security\nCouncil resolution 1822 (2008) was concluded on 23 Jul. 2010. INTERPOL-UN Security Council Special Notice web link: https://www.interpol.int/en/How-we-work/Notices/View-UN-Notices-Individuals",null,"Mullah",null,null,"UN List"]
["2019-05-14T20:44:25.777-04:00",110960,1,"MOHAMMAD HASAN","RAHMANI",null,null,"Taliban","TAi.096","2001-02-23",null,null,"محمد حسن رحمانی","Has a prosthetic right leg. Member of Taliban Supreme Council as of mid-2013, acted as deputy of Mullah Mohammed Omar (TAi.004) in Mar. 2010. Believed to be in Afghanistan/Pakistan border area. Belongs to Achekzai tribe. Review pursuant to Security Council resolution 1822 (2008) was concluded on 23 Jul. 2010. Deceased as of 9 February 2016. INTERPOL-UN Security Council Special Notice web link: https://www.interpol.int/en/How-we-work/Notices/View-UN-Notices-Individuals",null,"Mullah",null,null,"UN List"]
["2019-05-14T20:44:25.777-04:00",111082,1,"HABIBULLAH","RESHAD",null,null,"Taliban","TAi.084","2001-02-23",null,null,"حبیب الله رشاد","Deputy Head (Intelligence) of the Quetta Military Council as of 2009.\nBelieved to be in Afghanistan/Pakistan border area. Review pursuant to Security Council\nresolution 1822 (2008) was concluded on 23 Jul. 2010. INTERPOL-UN Security Council Special Notice web link: https://www.interpol.int/en/How-we-work/Notices/View-UN-Notices-Individuals",null,"Mullah",null,null,"UN List"]
["2019-05-14T20:44:25.777-04:00",111209,1,"ABDULHAI","SALEK",null,null,"Taliban","TAi.108","2001-02-23",null,null,"عبدالحی سالک","Reportedly deceased in North Afghanistan in 1999. Belonged to Wardak\ntribe. Review pursuant to Security Council resolution 1822 (2008) was concluded on 27\nJul. 2010. INTERPOL-UN Security Council Special Notice web link: https://www.interpol.int/en/How-we-work/Notices/View-UN-Notices-Individuals",null,"Maulavi","Governor of Uruzgan Province under the Taliban regime","Afghanistan","UN List","2003-09-03, 2007-09-21, 2009-03-24, 2011-11-29, 2012-05-18",null,null,null,null,null,null,null,null,null,null,null,null,"APPROXIMATELY",null,null,1965,null,null,"Awlyatak Village, Gardan Masjid Area, Chaki Wardak District","Maidan Wardak Province","Afghanistan"]
["2019-05-14T20:44:25.777-04:00",111210,1,"NOOR MOHAMMAD","SAQIB",null,null,"Taliban","TAi.110","2001-01-25",null,null,"نور محمد ثاقب","Member of Taliban Supreme Council and Head of Taliban Religious\nCommittee. Belongs to Ahmadzai tribe. Review pursuant to Security Council resolution\n1822 (2008) was concluded on 23 Jul. 2010. INTERPOL-UN Security Council Special Notice web link: https://www.interpol.int/en/How-we-work/Notices/View-UN-Notices-Individuals",null,null,"Chief Justice of Supreme Court under the Taliban regime",null,"UN List"]
["2019-05-14T20:44:25.777-04:00",111084,1,"SADUDDIN","SAYYED",null,null,"Taliban","TAi.087","2001-01-25",null,null,"سعد الدين سيد","Advisor to the Taliban Supreme Council as of mid-2013. Believed to be in\nAfghanistan/Pakistan border area. Belongs to Barakzai tribe. Review pursuant to Security\nCouncil resolution 1822 (2008) was concluded on 21 Jul. 2010. INTERPOL-UN Security Council Special Notice web link: https://www.interpol.int/en/How-we-work/Notices/View-UN-Notices-Individuals",null,"Maulavi",null,null,"UN List"]
["2019-05-14T20:44:25.777-04:00",111178,1,"ABDUL WALI","SEDDIQI",null,null,"Taliban","TAi.133","2001-01-25",null,null,"عبدالولی صدیقی","Believed to be in Afghanistan/Pakistan border area. Review pursuant to\nSecurity Council resolution 1822 (2008) was concluded on 29 Jul. 2010. INTERPOL-UN Security Council Special Notice web link: https://www.interpol.int/en/How-we-work/Notices/View-UN-Notices-Individuals",null,"Qari",null,null,"UN List"]
["2019-05-14T20:44:25.777-04:00",111206,1,"ABDUL WAHED","SHAFIQ",null,null,"Taliban","TAi.098","2001-02-23",null,null,"عبد الواحد شفيق","Review pursuant to Security Council resolution 1822 (2008) was concluded\non 27 Jul. 2010. INTERPOL-UN Security Council Special Notice web link: https://www.interpol.int/en/How-we-work/Notices/View-UN-Notices-Individuals",null,"Maulavi",null,null,"UN List"]
["2019-05-14T20:44:25.777-04:00",111090,1,"AKHTAR","MOHAMMAD","MANSOUR","SHAH MOHAMMED","Taliban","TAi.011","2001-01-25",null,null,"اختر محمد منصور شاه محمد","Involved in drug trafficking as of 2011, primarily through Gerd-e-Jangal,\nAfghanistan. Active in the provinces of Khost, Paktia and Paktika, Afghanistan as of May\n2007. Taliban \"Governor\" of Kandahar as of May 2007. Deputy to Mullah Abdul Ghani\nBaradar (TAi.024) in the Taliban Supreme Council as of 2009. Taliban official\nresponsible for four southern provinces of Afghanistan. Following the arrest of Mullah\nBaradar in February 2010 he was temporarily-in-charge of the Taliban Supreme Council.\nBelieved to be in Afghanistan/Pakistan border area. Belongs to Ishaqzai tribe. Review\npursuant to Security Council resolution 1822 (2008) was concluded on 21 Jul.\n2010. Reportedly killed in May 2016. INTERPOL-UN Security Council Special Notice web link: https://www.interpol.int/en/How-we-work/Notices/View-UN-Notices-Individuals",null,"Maulavi",null,null,"UN List"]
["2019-05-14T20:44:25.777-04:00",6908406,1,"RAHMATULLAH","SHAH NAWAZ",null,null,"Taliban","TAi.172","2014-08-21",null,null,"رحمت الله شاه نواز","Physical description: eye colour brown, hair colour: black, weight: 77-81 kg, height: 178 cm short-to-medium black beard, short black hair. Belongs to Shinwari tribe, Sepahi sub-tribe.  A Taliban commander since at least Feb. 2010. Collects taxes and bribes on behalf of the Taliban as of April 2015. Liaises with and provides Taliban operatives in Nangarhar Province, Afghanistan, with information, guidance, housing and weapons and has emplaced improvised explosive devices (IED) and conducted attacks against International Security Assistance Force (ISAF) and Afghan forces. Involved in drug trafficking and operates heroin laboratory in Abdulkhel village, Achin district, Nangarhar province, Afghanistan. INTERPOL-UN Security Council Special Notice web link: https://www.interpol.int/en/How-we-work/Notices/View-UN-Notices-Individuals",null,"Alhaj",null,null,"UN List"]
["2019-05-14T20:44:25.777-04:00",110900,1,"SAID AHMED","SHAHIDKHEL",null,null,"Taliban","TAi.028","2001-02-23",null,null,"سيد أحمد شهيد خيل","In July 2003 he was in custody in Kabul, Afghanistan. Released from\ncustody in 2007. Believed to be in Afghanistan/Pakistan border area. Member of the\nTaliban leadership council as of mid-2013. Belongs to Andar tribe. Review pursuant to\nSecurity Council resolution 1822 (2008) was concluded on 23 Jul. 2010. INTERPOL-UN Security Council Special Notice web link: https://www.interpol.int/en/How-we-work/Notices/View-UN-Notices-Individuals",null,"Maulavi",null,null,"UN List"]
["2019-05-14T20:44:25.777-04:00",111146,1,"SHAMSUDDIN",null,null,null,"Taliban","TAi.103","2001-02-23",null,null,"شمس الدین","Believed to be in Afghanistan/Pakistan/Iran border area. Review pursuant\nto Security Council resolution 1822 (2008) was concluded on 23 Jul. 2010. INTERPOL-UN Security Council Special Notice web link: https://www.interpol.int/en/How-we-work/Notices/View-UN-Notices-Individuals",null,"Maulavi",null,null,"UN List"]
["2019-05-14T20:44:25.777-04:00",111151,1,"HAMIDULLAH","AKHUND","SHER MOHAMMAD",null,"Taliban","TAi.118","2001-01-25",null,null,"حمید الله آخوند شیر محمد","Belongs to Ghilzai tribe. Review pursuant to Security Council resolution\n1822 (2008) was concluded on 21 Jul. 2010. INTERPOL-UN Security Council Special Notice web link: https://www.interpol.int/en/How-we-work/Notices/View-UN-Notices-Individuals",null,"Mullah",null,null,"UN List"]
["2019-05-14T20:44:25.777-04:00",111238,1,"ABDUL GHAFAR","SHINWARI",null,null,"Taliban","TAi.139","2001-01-25",null,null,"عبدالغفار شینواری","Believed to be in Afghanistan/Pakistan border area. Belongs to Safi\ntribe. Review pursuant to Security Council resolution 1822 (2008) was concluded on 29\nJul. 2010. INTERPOL-UN Security Council Special Notice web link: https://www.interpol.int/en/How-we-work/Notices/View-UN-Notices-Individuals",null,"Haji",null,null,"UN List"]
["2019-05-14T20:44:25.777-04:00",111149,1,"HAMDULLAH","SUNANI",null,null,"Taliban","TAi.111","2001-02-23",null,null,"حمد الله سنانی","Reportedly deceased in 2001. Belonged to Kakar tribe. Review pursuant to\nSecurity Council resolution 1822 (2008) was concluded on 27 Jul. 2010.",null,"Maulavi",null,null,"UN List"]
["2019-05-14T20:44:25.777-04:00",111080,1,"ABDUL RAQIB","TAKHARI",null,null,"Taliban","TAi.075","2001-01-25",null,null,"عبدالرقیب تخاری","Member of Taliban Supreme Council responsible for Takhar and Badakhshan\nprovinces as at Dec. 2009. Confirmed killed on 17 February in Peshawar, Pakistan and\nburied in Takhar Province, Afghanistan. Review pursuant to Security Council resolution\n1822 (2008) was concluded on 21 Jul. 2010. INTERPOL-UN Security Council Special Notice web link: https://www.interpol.int/en/How-we-work/Notices/View-UN-Notices-Individuals",null,"Maulavi",null,null,"UN List"]
["2019-05-14T20:44:25.777-04:00",3035783,1,"QARI","SAIFULLAH","TOKHI",null,"Taliban","TAi.168","2014-03-19",null,null,"قاري سیف الله توخى","Believed to be in Afghanistan/Pakistan border area. Taliban Shadow Deputy\nGovernor and operational commander in Zabul Province, Afghanistan, responsible for the\nlaying of improvised explosive devices and the organisation of suicide attacks. Physical\ndescription: height: 180 cm; weight: approximately 90 kg; build: athletic build; eye\ncolour: brown; hair colour: red; complexion: medium brown. Distinguishing physical\nmarks: large round face, full beard, and walks with a limp due to plastic prosthesis in\nplace of his left lower leg. Ethnic background: Pashtun; Belongs to Tokhi tribe,\nBarkozai sub-tribe (alternative tribe spelling: Torchi). Barkozai (alternative tribe\nspelling: Bakorzai, باکورزی) sub-tribe, Kishta Barkorzai (lower Barkorzai) clan. Marital\nStatus: married. Father’s name: Agha Mohammad. Brother’s name: Humdullah. INTERPOL-UN Security Council Special Notice web link: https://www.interpol.int/en/How-we-work/Notices/View-UN-Notices-Individuals",null,"Qari",null,null,"UN List"]
["2019-05-14T20:44:25.777-04:00",111107,1,"ABDUL JALIL","HAQQANI","WALI MOHAMMAD",null,"Taliban","TAi.034","2001-01-25",null,null,"عبد الجليل حقانی ولی محمد","Believed to be in Afghanistan/Pakistan border area. Member of the Taliban\nSupreme Council as of May 2007. Member of the Financial Commission of the Taliban\nCouncil. Responsible for logistics for the Taliban and also active as a businessman in\nhis personal capacity as at mid-2013. Belongs to Alizai tribe. Brother of Atiqullah Wali\nMohammad (TAi.070). Review pursuant to Security Council resolution 1822 (2008) was\nconcluded on 21 Jul. 2010. INTERPOL-UN Security Council Special Notice web link: https://www.interpol.int/en/How-we-work/Notices/View-UN-Notices-Individuals",null,"Maulavi",null,null,"UN List"]
["2019-05-14T20:44:25.777-04:00",111077,1,"ATIQULLAH","WALI MOHAMMAD",null,null,"Taliban","TAi.070","2001-01-31",null,null,"عتیق الله ولی محمد","Originally from Uruzgan, settled and lived later in Kandahar. Was a\nmember of Taliban Supreme Council Political Commission in 2010. No specific role in the\nTaliban movement, active as a businessman in his personal capacity as of mid-2013.\nBelieved to be in Afghanistan/Pakistan border area. Belongs to Alizai tribe. Brother of\nAbdul Jalil Haqqani Wali Mohammad (TAi.034). Review pursuant to Security Council\nresolution 1822 (2008) was concluded on 27 Jul. 2010. INTERPOL-UN Security Council Special Notice web link: https://www.interpol.int/en/How-we-work/Notices/View-UN-Notices-Individuals",null,"Haji",null,null,"UN List"]
["2019-05-14T20:44:25.777-04:00",110959,1,"WALIJAN",null,null,null,"Taliban","TAi.095","2001-02-23",null,null,"ولی جان","Member of the Taliban Gerd-e-Jangal Shura and Head of the Taliban\nPrisoners and Refugees Committee. Belongs to Ishaqzai tribe. Review pursuant to Security\nCouncil resolution 1822 (2008) was concluded on 23 Jul. 2010. INTERPOL-UN Security Council Special Notice web link: https://www.interpol.int/en/How-we-work/Notices/View-UN-Notices-Individuals",null,"Maulavi","Governor of Jawzjan Province under the Taliban regime","Afghanistan","UN List","2003-09-03, 2007-09-21, 2011-11-29",null,null,null,null,null,null,null,null,null,null,null,null,"APPROXIMATELY",null,null,1968,null,null,"Quetta","Nimroz Province","Pakistan, Afghanistan"]
["2019-05-14T20:44:25.777-04:00",111235,1,"NAZIRULLAH","HANAFI","WALIULLAH",null,"Taliban","TAi.129","2001-01-25",null,null,"نذیر الله حنفى ولى الله","Believed to be in Afghanistan/Pakistan border area. Review pursuant to\nSecurity Council resolution 1822 (2008) was concluded on 21 Jul. 2010. INTERPOL-UN Security Council Special Notice web link: https://www.interpol.int/en/How-we-work/Notices/View-UN-Notices-Individuals",null,"Maulavi",null,null,"UN List"]
["2019-05-14T20:44:25.777-04:00",110945,1,"ABDUL-HAQ","WASSIQ",null,null,"Taliban","TAi.082","2001-01-31","Unknown",null,"عبد الحق وثيق","Review pursuant to Security Council resolution 1822 (2008) was concluded on 27 Jul. 2010. INTERPOL-UN Security Council Special Notice web link: https://www.interpol.int/en/How-we-work/Notices/View-UN-Notices-Individuals",null,"Maulavi",null,null,"UN List"]
["2019-05-14T20:44:25.777-04:00",111083,1,"AHMED JAN","AKHUNDZADA","WAZIR",null,"Taliban","TAi.085","2001-01-25",null,null,"احمد جان آخوندزاده وزیر","Member of Taliban Supreme Military Council as at 2009. Believed to be in\nAfghanistan/Pakistan border area. Review pursuant to Security Council resolution 1822\n(2008) was concluded on 21 Jul. 2010. INTERPOL-UN Security Council Special Notice web link: https://www.interpol.int/en/How-we-work/Notices/View-UN-Notices-Individuals",null,"Maulavi",null,null,"UN List"]
["2019-05-14T20:44:25.777-04:00",111066,1,"MOHAMMAD JAWAD","WAZIRI",null,null,"Taliban","TAi.039","2001-02-23",null,null,"محمد جواد وزیری","Believed to be in Afghanistan/Pakistan border area. Belongs to Wazir\ntribe. Review pursuant to Security Council resolution 1822 (2008) was concluded on 23\nJul. 2010. INTERPOL-UN Security Council Special Notice web link: https://www.interpol.int/en/How-we-work/Notices/View-UN-Notices-Individuals",null,null,"UN Department, Ministry of Foreign Affairs under the Taliban\nregime",null,"UN List"]
["2019-05-14T20:44:25.777-04:00",111039,1,"UBAIDULLAH","AKHUND","YAR MOHAMMAD AKHUND",null,"Taliban","TAi.022","2001-01-25",null,null,"عبیدالله آخوند یار محمد آخوند","He was one of the deputies of Mullah Mohammed Omar (TAi.004) and a member\nof the Taliban's Supreme Council, in charge of military operations. Arrested in 2007 and\nwas in custody in Pakistan. Confirmed deceased in March 2010 and buried in Karachi,\nPakistan. Linked by marriage to Saleh Mohammad Kakar Akhtar Muhammad (TAi.149). Belonged\nto Alokozai tribe. Review pursuant to Security Council resolution 1822 (2008) was\nconcluded on 21 Jul. 2010. INTERPOL-UN Security Council Special Notice web link: https://www.interpol.int/en/How-we-work/Notices/View-UN-Notices-Individuals",null,"Mullah",null,null,"UN List"]
["2019-05-14T20:44:25.777-04:00",6908405,1,"MUHAMMAD","OMAR",null,"ZADRAN","Taliban","TAi.171","2014-07-31",null,null,"محمد عمر ځدران","Haqqani Network (HQN) (TAe.012) leader in command of over 100 militants active in Khost Province, Afghanistan as of 2013. Involved in the preparation of attacks against Afghan and international forces in Afghanistan. INTERPOL-UN Security Council Special Notice web link: https://www.interpol.int/en/How-we-work/Notices/View-UN-Notices-Individuals",null,"Maulavi",null,null,"UN List",null,"Good","Mohammad-Omar Jadran",null,null,null,null,null,null,null,null,null,"Afghanistan/Pakistan Border Area","EXACT",null,null,1958,null,null,"Sultan Kheyl Village, Spera District, Khost Province",null,"Afghanistan"]
["2019-05-14T20:44:25.777-04:00",110912,1,"ABDUL RAHMAN","ZAHED",null,null,"Taliban","TAi.033","2001-01-25",null,null,"عبدالرحمان زاهد","Believed to be in Afghanistan/Pakistan border area. Review pursuant to\nSecurity Council resolution 1822 (2008) was concluded on 21 Jul. 2010. INTERPOL-UN Security Council Special Notice web link: https://www.interpol.int/en/How-we-work/Notices/View-UN-Notices-Individuals",null,"Mullah",null,null,"UN List"]
["2019-05-14T20:44:25.777-04:00",111234,1,"MOHAMMAD","ZAHID",null,null,"Taliban","TAi.127","2001-01-25",null,null,"محمد زاهد","Believed to be in Afghanistan/Pakistan border area. Review pursuant to Security Council resolution 1822 (2008) was concluded on 29 Jul. 2010. Picture available for inclusion in the INTERPOL-UN Security Council Special Notice.  INTERPOL-UN Security Council Special Notice web link: https://www.interpol.int/en/How-we-work/Notices/View-UN-Notices-Individuals",null,"Mullah",null,null,"UN List"]
["2019-05-14T20:44:25.777-04:00",3000769,1,"ABDUL RAUF","ZAKIR",null,null,"Taliban","TAi.164","2012-11-05",null,null,"عبد الروف ذاکر","Chief of suicide operations for the Haqqani Network (TAe.012) under\nSirajuddin Jallaloudine Haqqani (TAi.144) and in charge of all operations in Kabul,\nTakhar, Kunduz and Baghlan provinces. Oversees training of suicide attackers and\nprovides instructions on how to construct improvised explosives devices\n(IEDs). INTERPOL-UN Security Council Special Notice web link: https://www.interpol.int/en/How-we-work/Notices/View-UN-Notices-Individuals",null,"Qari",null,null,"UN List"]
["2019-05-14T20:44:25.777-04:00",2975510,1,"FAIZULLAH","KHAN","NOORZAI","na","Taliban","TAi.153","2011-10-04",null,null,"فیض الله خان نورزی","Prominent Taliban financier. As of mid-2009, supplied weapons,\nammunition, explosives and medical equipment to Taliban fighters; and raised funds for\nthe Taliban, and provided training to them, in the Afghanistan/Pakistan border region.\nHas previously organized and funded Taliban operations in Kandahar Province,\nAfghanistan. As of 2010, travelled to and owned businesses in Dubai, United Arab\nEmirates, and Japan. Belongs to Noorzai tribe, Miralzai sub-tribe. Brother of Malik\nNoorzai (TAi.154). Father’s name is Akhtar Mohammed (a.k.a.: Haji Mira Khan). INTERPOL-UN Security Council Special Notice web link: https://www.interpol.int/en/How-we-work/Notices/View-UN-Notices-Individuals",null,"Haji",null,null,"UN List"]
["2019-05-14T20:44:25.777-04:00",null,null,null,null,null,null,null,null,null,null,null,null,null,null,null,null,null,null,null,null,null,null,null,null,null,null,null,null,null,null,null,null,null,null,null,null,null,null,null,null,null,null,null,null,null,null,null,null,null,null,null,null,6908451,1,"HAJI BASIR AND ZARJMIL COMPANY HAWALA, HAJI BASIR AND ZARJMIL COMPANY HAWALA, HAJI BASIR AND ZARJMIL COMPANY HAWALA, HAJI BASIR AND ZARJMIL COMPANY HAWALA, HAJI BASIR AND ZARJMIL COMPANY HAWALA, HAJI BASIR AND ZARJMIL COMPANY HAWALA, HAJI BASIR AND ZARJMIL COMPANY HAWALA, HAJI BASIR AND ZARJMIL COMPANY HAWALA, HAJI BASIR AND ZARJMIL COMPANY HAWALA, HAJI BASIR AND ZARJMIL COMPANY HAWALA, HAJI BASIR AND ZARJMIL COMPANY HAWALA, HAJI BASIR AND ZARJMIL COMPANY HAWALA, HAJI BASIR AND ZARJMIL COMPANY HAWALA, HAJI BASIR AND ZARJMIL COMPANY HAWALA, HAJI BASIR AND ZARJMIL COMPANY HAWALA, HAJI BASIR AND ZARJMIL COMPANY HAWALA, HAJI BASIR AND ZARJMIL COMPANY HAWALA","Taliban, Taliban, Taliban, Taliban, Taliban, Taliban, Taliban, Taliban, Taliban, Taliban, Taliban, Taliban, Taliban, Taliban, Taliban, Taliban, Taliban","TAe.014, TAe.014, TAe.014, TAe.014, TAe.014, TAe.014, TAe.014, TAe.014, TAe.014, TAe.014, TAe.014, TAe.014, TAe.014, TAe.014, TAe.014, TAe.014, TAe.014","2015-03-27-04:00, 2015-03-27-04:00, 2015-03-27-04:00, 2015-03-27-04:00, 2015-03-27-04:00, 2015-03-27-04:00, 2015-03-27-04:00, 2015-03-27-04:00, 2015-03-27-04:00, 2015-03-27-04:00, 2015-03-27-04:00, 2015-03-27-04:00, 2015-03-27-04:00, 2015-03-27-04:00, 2015-03-27-04:00, 2015-03-27-04:00, 2015-03-27-04:00",null,"د حاجی بصیر او ضرجمیل کمپنی حواله, د حاجی بصیر او ضرجمیل کمپنی حواله, د حاجی بصیر او ضرجمیل کمپنی حواله, د حاجی بصیر او ضرجمیل کمپنی حواله, د حاجی بصیر او ضرجمیل کمپنی حواله, د حاجی بصیر او ضرجمیل کمپنی حواله, د حاجی بصیر او ضرجمیل کمپنی حواله, د حاجی بصیر او ضرجمیل کمپنی حواله, د حاجی بصیر او ضرجمیل کمپنی حواله, د حاجی بصیر او ضرجمیل کمپنی حواله, د حاجی بصیر او ضرجمیل کمپنی حواله, د حاجی بصیر او ضرجمیل کمپنی حواله, د حاجی بصیر او ضرجمیل کمپنی حواله, د حاجی بصیر او ضرجمیل کمپنی حواله, د حاجی بصیر او ضرجمیل کمپنی حواله, د حاجی بصیر او ضرجمیل کمپنی حواله, د حاجی بصیر او ضرجمیل کمپنی حواله","Money service provider used by senior Taliban leaders to transfer funds\nto Taliban commanders in the region. Owned by Abdul Basir Noorzai (TAi.173). INTERPOL-UN Security Council Special Notice web link: https://www.interpol.int/en/How-we-work/Notices/View-UN-Notices-Entities, Money service provider used by senior Taliban leaders to transfer funds\nto Taliban commanders in the region. Owned by Abdul Basir Noorzai (TAi.173). INTERPOL-UN Security Council Special Notice web link: https://www.interpol.int/en/How-we-work/Notices/View-UN-Notices-Entities, Money service provider used by senior Taliban leaders to transfer funds\nto Taliban commanders in the region. Owned by Abdul Basir Noorzai (TAi.173). INTERPOL-UN Security Council Special Notice web link: https://www.interpol.int/en/How-we-work/Notices/View-UN-Notices-Entities, Money service provider used by senior Taliban leaders to transfer funds\nto Taliban commanders in the region. Owned by Abdul Basir Noorzai (TAi.173). INTERPOL-UN Security Council Special Notice web link: https://www.interpol.int/en/How-we-work/Notices/View-UN-Notices-Entities, Money service provider used by senior Taliban leaders to transfer funds\nto Taliban commanders in the region. Owned by Abdul Basir Noorzai (TAi.173). INTERPOL-UN Security Council Special Notice web link: https://www.interpol.int/en/How-we-work/Notices/View-UN-Notices-Entities, Money service provider used by senior Taliban leaders to transfer funds\nto Taliban commanders in the region. Owned by Abdul Basir Noorzai (TAi.173). INTERPOL-UN Security Council Special Notice web link: https://www.interpol.int/en/How-we-work/Notices/View-UN-Notices-Entities, Money service provider used by senior Taliban leaders to transfer funds\nto Taliban commanders in the region. Owned by Abdul Basir Noorzai (TAi.173). INTERPOL-UN Security Council Special Notice web link: https://www.interpol.int/en/How-we-work/Notices/View-UN-Notices-Entities, Money service provider used by senior Taliban leaders to transfer funds\nto Taliban commanders in the region. Owned by Abdul Basir Noorzai (TAi.173). INTERPOL-UN Security Council Special Notice web link: https://www.interpol.int/en/How-we-work/Notices/View-UN-Notices-Entities, Money service provider used by senior Taliban leaders to transfer funds\nto Taliban commanders in the region. Owned by Abdul Basir Noorzai (TAi.173). INTERPOL-UN Security Council Special Notice web link: https://www.interpol.int/en/How-we-work/Notices/View-UN-Notices-Entities, Money service provider used by senior Taliban leaders to transfer funds\nto Taliban commanders in the region. Owned by Abdul Basir Noorzai (TAi.173). INTERPOL-UN Security Council Special Notice web link: https://www.interpol.int/en/How-we-work/Notices/View-UN-Notices-Entities, Money service provider used by senior Taliban leaders to transfer funds\nto Taliban commanders in the region. Owned by Abdul Basir Noorzai (TAi.173). INTERPOL-UN Security Council Special Notice web link: https://www.interpol.int/en/How-we-work/Notices/View-UN-Notices-Entities, Money service provider used by senior Taliban leaders to transfer funds\nto Taliban commanders in the region. Owned by Abdul Basir Noorzai (TAi.173). INTERPOL-UN Security Council Special Notice web link: https://www.interpol.int/en/How-we-work/Notices/View-UN-Notices-Entities, Money service provider used by senior Taliban leaders to transfer funds\nto Taliban commanders in the region. Owned by Abdul Basir Noorzai (TAi.173). INTERPOL-UN Security Council Special Notice web link: https://www.interpol.int/en/How-we-work/Notices/View-UN-Notices-Entities, Money service provider used by senior Taliban leaders to transfer funds\nto Taliban commanders in the region. Owned by Abdul Basir Noorzai (TAi.173). INTERPOL-UN Security Council Special Notice web link: https://www.interpol.int/en/How-we-work/Notices/View-UN-Notices-Entities, Money service provider used by senior Taliban leaders to transfer funds\nto Taliban commanders in the region. Owned by Abdul Basir Noorzai (TAi.173). INTERPOL-UN Security Council Special Notice web link: https://www.interpol.int/en/How-we-work/Notices/View-UN-Notices-Entities, Money service provider used by senior Taliban leaders to transfer funds\nto Taliban commanders in the region. Owned by Abdul Basir Noorzai (TAi.173). INTERPOL-UN Security Council Special Notice web link: https://www.interpol.int/en/How-we-work/Notices/View-UN-Notices-Entities, Money service provider used by senior Taliban leaders to transfer funds\nto Taliban commanders in the region. Owned by Abdul Basir Noorzai (TAi.173). INTERPOL-UN Security Council Special Notice web link: https://www.interpol.int/en/How-we-work/Notices/View-UN-Notices-Entities","UN List, UN List, UN List, UN List, UN List, UN List, UN List, UN List, UN List, UN List, UN List, UN List, UN List, UN List, UN List, UN List, UN List",null,"a.k.a., a.k.a., a.k.a., a.k.a., a.k.a., a.k.a., a.k.a.","Haji Bashir and Zarjmil Hawala Company, Haji Abdul Basir and Zar Jameel Hawala, Haji Basir Hawala, Haji Baseer Hawala, Haji Abdul Basir Exchange Shop, Haji Basir and Zarjamil Currency Exchange, Haji Zar Jamil, Haji Abdul Baseer Money Changer","Branch Office 1: Sanatan (variant Sanatin) Bazaar","Sanatan Bazaar Street, Branch Office 2: Quetta","near Trench (variant Tranch) Road, Branch Office 3: Lahore, Branch Office 4: Peshawar, Branch Office 5: Karachi, Branch Office 6: Islamabad, Branch Office 7: Kandahar Province, Branch Office 8: Herat Province, Branch Office 9: Helmand Province","Chaman, Baluchistan Province","Pakistan, Pakistan, Pakistan, Pakistan, Pakistan, Pakistan, Afghanistan, Afghanistan, Afghanistan"]
["2019-05-14T20:44:25.777-04:00",null,null,null,null,null,null,null,null,null,null,null,null,null,null,null,null,null,null,null,null,null,null,null,null,null,null,null,null,null,null,null,null,null,null,null,null,null,null,null,null,null,null,null,null,null,null,null,null,null,null,null,null,2989469,1,"HAJI KHAIRULLAH HAJI SATTAR MONEY EXCHANGE","Taliban","TAe.010","2012-06-29",null,"حاجی خيرالله و حاجی ستار صرافی","Pakistan National Tax Number: 1774308; Pakistan National Tax Number:\n0980338; Pakistan National Tax Number: 3187777; Afghan Money Service Provider License\nNumber: 044. Haji Khairullah Haji Sattar Money Exchange was used by Taliban leadership\nto transfer money to Taliban commanders to fund fighters and operations in Afghanistan\nas of 2011. Associated with Abdul Sattar Abdul Manan (TAi.162) and Khairullah Barakzai\nKhudai Nazar (TAi.163). INTERPOL-UN Security Council Special Notice web link: https://www.interpol.int/en/How-we-work/Notices/View-UN-Notices-Entities","UN List","2012-08-13"]
["2019-05-14T20:44:25.777-04:00",null,null,null,null,null,null,null,null,null,null,null,null,null,null,null,null,null,null,null,null,null,null,null,null,null,null,null,null,null,null,null,null,null,null,null,null,null,null,null,null,null,null,null,null,null,null,null,null,null,null,null,null,3000441,1,"HAQQANI NETWORK (HQN)","Taliban","TAe.012","2012-11-05",null,"شبکه حقانی","Network of Taliban fighters centered around the border between Khost\nProvince, Afghanistan and North Waziristan, Pakistan. Founded by Jalaluddin Haqqani\n(TAi.040) and currently headed by his son Sirajuddin Jallaloudine Haqqani (TAi.144).\nOther listed members include Nasiruddin Haqqani (TAi.146), Sangeen Zadran Sher Mohammad\n(TAi.152), Abdul Aziz Abbasin (TAi.155), Fazl Rabi (TAi.157), Ahmed Jan Wazir (TAi.159),\nBakht Gul (TAi.161), Abdul Rauf Zakir (TAi.164). Responsible for suicide attacks and\ntargeted assassination as well as kidnappings in Kabul and other provinces of\nAfghanistan. Linked to Al-Qaida (QDe.004), Islamic Movement of Uzbekistan (QDe.010),\nTehrik-e Taliban Pakistan (QDe.132), Lashkar I Jhangvi (QDe.096), and Jaish-IMohammed\n(QDe.019). INTERPOL-UN Security Council Special Notice web link: https://www.interpol.int/en/How-we-work/Notices/View-UN-Notices-Entities","UN List"]
["2019-05-14T20:44:25.777-04:00",null,null,null,null,null,null,null,null,null,null,null,null,null,null,null,null,null,null,null,null,null,null,null,null,null,null,null,null,null,null,null,null,null,null,null,null,null,null,null,null,null,null,null,null,null,null,null,null,null,null,null,null,3000510,1,"RAHAT LTD.","Taliban","TAe.013","2012-11-21",null,"راحت لمتد","Rahat Ltd. was used by Taliban leadership to transfer funds originating\nfrom external donors and narcotics trafficking to finance Taliban activity as of 2011\nand 2012. Owned by Mohammed Qasim Mir Wali Khudai Rahim (TAi.165). Also associated\nMohammad Naim Barich Khudaidad (TAi.013). INTERPOL-UN Security Council Special Notice web link: https://www.interpol.int/en/How-we-work/Notices/View-UN-Notices-Entities","UN List","2013-06-27"]
["2019-05-14T20:44:25.777-04:00",null,null,null,null,null,null,null,null,null,null,null,null,null,null,null,null,null,null,null,null,null,null,null,null,null,null,null,null,null,null,null,null,null,null,null,null,null,null,null,null,null,null,null,null,null,null,null,null,null,null,null,null,2989573,1,"ROSHAN MONEY EXCHANGE","Taliban","TAe.011","2012-06-29",null,"صرافی روشان","Roshan Money Exchange stores and transfers funds to support Taliban\nmilitary operations and narcotics trade in Afghanistan. Owned by Ahmed Shah Noorzai\nObaidullah (TAi.166). INTERPOL-UN Security Council Special Notice web link: https://www.interpol.int/en/How-we-work/Notices/View-UN-Notices-Entities","UN List","2012-10-25"]

{"sheet":"nazwy","index":2,"n_rows":8,"n_cols":75,"rows_kept":8,"cut":false,"hidden":true,"merged":[]}
["A - data gen.","B-BA - kolumny dla osób fizycznych"]
["Data generacji listy","Numer ID danych","Numer wersji","Godność - pierwsza część","Godność - druga część","Godność - trzecia część","Godność - czwarta część","Typ listy sankcyjnej ONZ","Numer referencyjny","Data dodania do listy","Płeć","Dodany przez","Godność - oryginalna pisownia","Komentarze","Narodowość","Dodatkowe informacje ","Dodatkowe informacje ","Dodatkowe informacje ","Dodatkowe informacje ","Dodatkowe informacje ","Jakość danych","Aliasy","Data urodzenia","Miasto urodzenia","Kraj urodzenia","Dodatkowe informacje","Ulica","Miejscowość","Stan/Prowincja","Kod pocztowy","Kraj","Dodatkowe informacje","Typ daty","Dodatkowe informacje","Data","Rok","Rok od","Rok do","Miejscowość","Stan/Prowincja","Kraj","Dodatkowe informacje","Typ dokumentu","Typ dokumentu","Numer dokumentu","Kraj wydania dokumentu","Data wydania dokumentu","Miasto wydania dokumentu","Kraj wydania dokumentu","Dodatkowe informacje","Klucz sortowania","Klucz sortowania ostatnia modyfikacja","Data usunięcia z listy"]
["Data_generacji","ID_danych","Nr_wersji","Imie","Drugie_imię","Trzecie_imię","Czwarte_imię","Typ_Listy_UN","Nr_Ref","Data_dodania2ls","Płeć","Dodane_przez","Oryginalna_pisownia_nazwy","Komentarze","Narodowość","Dodatkowe_info_1","Dodatkowe_info_2","Dodatkowe_info_3","Dodatkowe_info_4","Dodatkowe_info_5","Jakość_danych","Aliasy","Data_ur","Miasto_ur","Kraj_ur","Info_dod_1","Ulica_1","Miejscowość_1","Stan_Prowincja_1","Kod_pocztowy_1","Kraj_1","Info_dod_6","Typ_daty_ur","Info_dod_7","Data_7","Rok_7","Rok_od_7","Rok_do_7","Miejscowość_7","Stan_Prowincja_7","Kraj_7","Info_dod_11","Typ_dokumentu","Typ_dokumentu_2","Numer_dokumentu","_Kraj_wydania_dok","Data_wydania_dok","Miasty_wydania_dok","Kraj_wydania_dok","Info_dod_12","Klucz_sortowania","Klucz_sort_ostatnia_mod","Data_usunięciaZls","BB-BW - kolumny dla osób fizycznych"]
["dateGenerated","DATAID","VERSIONNUM","FIRST_NAME","SECOND_NAME","THIRD_NAME","FOURTH_NAME","UN_LIST_TYPE","REFERENCE_NUMBER","LISTED_ON","GENDER","SUBMITTED_BY","NAME_ORIGINAL_SCRIPT","COMMENTS1","NATIONALITY2","VALUE","VALUE2","VALUE3","VALUE4","VALUE5","QUALITY","ALIAS_NAME","DATE_OF_BIRTH","CITY_OF_BIRTH","COUNTRY_OF_BIRTH","NOTE","STREET","CITY","STATE_PROVINCE","ZIP_CODE","COUNTRY","NOTE6","TYPE_OF_DATE","NOTE7","DATE","YEAR","FROM_YEAR","TO_YEAR","CITY8","STATE_PROVINCE9","COUNTRY10","NOTE11","TYPE_OF_DOCUMENT","TYPE_OF_DOCUMENT2","NUMBER","ISSUING_COUNTRY","DATE_OF_ISSUE","CITY_OF_ISSUE","COUNTRY_OF_ISSUE","NOTE12","SORT_KEY","SORT_KEY_LAST_MOD","DELISTED_ON"]
[null,null,null,null,null,null,null,null,null,null,null,null,null,null,null,null,null,null,null,null,null,null,null,null,null,null,null,null,null,null,null,null,null,null,null,null,null,null,null,null,null,null,null,null,null,null,null,null,null,null,null,null,null,"Numer ID danych","Numer wersji","Nazwa","Typ listy sankcyjnej ONZ","Numer referencyjny","Data dodania do listy","Data zgłoszenia","Oryginalna pisownia nazwy","Komentarze","Dodatkowe informacje","Dodatkowe informacje","Jakość danych","Aliasy","Ulica","Miejscowość","Stan/Prowincja","Kod pocztowy","Kraj","Dodatkowe informacje","Klucz sortowania","Klucz sortowania ostatnia modyfikacja","Data usunięcia z listy"]
[null,null,null,null,null,null,null,null,null,null,null,null,null,null,null,null,null,null,null,null,null,null,null,null,null,null,null,null,null,null,null,null,null,null,null,null,null,null,null,null,null,null,null,null,null,null,null,null,null,null,null,null,null,"ID_danych_leg","Nr_wersji_leg","Nazwa_leg","Typ_Listy_UN_leg","Nr_Ref_leg","Data_dodania2ls_leg","Data_właczenia","Oryginalna_pisownia_nazwy_leg","Komentarze_leg","Dodatkowe_info_1_leg","Dodatkowe_info_2_leg","Jakość_danych_leg","Aliasy_leg","Ulica_leg","Miejscowość_leg","Stan_Prowincja_leg","Kod_pocztowy_leg","Kraj_leg","Info_dod_leg","Klucz_sortowania_leg","Klucz_sort_ostatnia_mod_leg","Data_usunięciaZls_leg"]
[null,null,null,null,null,null,null,null,null,null,null,null,null,null,null,null,null,null,null,null,null,null,null,null,null,null,null,null,null,null,null,null,null,null,null,null,null,null,null,null,null,null,null,null,null,null,null,null,null,null,null,null,null,"DATAID13","VERSIONNUM14","FIRST_NAME15","UN_LIST_TYPE16","REFERENCE_NUMBER17","LISTED_ON18","SUBMITTED_ON","NAME_ORIGINAL_SCRIPT19","COMMENTS120","VALUE21","VALUE22","QUALITY23","ALIAS_NAME24","STREET25","CITY26","STATE_PROVINCE27","ZIP_CODE28","COUNTRY29","NOTE30","SORT_KEY31","SORT_KEY_LAST_MOD32","DELISTED_ON33"]
[1,{"$f":"A8+1","v":2},{"$f":"B8+1","v":3},4,5,6,7,8,9,10,11,12,13,14,15,16,17,18,19,20,21,22,23,24,25,26,27,28,29,30,31,32,33,34,35,36,37,38,39,40,41,42,43,44,45,46,47,48,49,50,51,52,53,54,55,56,57,58,59,60,61,62,63,64,65,66,{"$f":"BN8+1","v":67},68,69,70,71,72,73,74,75]